﻿Department family,Entity,Date of payment,Expense type,Expense area,Supplier,Transaction number,Amount in Sterling,Supplier VAT Registration Number
Department of Health,Guys and St Thomas NHS Foundation Trust,10/07/2020,(81200) Medical Surgical Supplies & Equipment,(id:2455419) Cancer Supportive Services and R&D,MHRA,id:9041831   ,3060.00
Department of Health,Guys and St Thomas NHS Foundation Trust,03/07/2020,(50200) Consultants,(id:4060419) Cancer Supportive Services and R&D,KINGS COLLEGE LONDON:03529700,id:13003345   ,4110.58
Department of Health,Guys and St Thomas NHS Foundation Trust,24/07/2020,(81900) Lab Equipment Purchase,(id:42276) Cancer Supportive Services and R&D,VIAPATH ANALYTICS LLP,id:13162135  ,4097.92
Department of Health,Guys and St Thomas NHS Foundation Trust,03/07/2020,(83410) Office Equipment,(id:42277) Cancer Supportive Services and R&D,RICOH UK LTD,id:13114845  , 229.69
Department of Health,Guys and St Thomas NHS Foundation Trust,03/07/2020,(89280) Other - Consultancy costs,(id:42277) Cancer Supportive Services and R&D,BEVERLEY THOMAS,id:13140314,1080.00
Department of Health,Guys and St Thomas NHS Foundation Trust,03/07/2020,(81200) Medical Surgical Supplies & Equipment,(id:42270) Haematology,NHS SUPPLY CHAIN (MAIDSTONE),id:13050854   , 645.69
Department of Health,Guys and St Thomas NHS Foundation Trust,30/07/2020,(81700) Lab Equipment Purchase,(id:42270) Haematology,NHS SUPPLY CHAIN (MAIDSTONE),id:13132074   ,  58.43
Department of Health,Guys and St Thomas NHS Foundation Trust,30/07/2020,(82000) Provisions & Kitchens,(id:42270) Haematology,NHS SUPPLY CHAIN (MAIDSTONE),id:13132074    ,  85.80
Department of Health,Guys and St Thomas NHS Foundation Trust,03/07/2020,(82000) Provisions & Kitchens,(id:42270) Haematology,NHS SUPPLY CHAIN (MAIDSTONE),id:13036234    ,  41.78
Department of Health,Guys and St Thomas NHS Foundation Trust,03/07/2020,(83410) Office Equipment,(id:42268) Haematology,RICOH UK LTD,id:13114845,  39.16
Department of Health,Guys and St Thomas NHS Foundation Trust,03/07/2020,(83410) Office Equipment,(id:42267) Haematology,RICOH UK LTD,id:13114845, 400.33
Department of Health,Guys and St Thomas NHS Foundation Trust,10/07/2020,(89595) Non-Healthcare from Foundation Trusts,(id:42267) Haematology,ST GEORGE'S UNIVERSITY HOSPITALS NHS FOUNDATION TRUST,id:13021354   , 792.24
Department of Health,Guys and St Thomas NHS Foundation Trust,17/07/2020,(82800) Bedding & Linen,(id:42265) Haematology,NHS SUPPLY CHAIN (MAIDSTONE),id:13075043, 118.79
Department of Health,Guys and St Thomas NHS Foundation Trust,03/07/2020,(81100) Dressings,(id:42265) Haematology,NHS SUPPLY CHAIN (MAIDSTONE),id:13036234 ,   3.26
Department of Health,Guys and St Thomas NHS Foundation Trust,17/07/2020,(81200) Medical Surgical Supplies & Equipment,(id:42265) Haematology,NHS SUPPLY CHAIN (MAIDSTONE),id:13075043   ,1128.63
Department of Health,Guys and St Thomas NHS Foundation Trust,17/07/2020,(81200) Medical Surgical Supplies & Equipment,(id:42265) Haematology,NHS SUPPLY CHAIN (MAIDSTONE),id:13090454   ,1073.72
Department of Health,Guys and St Thomas NHS Foundation Trust,03/07/2020,(83400) Office Equipment,(id:42265) Haematology,NHS SUPPLY CHAIN (MAIDSTONE),id:13060017    , 138.46
Department of Health,Guys and St Thomas NHS Foundation Trust,24/07/2020,(81700) Lab Equipment Purchase,(id:42265) Haematology,NHS SUPPLY CHAIN (MAIDSTONE),id:13109396   ,  43.27
Department of Health,Guys and St Thomas NHS Foundation Trust,03/07/2020,(81200) Medical Surgical Supplies & Equipment,(id:42272) Haematology,NHS SUPPLY CHAIN (MAIDSTONE),id:13050854   , 400.14
Department of Health,Guys and St Thomas NHS Foundation Trust,17/07/2020,(81000) Surgical Appliances,(id:42272) Haematology,MEDI UK LTD,id:13162818   ,  39.60
Department of Health,Guys and St Thomas NHS Foundation Trust,24/07/2020,(80205) Drug Costs,(id:42273) Haematology,HEALTHCARE AT HOME LTD,id:13194383 ,3627.00
Department of Health,Guys and St Thomas NHS Foundation Trust,24/07/2020,(80205) Drug Costs,(id:42273) Haematology,HEALTHCARE AT HOME LTD,id:13194370 ,5527.00
Department of Health,Guys and St Thomas NHS Foundation Trust,24/07/2020,(80205) Drug Costs,(id:42273) Haematology,HEALTHCARE AT HOME LTD,id:13194386 ,6127.00
Department of Health,Guys and St Thomas NHS Foundation Trust,24/07/2020,(80205) Drug Costs,(id:42273) Haematology,HEALTHCARE AT HOME LTD,id:13197014 ,8127.00
Department of Health,Guys and St Thomas NHS Foundation Trust,24/07/2020,(80205) Drug Costs,(id:42273) Haematology,HEALTHCARE AT HOME LTD,id:13194350 ,8227.00
Department of Health,Guys and St Thomas NHS Foundation Trust,24/07/2020,(80205) Drug Costs,(id:42273) Haematology,HEALTHCARE AT HOME LTD,id:13197258 ,9727.00
Department of Health,Guys and St Thomas NHS Foundation Trust,24/07/2020,(80205) Drug Costs,(id:42273) Haematology,HEALTHCARE AT HOME LTD,id:13196816 ,    29227.00
Department of Health,Guys and St Thomas NHS Foundation Trust,10/07/2020,(80205) Drug Costs,(id:42273) Haematology,HEALTHCARE AT HOME LTD,id:13153236 ,3875.00
Department of Health,Guys and St Thomas NHS Foundation Trust,10/07/2020,(80205) Drug Costs,(id:42273) Haematology,HEALTHCARE AT HOME LTD,id:13153101 ,5400.20
Department of Health,Guys and St Thomas NHS Foundation Trust,10/07/2020,(80205) Drug Costs,(id:42273) Haematology,SHIRE PHARMACEUTICALS LTD,id:13153545   ,6878.85
Department of Health,Guys and St Thomas NHS Foundation Trust,10/07/2020,(80205) Drug Costs,(id:42273) Haematology,HEALTHCARE AT HOME LTD,id:13153056 ,    37625.00
Department of Health,Guys and St Thomas NHS Foundation Trust,17/07/2020,(81200) Medical Surgical Supplies & Equipment,(id:202405) Haematology,SCC PLC)SPECIALIST COMPUTER CENTRES,id:13162815,  18.00
Department of Health,Guys and St Thomas NHS Foundation Trust,03/07/2020,(89200) Other - Patient travel,(id:42130) Haematology,F A ALBIN & SONS,id:13128291,1282.00
Department of Health,Guys and St Thomas NHS Foundation Trust,30/07/2020,(83400) Office Equipment,(id:42128) Haematology,NHS SUPPLY CHAIN (MAIDSTONE),id:13132074    ,   4.96
Department of Health,Guys and St Thomas NHS Foundation Trust,03/07/2020,(83410) Office Equipment,(id:42128) Haematology,RICOH UK LTD,id:13114845, 143.82
Department of Health,Guys and St Thomas NHS Foundation Trust,10/07/2020,(54052) Technical Officers,(id:42128) Haematology,TOTAL ASSIST RECRUITMENT LTD,id:13155636  , 648.89
Department of Health,Guys and St Thomas NHS Foundation Trust,10/07/2020,(54052) Technical Officers,(id:42128) Haematology,TOTAL ASSIST RECRUITMENT LTD,id:13155532  ,1212.40
Department of Health,Guys and St Thomas NHS Foundation Trust,24/07/2020,(81200) Medical Surgical Supplies & Equipment,(id:42128) Haematology,NHS SUPPLY CHAIN (MAIDSTONE),id:13109396   ,  80.14
Department of Health,Guys and St Thomas NHS Foundation Trust,10/07/2020,(84500) Establishment,(id:42258) Oncology Services,1ST BIOTECH LIMITED,id:12939403, 124.80
Department of Health,Guys and St Thomas NHS Foundation Trust,24/07/2020,(81200) Medical Surgical Supplies & Equipment,(id:42258) Oncology Services,NHS SUPPLY CHAIN (MAIDSTONE),id:13109396  ,  19.17
Department of Health,Guys and St Thomas NHS Foundation Trust,27/07/2020,(83630) IT Costs,(id:42258) Oncology Services,GSTT PROCUREMENT CARD,id:13203274   , 157.50
Department of Health,Guys and St Thomas NHS Foundation Trust,03/07/2020,(81500) X Ray Equipment Purchase,(id:42258) Oncology Services,NHS SUPPLY CHAIN (MAIDSTONE),id:13036234, 310.80
Department of Health,Guys and St Thomas NHS Foundation Trust,30/07/2020,(89000) Other - Training courses and conferences,(id:42258) Oncology Services,INTERNATIONAL LYMPHOMA RADIATION ONCOLOGY GROUP,id:13207094, 969.46
Department of Health,Guys and St Thomas NHS Foundation Trust,24/07/2020,(81700) Lab Equipment Purchase,(id:42258) Oncology Services,NHS SUPPLY CHAIN (MAIDSTONE),id:13109396  ,   4.93
Department of Health,Guys and St Thomas NHS Foundation Trust,10/07/2020,(89200) Other - Patient travel,(id:42258) Oncology Services,GSTT SUNDRY SUPPLIER,id:13145446, 720.00
Department of Health,Guys and St Thomas NHS Foundation Trust,24/07/2020,(81000) Surgical Appliances,(id:42257) Oncology Services,TALAR MADE ORTHOTICS LTD,id:13178456    ,  46.50
Department of Health,Guys and St Thomas NHS Foundation Trust,30/07/2020,(81000) Surgical Appliances,(id:42257) Oncology Services,MEDI UK LTD,id:13204803  , 165.02
Department of Health,Guys and St Thomas NHS Foundation Trust,03/07/2020,(83410) Office Equipment,(id:42261) Oncology Services,RICOH UK LTD,id:13114845    ,  39.46
Department of Health,Guys and St Thomas NHS Foundation Trust,24/07/2020,(81255) Medical Surgical Supplies & Equipment,(id:42260) Oncology Services,NHS SUPPLY CHAIN (MAIDSTONE),id:13109396  ,   2.50
Department of Health,Guys and St Thomas NHS Foundation Trust,03/07/2020,(83400) Office Equipment,(id:42260) Oncology Services,NHS SUPPLY CHAIN (MAIDSTONE),id:13050854   ,1203.47
Department of Health,Guys and St Thomas NHS Foundation Trust,24/07/2020,(81700) Lab Equipment Purchase,(id:42260) Oncology Services,NHS SUPPLY CHAIN (MAIDSTONE),id:13109396  , 537.08
Department of Health,Guys and St Thomas NHS Foundation Trust,30/07/2020,(81700) Lab Equipment Purchase,(id:42260) Oncology Services,NHS SUPPLY CHAIN (MAIDSTONE),id:13132074  , 195.42
Department of Health,Guys and St Thomas NHS Foundation Trust,03/07/2020,(82700) Uniforms & Clothing,(id:42260) Oncology Services,NHS SUPPLY CHAIN (MAIDSTONE),id:13050854, 148.50
Department of Health,Guys and St Thomas NHS Foundation Trust,24/07/2020,(82000) Provisions & Kitchens,(id:42259) Oncology Services,NHS SUPPLY CHAIN (MAIDSTONE),id:13109396   ,  89.84
Department of Health,Guys and St Thomas NHS Foundation Trust,03/07/2020,(82000) Provisions & Kitchens,(id:42259) Oncology Services,NHS SUPPLY CHAIN (MAIDSTONE),id:13060017   ,  69.89
Department of Health,Guys and St Thomas NHS Foundation Trust,17/07/2020,(82800) Bedding & Linen,(id:42259) Oncology Services,NHS SUPPLY CHAIN (MAIDSTONE),id:13090454    ,  59.38
Department of Health,Guys and St Thomas NHS Foundation Trust,10/07/2020,(84500) Establishment,(id:42259) Oncology Services,OFFICE DEPOT UK LTD,id:13132600, 519.66
Department of Health,Guys and St Thomas NHS Foundation Trust,03/07/2020,(81225) Medical Surgical Supplies & Equipment,(id:42259) Oncology Services,NHS SUPPLY CHAIN (MAIDSTONE),id:13050854  ,  15.12
Department of Health,Guys and St Thomas NHS Foundation Trust,03/07/2020,(81700) Lab Equipment Purchase,(id:42259) Oncology Services,NHS SUPPLY CHAIN (MAIDSTONE),id:13036234  ,  12.96
Department of Health,Guys and St Thomas NHS Foundation Trust,03/07/2020,(81700) Lab Equipment Purchase,(id:42259) Oncology Services,NHS SUPPLY CHAIN (MAIDSTONE),id:13050854  ,  12.58
Department of Health,Guys and St Thomas NHS Foundation Trust,03/07/2020,(81255) Medical Surgical Supplies & Equipment,(id:42259) Oncology Services,NHS SUPPLY CHAIN (MAIDSTONE),id:13060017  ,   2.16
Department of Health,Guys and St Thomas NHS Foundation Trust,17/07/2020,(81255) Medical Surgical Supplies & Equipment,(id:42259) Oncology Services,NHS SUPPLY CHAIN (MAIDSTONE),id:13090454  ,   1.73
Department of Health,Guys and St Thomas NHS Foundation Trust,17/07/2020,(81200) Medical Surgical Supplies & Equipment,(id:42280) Surgical Oncology,IDEAL MEDICAL SOLUTIONS LTD,id:13163680   , 623.40
Department of Health,Guys and St Thomas NHS Foundation Trust,10/07/2020,(81200) Medical Surgical Supplies & Equipment,(id:42280) Surgical Oncology,JOHNSON & JOHNSON MEDICAL LTD,id:13120752 , 932.23
Department of Health,Guys and St Thomas NHS Foundation Trust,24/07/2020,(83400) Office Equipment,(id:243406) Surgical Oncology,NHS SUPPLY CHAIN (MAIDSTONE),id:13109396  ,  52.11
Department of Health,Guys and St Thomas NHS Foundation Trust,03/07/2020,(82800) Bedding & Linen,(id:243406) Surgical Oncology,NHS SUPPLY CHAIN (MAIDSTONE),id:13060017   ,  80.35
Department of Health,Guys and St Thomas NHS Foundation Trust,03/07/2020,(81225) Medical Surgical Supplies & Equipment,(id:243406) Surgical Oncology,NHS SUPPLY CHAIN (MAIDSTONE),id:13036234 ,  15.12
Department of Health,Guys and St Thomas NHS Foundation Trust,03/07/2020,(82000) Provisions & Kitchens,(id:42474) Surgical Oncology,NHS SUPPLY CHAIN (MAIDSTONE),id:13050854   ,   7.81
Department of Health,Guys and St Thomas NHS Foundation Trust,03/07/2020,(81200) Medical Surgical Supplies & Equipment,(id:42474) Surgical Oncology,MEDTRONIC LTD,id:13058710  , 672.00
Department of Health,Guys and St Thomas NHS Foundation Trust,10/07/2020,(83610) IT Costs,(id:42474) Surgical Oncology,OFFICE DEPOT UK LTD,id:13135697, 427.26
Department of Health,Guys and St Thomas NHS Foundation Trust,10/07/2020,(84656) Establishment,(id:42474) Surgical Oncology,DICT8 LIMITED,id:13016811 ,1700.76
Department of Health,Guys and St Thomas NHS Foundation Trust,10/07/2020,(84656) Establishment,(id:42474) Surgical Oncology,DICT8 LIMITED,id:13129339 ,2362.68
Department of Health,Guys and St Thomas NHS Foundation Trust,24/07/2020,(81100) Dressings,(id:42473) Surgical Oncology,NHS SUPPLY CHAIN (MAIDSTONE),id:13109396,   2.05
Department of Health,Guys and St Thomas NHS Foundation Trust,24/07/2020,(81100) Dressings,(id:42473) Surgical Oncology,STRYKER UK LTD,id:13165955    , 655.15
Department of Health,Guys and St Thomas NHS Foundation Trust,10/07/2020,(81200) Medical Surgical Supplies & Equipment,(id:42473) Surgical Oncology,MEDTRONIC LTD,id:13059633  , 541.20
Department of Health,Guys and St Thomas NHS Foundation Trust,30/07/2020,(81200) Medical Surgical Supplies & Equipment,(id:42473) Surgical Oncology,DELTA SURGICAL LTD,id:13190534  , 738.00
Department of Health,Guys and St Thomas NHS Foundation Trust,28/07/2020,(54062) Technical Officers,(id:42475) Surgical Oncology,PRICEWATERHOUSECOOPERS LLP,id:13207034   ,1191.82
Department of Health,Guys and St Thomas NHS Foundation Trust,10/07/2020,(81215) Medical Surgical Supplies & Equipment,(id:42475) Surgical Oncology,ADVANCED BIONICS SARL (AND UK LTD),id:13142374 ,   267300.00
Department of Health,Guys and St Thomas NHS Foundation Trust,17/07/2020,(81215) Medical Surgical Supplies & Equipment,(id:42475) Surgical Oncology,GUYMARK UK LIMITED,id:13173876  , 651.13
Department of Health,Guys and St Thomas NHS Foundation Trust,03/07/2020,(81215) Medical Surgical Supplies & Equipment,(id:42475) Surgical Oncology,NHS SUPPLY CHAIN (MAIDSTONE),id:13036234  , 454.57
Department of Health,Guys and St Thomas NHS Foundation Trust,27/07/2020,(81215) Medical Surgical Supplies & Equipment,(id:42475) Surgical Oncology,GSTT PROCUREMENT CARD,id:13203274    , 910.19
Department of Health,Guys and St Thomas NHS Foundation Trust,10/07/2020,(81225) Medical Surgical Supplies & Equipment,(id:42475) Surgical Oncology,COCHLEAR EUROPE LTD,id:13155177 ,7168.80
Department of Health,Guys and St Thomas NHS Foundation Trust,03/07/2020,(81225) Medical Surgical Supplies & Equipment,(id:42475) Surgical Oncology,NHS SUPPLY CHAIN (MAIDSTONE),id:13050854  , 152.16
Department of Health,Guys and St Thomas NHS Foundation Trust,17/07/2020,(81225) Medical Surgical Supplies & Equipment,(id:42475) Surgical Oncology,NHS SUPPLY CHAIN (MAIDSTONE),id:13075043  , 506.70
Department of Health,Guys and St Thomas NHS Foundation Trust,24/07/2020,(81100) Dressings,(id:42286) Surgical Oncology,MEDTRONIC LTD,id:13178715, 936.00
Department of Health,Guys and St Thomas NHS Foundation Trust,30/07/2020,(81400) Medical Surgical Supplies & Equipment,(id:42286) Surgical Oncology,NHS SUPPLY CHAIN ( CAPITAL FUND ONLY),id:13189294   ,9992.46
Department of Health,Guys and St Thomas NHS Foundation Trust,10/07/2020,(81200) Medical Surgical Supplies & Equipment,(id:42286) Surgical Oncology,Q MEDICAL TECHNOLOGIES LTD,id:13146074    ,9450.00
Department of Health,Guys and St Thomas NHS Foundation Trust,03/07/2020,(81100) Dressings,(id:42284) Surgical Oncology,NHS SUPPLY CHAIN (MAIDSTONE),id:13060017, 294.72
Department of Health,Guys and St Thomas NHS Foundation Trust,24/07/2020,(81200) Medical Surgical Supplies & Equipment,(id:42284) Surgical Oncology,NHS SUPPLY CHAIN (MAIDSTONE),id:13109396  , 241.61
Department of Health,Guys and St Thomas NHS Foundation Trust,10/07/2020,(81200) Medical Surgical Supplies & Equipment,(id:42471) Surgical Oncology,SEVERN HEALTHCARE TECHNOLOGIES LTD,id:13141220 , 605.28
Department of Health,Guys and St Thomas NHS Foundation Trust,17/07/2020,(82000) Provisions & Kitchens,(id:42470) Surgical Oncology,NHS SUPPLY CHAIN (MAIDSTONE),id:13075043   ,  22.82
Department of Health,Guys and St Thomas NHS Foundation Trust,03/07/2020,(82800) Bedding & Linen,(id:42470) Surgical Oncology,NHS SUPPLY CHAIN (MAIDSTONE),id:13050854    ,  24.47
Department of Health,Guys and St Thomas NHS Foundation Trust,03/07/2020,(81200) Medical Surgical Supplies & Equipment,(id:42470) Surgical Oncology,NHS SUPPLY CHAIN (MAIDSTONE),id:13050854  ,4104.22
Department of Health,Guys and St Thomas NHS Foundation Trust,17/07/2020,(83400) Office Equipment,(id:42470) Surgical Oncology,NHS SUPPLY CHAIN (MAIDSTONE),id:13075043   ,  31.51
Department of Health,Guys and St Thomas NHS Foundation Trust,03/07/2020,(81700) Lab Equipment Purchase,(id:42470) Surgical Oncology,NHS SUPPLY CHAIN (MAIDSTONE),id:13060017  ,  15.06
Department of Health,Guys and St Thomas NHS Foundation Trust,30/07/2020,(82700) Uniforms & Clothing,(id:2182419) Medicine,NHS SUPPLY CHAIN (MAIDSTONE),id:13132074  , 206.48
Department of Health,Guys and St Thomas NHS Foundation Trust,03/07/2020,(81200) Medical Surgical Supplies & Equipment,(id:2182419) Medicine,NHS SUPPLY CHAIN (MAIDSTONE),id:13050854    ,1249.31
Department of Health,Guys and St Thomas NHS Foundation Trust,17/07/2020,(81200) Medical Surgical Supplies & Equipment,(id:2182419) Medicine,NHS SUPPLY CHAIN (MAIDSTONE),id:13075043    ,2178.22
Department of Health,Guys and St Thomas NHS Foundation Trust,10/07/2020,(50552) Qualified Nursing Staff,(id:2182419) Medicine,GLOBE LOCUMS LTD,id:13155508, 646.24
Department of Health,Guys and St Thomas NHS Foundation Trust,10/07/2020,(50552) Qualified Nursing Staff,(id:2182419) Medicine,MSI GROUP LTD,id:13155485   , 341.88
Department of Health,Guys and St Thomas NHS Foundation Trust,17/07/2020,(50552) Qualified Nursing Staff,(id:2182419) Medicine,MSI GROUP LTD,id:13169839   , 324.45
Department of Health,Guys and St Thomas NHS Foundation Trust,10/07/2020,(50522) Unqualified Nursing Staff,(id:2182419) Medicine,MSI GROUP LTD,id:13155545 , 252.46
Department of Health,Guys and St Thomas NHS Foundation Trust,30/07/2020,(83400) Office Equipment,(id:2182419) Medicine,NHS SUPPLY CHAIN (MAIDSTONE),id:13132074, 396.13
Department of Health,Guys and St Thomas NHS Foundation Trust,17/07/2020,(83400) Office Equipment,(id:2182419) Medicine,NHS SUPPLY CHAIN (MAIDSTONE),id:13090454, 343.80
Department of Health,Guys and St Thomas NHS Foundation Trust,03/07/2020,(82700) Uniforms & Clothing,(id:41860) Medicine,NHS SUPPLY CHAIN (MAIDSTONE),id:13050854    ,  10.56
Department of Health,Guys and St Thomas NHS Foundation Trust,03/07/2020,(82000) Provisions & Kitchens,(id:41860) Medicine,NHS SUPPLY CHAIN (MAIDSTONE),id:13050854  ,  23.20
Department of Health,Guys and St Thomas NHS Foundation Trust,17/07/2020,(83400) Office Equipment,(id:41860) Medicine,NHS SUPPLY CHAIN (MAIDSTONE),id:13075043  , 122.58
Department of Health,Guys and St Thomas NHS Foundation Trust,10/07/2020,(50552) Qualified Nursing Staff,(id:41860) Medicine,MSI GROUP LTD,id:13155401, 339.44
Department of Health,Guys and St Thomas NHS Foundation Trust,17/07/2020,(50552) Qualified Nursing Staff,(id:41860) Medicine,CONTINENTAL NURSE LTD,id:13176758  ,2021.02
Department of Health,Guys and St Thomas NHS Foundation Trust,03/07/2020,(83410) Office Equipment,(id:41860) Medicine,RICOH UK LTD,id:13114845   , 108.71
Department of Health,Guys and St Thomas NHS Foundation Trust,17/07/2020,(50522) Unqualified Nursing Staff,(id:41860) Medicine,MSI GROUP LTD,id:13176796   , 261.27
Department of Health,Guys and St Thomas NHS Foundation Trust,03/07/2020,(81200) Medical Surgical Supplies & Equipment,(id:41860) Medicine,NHS SUPPLY CHAIN (MAIDSTONE),id:13060017 , 348.39
Department of Health,Guys and St Thomas NHS Foundation Trust,03/07/2020,(81225) Medical Surgical Supplies & Equipment,(id:41860) Medicine,NHS SUPPLY CHAIN (MAIDSTONE),id:13050854 ,   3.30
Department of Health,Guys and St Thomas NHS Foundation Trust,03/07/2020,(82000) Provisions & Kitchens,(id:41859) Medicine,NHS SUPPLY CHAIN (MAIDSTONE),id:13036234  , 188.32
Department of Health,Guys and St Thomas NHS Foundation Trust,24/07/2020,(83400) Office Equipment,(id:41859) Medicine,NHS SUPPLY CHAIN (MAIDSTONE),id:13109396  , 229.90
Department of Health,Guys and St Thomas NHS Foundation Trust,30/07/2020,(50552) Qualified Nursing Staff,(id:41859) Medicine,MSI GROUP LTD,id:13212465, 449.24
Department of Health,Guys and St Thomas NHS Foundation Trust,03/07/2020,(81255) Medical Surgical Supplies & Equipment,(id:41859) Medicine,NHS SUPPLY CHAIN (MAIDSTONE),id:13050854 ,    .93
Department of Health,Guys and St Thomas NHS Foundation Trust,30/07/2020,(81225) Medical Surgical Supplies & Equipment,(id:41859) Medicine,NHS SUPPLY CHAIN (MAIDSTONE),id:13132074 ,   4.85
Department of Health,Guys and St Thomas NHS Foundation Trust,17/07/2020,(81700) Lab Equipment Purchase,(id:41859) Medicine,NHS SUPPLY CHAIN (MAIDSTONE),id:13075043 ,  36.31
Department of Health,Guys and St Thomas NHS Foundation Trust,03/07/2020,(81700) Lab Equipment Purchase,(id:41859) Medicine,NHS SUPPLY CHAIN (MAIDSTONE),id:13050854 ,   3.10
Department of Health,Guys and St Thomas NHS Foundation Trust,03/07/2020,(83400) Office Equipment,(id:41858) Medicine,NHS SUPPLY CHAIN (MAIDSTONE),id:13060017  ,  95.32
Department of Health,Guys and St Thomas NHS Foundation Trust,03/07/2020,(83400) Office Equipment,(id:41858) Medicine,NHS SUPPLY CHAIN (MAIDSTONE),id:13050854  ,  90.36
Department of Health,Guys and St Thomas NHS Foundation Trust,03/07/2020,(82800) Bedding & Linen,(id:41858) Medicine,NHS SUPPLY CHAIN (MAIDSTONE),id:13036234   , 168.36
Department of Health,Guys and St Thomas NHS Foundation Trust,30/07/2020,(82800) Bedding & Linen,(id:41858) Medicine,NHS SUPPLY CHAIN (MAIDSTONE),id:13132074   ,  54.14
Department of Health,Guys and St Thomas NHS Foundation Trust,24/07/2020,(81255) Medical Surgical Supplies & Equipment,(id:41858) Medicine,NHS SUPPLY CHAIN (MAIDSTONE),id:13109396 ,   2.81
Department of Health,Guys and St Thomas NHS Foundation Trust,17/07/2020,(81200) Medical Surgical Supplies & Equipment,(id:41858) Medicine,NHS SUPPLY CHAIN (MAIDSTONE),id:13075043 , 690.89
Department of Health,Guys and St Thomas NHS Foundation Trust,24/07/2020,(81200) Medical Surgical Supplies & Equipment,(id:41858) Medicine,NHS SUPPLY CHAIN (MAIDSTONE),id:13109396 , 388.21
Department of Health,Guys and St Thomas NHS Foundation Trust,03/07/2020,(81225) Medical Surgical Supplies & Equipment,(id:41858) Medicine,NHS SUPPLY CHAIN (MAIDSTONE),id:13060017 ,  14.93
Department of Health,Guys and St Thomas NHS Foundation Trust,17/07/2020,(81700) Lab Equipment Purchase,(id:41858) Medicine,NHS SUPPLY CHAIN (MAIDSTONE),id:13075043 ,  61.18
Department of Health,Guys and St Thomas NHS Foundation Trust,30/07/2020,(81700) Lab Equipment Purchase,(id:41858) Medicine,NHS SUPPLY CHAIN (MAIDSTONE),id:13132074 ,  12.76
Department of Health,Guys and St Thomas NHS Foundation Trust,17/07/2020,(81200) Medical Surgical Supplies & Equipment,(id:860419) Medicine,NHS SUPPLY CHAIN (MAIDSTONE),id:13090454,  96.16
Department of Health,Guys and St Thomas NHS Foundation Trust,24/07/2020,(81225) Medical Surgical Supplies & Equipment,(id:860419) Medicine,NHS SUPPLY CHAIN (MAIDSTONE),id:13109396,  36.70
Department of Health,Guys and St Thomas NHS Foundation Trust,17/07/2020,(81000) Surgical Appliances,(id:41872) Medicine,TALAR MADE ORTHOTICS LTD,id:13178398   , 114.00
Department of Health,Guys and St Thomas NHS Foundation Trust,24/07/2020,(81000) Surgical Appliances,(id:41872) Medicine,TALAR MADE ORTHOTICS LTD,id:13187154   ,  46.50
Department of Health,Guys and St Thomas NHS Foundation Trust,10/07/2020,(50552) Qualified Nursing Staff,(id:41872) Medicine,CONTINENTAL NURSE LTD,id:13155605  ,2443.21
Department of Health,Guys and St Thomas NHS Foundation Trust,03/07/2020,(50552) Qualified Nursing Staff,(id:41872) Medicine,CONTINENTAL NURSE LTD,id:13140656  ,2148.37
Department of Health,Guys and St Thomas NHS Foundation Trust,24/07/2020,(83350) Premises Services,(id:41870) Medicine,CORPS SECURITY,id:13187574,    10310.40
Department of Health,Guys and St Thomas NHS Foundation Trust,10/07/2020,(83400) Office Equipment,(id:41869) Medicine,SQUADRON MEDICAL LTD,id:13128798, 175.34
Department of Health,Guys and St Thomas NHS Foundation Trust,30/07/2020,(83400) Office Equipment,(id:41869) Medicine,SQUADRON MEDICAL LTD,id:13180441, 148.37
Department of Health,Guys and St Thomas NHS Foundation Trust,03/07/2020,(83400) Office Equipment,(id:41869) Medicine,NHS SUPPLY CHAIN (MAIDSTONE),id:13036234  ,  86.32
Department of Health,Guys and St Thomas NHS Foundation Trust,24/07/2020,(83400) Office Equipment,(id:41869) Medicine,SQUADRON MEDICAL LTD,id:13170093,  21.31
Department of Health,Guys and St Thomas NHS Foundation Trust,10/07/2020,(83500) Furniture & Fittings,(id:41869) Medicine,TECHNIBLINDS LTD,id:13141599, 834.00
Department of Health,Guys and St Thomas NHS Foundation Trust,24/07/2020,(82800) Bedding & Linen,(id:41869) Medicine,NHS SUPPLY CHAIN (MAIDSTONE),id:13109396   ,  39.19
Department of Health,Guys and St Thomas NHS Foundation Trust,17/07/2020,(82800) Bedding & Linen,(id:41869) Medicine,NHS SUPPLY CHAIN (MAIDSTONE),id:13075043   , 183.86
Department of Health,Guys and St Thomas NHS Foundation Trust,03/07/2020,(81200) Medical Surgical Supplies & Equipment,(id:41869) Medicine,SQUADRON MEDICAL LTD,id:13104502    , 913.77
Department of Health,Guys and St Thomas NHS Foundation Trust,03/07/2020,(81200) Medical Surgical Supplies & Equipment,(id:41869) Medicine,NHS SUPPLY CHAIN (MAIDSTONE),id:13060017 , 642.22
Department of Health,Guys and St Thomas NHS Foundation Trust,03/07/2020,(81200) Medical Surgical Supplies & Equipment,(id:41869) Medicine,NHS SUPPLY CHAIN (MAIDSTONE),id:13036234 ,1082.80
Department of Health,Guys and St Thomas NHS Foundation Trust,24/07/2020,(81200) Medical Surgical Supplies & Equipment,(id:41869) Medicine,SQUADRON MEDICAL LTD,id:13156485    ,2327.02
Department of Health,Guys and St Thomas NHS Foundation Trust,30/07/2020,(81200) Medical Surgical Supplies & Equipment,(id:41869) Medicine,SQUADRON MEDICAL LTD,id:12996698    , 578.59
Department of Health,Guys and St Thomas NHS Foundation Trust,24/07/2020,(81200) Medical Surgical Supplies & Equipment,(id:41869) Medicine,SQUADRON MEDICAL LTD,id:13170119    , 801.22
Department of Health,Guys and St Thomas NHS Foundation Trust,03/07/2020,(81100) Dressings,(id:41869) Medicine,SQUADRON MEDICAL LTD,id:13106337  ,  12.24
Department of Health,Guys and St Thomas NHS Foundation Trust,24/07/2020,(81100) Dressings,(id:41869) Medicine,SQUADRON MEDICAL LTD,id:13191159  ,  32.35
Department of Health,Guys and St Thomas NHS Foundation Trust,30/07/2020,(83640) IT Costs,(id:41869) Medicine,VIAPATH SERVICES LLP,id:13204754   ,4815.67
Department of Health,Guys and St Thomas NHS Foundation Trust,30/07/2020,(84657) Establishment,(id:41869) Medicine,IRON MOUNTAIN (UK) LTD,id:13177145 ,9962.18
Department of Health,Guys and St Thomas NHS Foundation Trust,03/07/2020,(81700) Lab Equipment Purchase,(id:41869) Medicine,SQUADRON MEDICAL LTD,id:13104460    ,  28.94
Department of Health,Guys and St Thomas NHS Foundation Trust,17/07/2020,(81700) Lab Equipment Purchase,(id:41869) Medicine,NHS SUPPLY CHAIN (MAIDSTONE),id:13090454 ,  34.62
Department of Health,Guys and St Thomas NHS Foundation Trust,24/07/2020,(81700) Lab Equipment Purchase,(id:41869) Medicine,SQUADRON MEDICAL LTD,id:13156485    ,  24.12
Department of Health,Guys and St Thomas NHS Foundation Trust,10/07/2020,(81700) Lab Equipment Purchase,(id:41869) Medicine,SQUADRON MEDICAL LTD,id:13135586    ,  24.12
Department of Health,Guys and St Thomas NHS Foundation Trust,03/07/2020,(82800) Bedding & Linen,(id:41868) Medicine,NHS SUPPLY CHAIN (MAIDSTONE),id:13050854   ,  80.35
Department of Health,Guys and St Thomas NHS Foundation Trust,17/07/2020,(82800) Bedding & Linen,(id:41868) Medicine,NHS SUPPLY CHAIN (MAIDSTONE),id:13075043   , 140.62
Department of Health,Guys and St Thomas NHS Foundation Trust,17/07/2020,(81100) Dressings,(id:41868) Medicine,NHS SUPPLY CHAIN (MAIDSTONE),id:13075043    ,   6.75
Department of Health,Guys and St Thomas NHS Foundation Trust,17/07/2020,(81200) Medical Surgical Supplies & Equipment,(id:41868) Medicine,NHS SUPPLY CHAIN (MAIDSTONE),id:13075043 , 203.97
Department of Health,Guys and St Thomas NHS Foundation Trust,03/07/2020,(83400) Office Equipment,(id:41868) Medicine,NHS SUPPLY CHAIN (MAIDSTONE),id:13036234  ,   3.36
Department of Health,Guys and St Thomas NHS Foundation Trust,17/07/2020,(81700) Lab Equipment Purchase,(id:41868) Medicine,NHS SUPPLY CHAIN (MAIDSTONE),id:13090454 ,  21.04
Department of Health,Guys and St Thomas NHS Foundation Trust,30/07/2020,(82000) Provisions & Kitchens,(id:41882) Medicine,NHS SUPPLY CHAIN (MAIDSTONE),id:13132074  ,  11.28
Department of Health,Guys and St Thomas NHS Foundation Trust,03/07/2020,(82000) Provisions & Kitchens,(id:41882) Medicine,NHS SUPPLY CHAIN (MAIDSTONE),id:13060017  ,   2.28
Department of Health,Guys and St Thomas NHS Foundation Trust,03/07/2020,(83400) Office Equipment,(id:41882) Medicine,NHS SUPPLY CHAIN (MAIDSTONE),id:13036234  ,   5.40
Department of Health,Guys and St Thomas NHS Foundation Trust,17/07/2020,(83400) Office Equipment,(id:41882) Medicine,NHS SUPPLY CHAIN (MAIDSTONE),id:13090454  ,  83.91
Department of Health,Guys and St Thomas NHS Foundation Trust,03/07/2020,(81700) Lab Equipment Purchase,(id:41882) Medicine,NHS SUPPLY CHAIN (MAIDSTONE),id:13060017 ,  38.88
Department of Health,Guys and St Thomas NHS Foundation Trust,17/07/2020,(82700) Uniforms & Clothing,(id:41880) Medicine,NHS SUPPLY CHAIN (MAIDSTONE),id:13075043    ,  10.56
Department of Health,Guys and St Thomas NHS Foundation Trust,17/07/2020,(82000) Provisions & Kitchens,(id:41880) Medicine,NHS SUPPLY CHAIN (MAIDSTONE),id:13090454  , 303.13
Department of Health,Guys and St Thomas NHS Foundation Trust,24/07/2020,(81200) Medical Surgical Supplies & Equipment,(id:41880) Medicine,NHS SUPPLY CHAIN (MAIDSTONE),id:13109396 , 394.69
Department of Health,Guys and St Thomas NHS Foundation Trust,17/07/2020,(82000) Provisions & Kitchens,(id:41879) Medicine,NHS SUPPLY CHAIN (MAIDSTONE),id:13090454  , 271.93
Department of Health,Guys and St Thomas NHS Foundation Trust,03/07/2020,(82000) Provisions & Kitchens,(id:41879) Medicine,NHS SUPPLY CHAIN (MAIDSTONE),id:13036234  ,  31.20
Department of Health,Guys and St Thomas NHS Foundation Trust,17/07/2020,(81100) Dressings,(id:41879) Medicine,NHS SUPPLY CHAIN (MAIDSTONE),id:13090454    , 163.57
Department of Health,Guys and St Thomas NHS Foundation Trust,30/07/2020,(50542) Unqualified Nursing Staff,(id:41879) Medicine,CONTINENTAL NURSE LTD,id:13212560,1252.75
Department of Health,Guys and St Thomas NHS Foundation Trust,03/07/2020,(81200) Medical Surgical Supplies & Equipment,(id:41879) Medicine,NHS SUPPLY CHAIN (MAIDSTONE),id:13036234 , 491.94
Department of Health,Guys and St Thomas NHS Foundation Trust,17/07/2020,(81200) Medical Surgical Supplies & Equipment,(id:41879) Medicine,NHS SUPPLY CHAIN (MAIDSTONE),id:13090454 , 385.71
Department of Health,Guys and St Thomas NHS Foundation Trust,03/07/2020,(82800) Bedding & Linen,(id:41878) Medicine,NHS SUPPLY CHAIN (MAIDSTONE),id:13060017   , 163.01
Department of Health,Guys and St Thomas NHS Foundation Trust,30/07/2020,(50552) Qualified Nursing Staff,(id:41878) Medicine,CONTINENTAL NURSE LTD,id:13212510  ,2845.07
Department of Health,Guys and St Thomas NHS Foundation Trust,17/07/2020,(50552) Qualified Nursing Staff,(id:41878) Medicine,CONTINENTAL NURSE LTD,id:13176748  , 655.48
Department of Health,Guys and St Thomas NHS Foundation Trust,03/07/2020,(81200) Medical Surgical Supplies & Equipment,(id:41878) Medicine,NHS SUPPLY CHAIN (MAIDSTONE),id:13060017 , 534.24
Department of Health,Guys and St Thomas NHS Foundation Trust,03/07/2020,(81700) Lab Equipment Purchase,(id:41878) Medicine,NHS SUPPLY CHAIN (MAIDSTONE),id:13050854 ,  15.72
Department of Health,Guys and St Thomas NHS Foundation Trust,17/07/2020,(81700) Lab Equipment Purchase,(id:41878) Medicine,NHS SUPPLY CHAIN (MAIDSTONE),id:13075043 ,  50.04
Department of Health,Guys and St Thomas NHS Foundation Trust,17/07/2020,(81700) Lab Equipment Purchase,(id:41878) Medicine,NHS SUPPLY CHAIN (MAIDSTONE),id:13090454 ,   6.29
Department of Health,Guys and St Thomas NHS Foundation Trust,03/07/2020,(81255) Medical Surgical Supplies & Equipment,(id:41878) Medicine,NHS SUPPLY CHAIN (MAIDSTONE),id:13060017 ,   1.56
Department of Health,Guys and St Thomas NHS Foundation Trust,03/07/2020,(81200) Medical Surgical Supplies & Equipment,(id:41876) Medicine,TYNETEC (AID CALL),id:13062043 ,1898.16
Department of Health,Guys and St Thomas NHS Foundation Trust,03/07/2020,(83410) Office Equipment,(id:41875) Medicine,RICOH UK LTD,id:13114845   ,  83.38
Department of Health,Guys and St Thomas NHS Foundation Trust,10/07/2020,(50552) Qualified Nursing Staff,(id:41881) Medicine,GLOBE LOCUMS LTD,id:13155501  , 682.88
Department of Health,Guys and St Thomas NHS Foundation Trust,03/07/2020,(50552) Qualified Nursing Staff,(id:41881) Medicine,PULSE HEALTHCARE LIMITED,id:13131908    ,1026.29
Department of Health,Guys and St Thomas NHS Foundation Trust,30/07/2020,(50522) Unqualified Nursing Staff,(id:41881) Medicine,MSI GROUP LTD,id:13212569   , 538.44
Department of Health,Guys and St Thomas NHS Foundation Trust,03/07/2020,(81225) Medical Surgical Supplies & Equipment,(id:41881) Medicine,NHS SUPPLY CHAIN (MAIDSTONE),id:13060017 ,  14.34
Department of Health,Guys and St Thomas NHS Foundation Trust,30/07/2020,(81225) Medical Surgical Supplies & Equipment,(id:41881) Medicine,NHS SUPPLY CHAIN (MAIDSTONE),id:13132074 ,  15.84
Department of Health,Guys and St Thomas NHS Foundation Trust,03/07/2020,(81700) Lab Equipment Purchase,(id:41881) Medicine,NHS SUPPLY CHAIN (MAIDSTONE),id:13050854 ,   9.07
Department of Health,Guys and St Thomas NHS Foundation Trust,17/07/2020,(81700) Lab Equipment Purchase,(id:41881) Medicine,NHS SUPPLY CHAIN (MAIDSTONE),id:13075043 ,  43.28
Department of Health,Guys and St Thomas NHS Foundation Trust,30/07/2020,(81200) Medical Surgical Supplies & Equipment,(id:4259419) Integrated Therapies and Rehabilitation,MEDITELLE LTD,id:13208315   ,1314.00
Department of Health,Guys and St Thomas NHS Foundation Trust,17/07/2020,(81200) Medical Surgical Supplies & Equipment,(id:42232) Integrated Therapies and Rehabilitation,NHS SUPPLY CHAIN (MAIDSTONE),id:13075043, 728.52
Department of Health,Guys and St Thomas NHS Foundation Trust,17/07/2020,(81225) Medical Surgical Supplies & Equipment,(id:42232) Integrated Therapies and Rehabilitation,NHS SUPPLY CHAIN (MAIDSTONE),id:13075043,  63.60
Department of Health,Guys and St Thomas NHS Foundation Trust,30/07/2020,(83500) Furniture & Fittings,(id:42230) Integrated Therapies and Rehabilitation,NHS SUPPLY CHAIN (MAIDSTONE),id:13132074  ,  84.00
Department of Health,Guys and St Thomas NHS Foundation Trust,30/07/2020,(81200) Medical Surgical Supplies & Equipment,(id:42230) Integrated Therapies and Rehabilitation,NHS SUPPLY CHAIN (MAIDSTONE),id:13132074, 145.44
Department of Health,Guys and St Thomas NHS Foundation Trust,17/07/2020,(81200) Medical Surgical Supplies & Equipment,(id:42230) Integrated Therapies and Rehabilitation,SCC PLC)SPECIALIST COMPUTER CENTRES,id:13162794   ,  18.00
Department of Health,Guys and St Thomas NHS Foundation Trust,28/07/2020,(51462) Occupational Therapists,(id:42240) Integrated Therapies and Rehabilitation,PRICEWATERHOUSECOOPERS LLP,id:13207034 ,2507.02
Department of Health,Guys and St Thomas NHS Foundation Trust,07/07/2020,(51462) Occupational Therapists,(id:42240) Integrated Therapies and Rehabilitation,PRICEWATERHOUSECOOPERS LLP,id:13147438 ,3579.05
Department of Health,Guys and St Thomas NHS Foundation Trust,30/07/2020,(81100) Dressings,(id:42239) Integrated Therapies and Rehabilitation,NHS SUPPLY CHAIN (MAIDSTONE),id:13132074   , 693.47
Department of Health,Guys and St Thomas NHS Foundation Trust,10/07/2020,(81225) Medical Surgical Supplies & Equipment,(id:42239) Integrated Therapies and Rehabilitation,PERFORMANCE HEALTH INTERNATIONAL LTD (PATTERSON),id:13132495, 413.71
Department of Health,Guys and St Thomas NHS Foundation Trust,24/07/2020,(81225) Medical Surgical Supplies & Equipment,(id:42239) Integrated Therapies and Rehabilitation,NHS SUPPLY CHAIN (MAIDSTONE),id:13109396,  64.56
Department of Health,Guys and St Thomas NHS Foundation Trust,17/07/2020,(81225) Medical Surgical Supplies & Equipment,(id:42239) Integrated Therapies and Rehabilitation,NHS SUPPLY CHAIN (MAIDSTONE),id:13090454,  96.84
Department of Health,Guys and St Thomas NHS Foundation Trust,30/07/2020,(83400) Office Equipment,(id:42239) Integrated Therapies and Rehabilitation,NHS SUPPLY CHAIN (MAIDSTONE),id:13132074 ,  42.66
Department of Health,Guys and St Thomas NHS Foundation Trust,03/07/2020,(81100) Dressings,(id:590530) Integrated Therapies and Rehabilitation,NHS SUPPLY CHAIN (MAIDSTONE),id:13060017  , 176.75
Department of Health,Guys and St Thomas NHS Foundation Trust,03/07/2020,(81100) Dressings,(id:590530) Integrated Therapies and Rehabilitation,BAILEY INSTRUMENTS LIMITED,id:13118154    , 510.00
Department of Health,Guys and St Thomas NHS Foundation Trust,03/07/2020,(81200) Medical Surgical Supplies & Equipment,(id:590530) Integrated Therapies and Rehabilitation,NHS SUPPLY CHAIN (MAIDSTONE),id:13050854    ,  41.18
Department of Health,Guys and St Thomas NHS Foundation Trust,24/07/2020,(81200) Medical Surgical Supplies & Equipment,(id:590530) Integrated Therapies and Rehabilitation,NHS SUPPLY CHAIN (MAIDSTONE),id:13109396    ,  54.91
Department of Health,Guys and St Thomas NHS Foundation Trust,28/07/2020,(51062) Chiropodists,(id:590530) Integrated Therapies and Rehabilitation,PRICEWATERHOUSECOOPERS LLP,id:13200554 ,-695.75
Department of Health,Guys and St Thomas NHS Foundation Trust,24/07/2020,(81000) Surgical Appliances,(id:42243) Integrated Therapies and Rehabilitation,TALAR MADE ORTHOTICS LTD,id:13188555  , 120.00
Department of Health,Guys and St Thomas NHS Foundation Trust,17/07/2020,(81100) Dressings,(id:42243) Integrated Therapies and Rehabilitation,NHS SUPPLY CHAIN (MAIDSTONE),id:13075043   , 250.76
Department of Health,Guys and St Thomas NHS Foundation Trust,07/07/2020,(53072) Speech Therapists,(id:42248) Integrated Therapies and Rehabilitation,PRICEWATERHOUSECOOPERS LLP,id:13147438  ,1392.32
Department of Health,Guys and St Thomas NHS Foundation Trust,24/07/2020,(81225) Medical Surgical Supplies & Equipment,(id:590499) Integrated Therapies and Rehabilitation,INVACARE LTD,id:13161020, 694.19
Department of Health,Guys and St Thomas NHS Foundation Trust,24/07/2020,(81225) Medical Surgical Supplies & Equipment,(id:590499) Integrated Therapies and Rehabilitation,RMS (REHABILITATION MANUFACTURING SERVICES LTD),id:13095721,1416.00
Department of Health,Guys and St Thomas NHS Foundation Trust,30/07/2020,(81225) Medical Surgical Supplies & Equipment,(id:590498) Integrated Therapies and Rehabilitation,NHS SUPPLY CHAIN (MAIDSTONE),id:13132074    ,  68.04
Department of Health,Guys and St Thomas NHS Foundation Trust,30/07/2020,(83400) Office Equipment,(id:42242) Integrated Therapies and Rehabilitation,NHS SUPPLY CHAIN (MAIDSTONE),id:13132074 , 193.42
Department of Health,Guys and St Thomas NHS Foundation Trust,03/07/2020,(81100) Dressings,(id:1042419) Integrated Therapies and Rehabilitation,NHS SUPPLY CHAIN (MAIDSTONE),id:13036234 , 332.52
Department of Health,Guys and St Thomas NHS Foundation Trust,03/07/2020,(81100) Dressings,(id:1042419) Integrated Therapies and Rehabilitation,NHS SUPPLY CHAIN (MAIDSTONE),id:13050854 , 238.37
Department of Health,Guys and St Thomas NHS Foundation Trust,24/07/2020,(83400) Office Equipment,(id:42255) Integrated Local Services,OFFICE DEPOT UK LTD,id:13190265    ,    -1676.40
Department of Health,Guys and St Thomas NHS Foundation Trust,10/07/2020,(83880) Building & Engineering,(id:590598) Integrated Local Services,G&M BUILDING CONTRACTORS ESSEX LTD,id:13087335  ,2645.00
Department of Health,Guys and St Thomas NHS Foundation Trust,03/07/2020,(83400) Office Equipment,(id:590597) Integrated Local Services,NHS SUPPLY CHAIN (MAIDSTONE),id:13060017    ,  27.59
Department of Health,Guys and St Thomas NHS Foundation Trust,17/07/2020,(82000) Provisions & Kitchens,(id:590597) Integrated Local Services,NHS SUPPLY CHAIN (MAIDSTONE),id:13090454    ,  12.88
Department of Health,Guys and St Thomas NHS Foundation Trust,10/07/2020,(83880) Building & Engineering,(id:4631420) Integrated Local Services,REDLAND CONSTRUCTION LIMITED,id:13153540  ,2992.00
Department of Health,Guys and St Thomas NHS Foundation Trust,24/07/2020,(82800) Bedding & Linen,(id:590579) Integrated Local Services,NHS SUPPLY CHAIN (MAIDSTONE),id:13109396,  20.09
Department of Health,Guys and St Thomas NHS Foundation Trust,24/07/2020,(81200) Medical Surgical Supplies & Equipment,(id:590579) Integrated Local Services,NHS SUPPLY CHAIN (MAIDSTONE),id:13109396   ,  43.54
Department of Health,Guys and St Thomas NHS Foundation Trust,30/07/2020,(50562) Qualified Nursing Staff,(id:590563) Integrated Local Services,CONTINENTAL NURSE LTD,id:13212654    ,2313.75
Department of Health,Guys and St Thomas NHS Foundation Trust,10/07/2020,(50562) Qualified Nursing Staff,(id:590563) Integrated Local Services,CONTINENTAL NURSE LTD,id:13155434    ,2313.75
Department of Health,Guys and St Thomas NHS Foundation Trust,03/07/2020,(86300) Healthcare from non-NHS bodies,(id:590563) Integrated Local Services,PAVILION MEDICAL CENTRE,id:13137536, 501.60
Department of Health,Guys and St Thomas NHS Foundation Trust,28/07/2020,(51872) Physiotherapists,(id:1885422) Integrated Local Services,PRICEWATERHOUSECOOPERS LLP,id:13207034,1304.89
Department of Health,Guys and St Thomas NHS Foundation Trust,28/07/2020,(51862) Physiotherapists,(id:1885424) Integrated Local Services,PRICEWATERHOUSECOOPERS LLP,id:13200554,5014.54
Department of Health,Guys and St Thomas NHS Foundation Trust,07/07/2020,(51862) Physiotherapists,(id:1371419) Integrated Local Services,PRICEWATERHOUSECOOPERS LLP,id:13147438,2817.16
Department of Health,Guys and St Thomas NHS Foundation Trust,28/07/2020,(51862) Physiotherapists,(id:1371419) Integrated Local Services,PRICEWATERHOUSECOOPERS LLP,id:13200554,1175.41
Department of Health,Guys and St Thomas NHS Foundation Trust,14/07/2020,(51872) Physiotherapists,(id:1371419) Integrated Local Services,PRICEWATERHOUSECOOPERS LLP,id:13164114,3165.26
Department of Health,Guys and St Thomas NHS Foundation Trust,30/07/2020,(50562) Qualified Nursing Staff,(id:1371419) Integrated Local Services,MSI GROUP LTD,id:13212493 ,1350.42
Department of Health,Guys and St Thomas NHS Foundation Trust,28/07/2020,(51472) Occupational Therapists,(id:699422) Integrated Local Services,PRICEWATERHOUSECOOPERS LLP,id:13200554    , 842.11
Department of Health,Guys and St Thomas NHS Foundation Trust,10/07/2020,(83610) IT Costs,(id:699422) Integrated Local Services,SKYGUARD LTD,id:13091264   , 670.68
Department of Health,Guys and St Thomas NHS Foundation Trust,14/07/2020,(51832) Physiotherapists,(id:590523) Integrated Local Services,PRICEWATERHOUSECOOPERS LLP,id:13164114 ,3717.45
Department of Health,Guys and St Thomas NHS Foundation Trust,03/07/2020,(81200) Medical Surgical Supplies & Equipment,(id:590492) Integrated Local Services,NHS SUPPLY CHAIN (MAIDSTONE),id:13060017   ,  48.60
Department of Health,Guys and St Thomas NHS Foundation Trust,24/07/2020,(89595) Non-Healthcare from Foundation Trusts,(id:590492) Integrated Local Services,KING'S COLLEGE HOSPITAL NHS FOUNDATION TRUST,id:13159715  ,3913.82
Department of Health,Guys and St Thomas NHS Foundation Trust,17/07/2020,(83400) Office Equipment,(id:590492) Integrated Local Services,NHS SUPPLY CHAIN (MAIDSTONE),id:13075043    ,  53.56
Department of Health,Guys and St Thomas NHS Foundation Trust,14/07/2020,(51462) Occupational Therapists,(id:590492) Integrated Local Services,PRICEWATERHOUSECOOPERS LLP,id:13164114    ,1241.56
Department of Health,Guys and St Thomas NHS Foundation Trust,30/07/2020,(81225) Medical Surgical Supplies & Equipment,(id:1913419) Integrated Local Services,NHS SUPPLY CHAIN (MAIDSTONE),id:13132074  ,  58.53
Department of Health,Guys and St Thomas NHS Foundation Trust,28/07/2020,(51862) Physiotherapists,(id:684420) Integrated Local Services,PRICEWATERHOUSECOOPERS LLP,id:13200554 ,1002.12
Department of Health,Guys and St Thomas NHS Foundation Trust,07/07/2020,(51842) Physiotherapists,(id:684419) Integrated Local Services,PRICEWATERHOUSECOOPERS LLP,id:13147438 ,1427.83
Department of Health,Guys and St Thomas NHS Foundation Trust,17/07/2020,(50552) Qualified Nursing Staff,(id:4460419) Integrated Local Services,YOUR WORLD RECRUITMENT LIMITED(YOUR WORLD HEALTHCARE),id:13169871 , 790.20
Department of Health,Guys and St Thomas NHS Foundation Trust,24/07/2020,(81100) Dressings,(id:590522) Integrated Local Services,NHS SUPPLY CHAIN (MAIDSTONE),id:13109396 , 130.20
Department of Health,Guys and St Thomas NHS Foundation Trust,03/07/2020,(81100) Dressings,(id:590522) Integrated Local Services,NHS SUPPLY CHAIN (MAIDSTONE),id:13050854 , 132.00
Department of Health,Guys and St Thomas NHS Foundation Trust,24/07/2020,(50552) Qualified Nursing Staff,(id:590522) Integrated Local Services,NURSING 2000 LTD,id:13198442    ,1028.77
Department of Health,Guys and St Thomas NHS Foundation Trust,24/07/2020,(50552) Qualified Nursing Staff,(id:590522) Integrated Local Services,NURSING 2000 LTD,id:13198471    ,1028.77
Department of Health,Guys and St Thomas NHS Foundation Trust,17/07/2020,(81700) Lab Equipment Purchase,(id:590521) Integrated Local Services,NHS SUPPLY CHAIN (MAIDSTONE),id:13075043   ,  19.72
Department of Health,Guys and St Thomas NHS Foundation Trust,03/07/2020,(81100) Dressings,(id:590521) Integrated Local Services,NHS SUPPLY CHAIN (MAIDSTONE),id:13060017 , 333.97
Department of Health,Guys and St Thomas NHS Foundation Trust,24/07/2020,(50552) Qualified Nursing Staff,(id:590521) Integrated Local Services,NURSING 2000 LTD,id:13198447    ,1028.13
Department of Health,Guys and St Thomas NHS Foundation Trust,24/07/2020,(50552) Qualified Nursing Staff,(id:590521) Integrated Local Services,NURSING 2000 LTD,id:13198456    , 822.79
Department of Health,Guys and St Thomas NHS Foundation Trust,17/07/2020,(50552) Qualified Nursing Staff,(id:590521) Integrated Local Services,NURSING 2000 LTD,id:13176749    , 661.20
Department of Health,Guys and St Thomas NHS Foundation Trust,17/07/2020,(82800) Bedding & Linen,(id:590521) Integrated Local Services,NHS SUPPLY CHAIN (MAIDSTONE),id:13075043,  17.58
Department of Health,Guys and St Thomas NHS Foundation Trust,17/07/2020,(50532) Unqualified Nursing Staff,(id:590521) Integrated Local Services,NURSING 2000 LTD,id:13176938  , 706.89
Department of Health,Guys and St Thomas NHS Foundation Trust,17/07/2020,(50532) Unqualified Nursing Staff,(id:590521) Integrated Local Services,NURSING 2000 LTD,id:13176936  , 706.89
Department of Health,Guys and St Thomas NHS Foundation Trust,17/07/2020,(50532) Unqualified Nursing Staff,(id:590521) Integrated Local Services,NURSING 2000 LTD,id:13177879  , 717.02
Department of Health,Guys and St Thomas NHS Foundation Trust,24/07/2020,(50552) Qualified Nursing Staff,(id:590520) Integrated Local Services,CARE PROVIDERS HEALTHCARE,id:13191365, 596.25
Department of Health,Guys and St Thomas NHS Foundation Trust,24/07/2020,(50552) Qualified Nursing Staff,(id:590520) Integrated Local Services,CARE PROVIDERS HEALTHCARE,id:13191398, 596.25
Department of Health,Guys and St Thomas NHS Foundation Trust,24/07/2020,(50552) Qualified Nursing Staff,(id:590520) Integrated Local Services,CARE PROVIDERS HEALTHCARE,id:13191420, 795.00
Department of Health,Guys and St Thomas NHS Foundation Trust,03/07/2020,(83400) Office Equipment,(id:590473) Integrated Local Services,NHS SUPPLY CHAIN (MAIDSTONE),id:13060017    ,   5.47
Department of Health,Guys and St Thomas NHS Foundation Trust,17/07/2020,(81100) Dressings,(id:590473) Integrated Local Services,NHS SUPPLY CHAIN (MAIDSTONE),id:13090454 , 172.07
Department of Health,Guys and St Thomas NHS Foundation Trust,03/07/2020,(81100) Dressings,(id:590473) Integrated Local Services,NHS SUPPLY CHAIN (MAIDSTONE),id:13060017 ,  81.07
Department of Health,Guys and St Thomas NHS Foundation Trust,03/07/2020,(81200) Medical Surgical Supplies & Equipment,(id:590473) Integrated Local Services,NHS SUPPLY CHAIN (MAIDSTONE),id:13036234   , 448.70
Department of Health,Guys and St Thomas NHS Foundation Trust,24/07/2020,(81200) Medical Surgical Supplies & Equipment,(id:590473) Integrated Local Services,NHS SUPPLY CHAIN (MAIDSTONE),id:13109396   ,  90.72
Department of Health,Guys and St Thomas NHS Foundation Trust,03/07/2020,(82800) Bedding & Linen,(id:590473) Integrated Local Services,NHS SUPPLY CHAIN (MAIDSTONE),id:13060017,  40.18
Department of Health,Guys and St Thomas NHS Foundation Trust,03/07/2020,(82000) Provisions & Kitchens,(id:590473) Integrated Local Services,NHS SUPPLY CHAIN (MAIDSTONE),id:13036234    ,  10.50
Department of Health,Guys and St Thomas NHS Foundation Trust,03/07/2020,(81100) Dressings,(id:590471) Integrated Local Services,NHS SUPPLY CHAIN (MAIDSTONE),id:13050854 , 177.88
Department of Health,Guys and St Thomas NHS Foundation Trust,17/07/2020,(82800) Bedding & Linen,(id:590471) Integrated Local Services,NHS SUPPLY CHAIN (MAIDSTONE),id:13090454,  20.09
Department of Health,Guys and St Thomas NHS Foundation Trust,03/07/2020,(83400) Office Equipment,(id:590470) Integrated Local Services,NHS SUPPLY CHAIN (MAIDSTONE),id:13050854    ,   7.20
Department of Health,Guys and St Thomas NHS Foundation Trust,03/07/2020,(81100) Dressings,(id:590535) Integrated Local Services,NHS SUPPLY CHAIN (MAIDSTONE),id:13036234 ,   1.02
Department of Health,Guys and St Thomas NHS Foundation Trust,24/07/2020,(81200) Medical Surgical Supplies & Equipment,(id:590481) Integrated Local Services,NHS SUPPLY CHAIN (MAIDSTONE),id:13183237   ,1241.20
Department of Health,Guys and St Thomas NHS Foundation Trust,24/07/2020,(81200) Medical Surgical Supplies & Equipment,(id:590481) Integrated Local Services,NHS SUPPLY CHAIN (MAIDSTONE),id:13183035   ,1858.83
Department of Health,Guys and St Thomas NHS Foundation Trust,24/07/2020,(81200) Medical Surgical Supplies & Equipment,(id:590481) Integrated Local Services,NHS SUPPLY CHAIN (MAIDSTONE),id:13182734   ,8453.35
Department of Health,Guys and St Thomas NHS Foundation Trust,03/07/2020,(82000) Provisions & Kitchens,(id:590527) Integrated Local Services,NHS SUPPLY CHAIN (MAIDSTONE),id:13036234    ,  76.49
Department of Health,Guys and St Thomas NHS Foundation Trust,17/07/2020,(82000) Provisions & Kitchens,(id:590527) Integrated Local Services,NHS SUPPLY CHAIN (MAIDSTONE),id:13075043    ,  59.76
Department of Health,Guys and St Thomas NHS Foundation Trust,24/07/2020,(83400) Office Equipment,(id:590527) Integrated Local Services,NHS SUPPLY CHAIN (MAIDSTONE),id:13109396    ,  82.20
Department of Health,Guys and St Thomas NHS Foundation Trust,17/07/2020,(81200) Medical Surgical Supplies & Equipment,(id:590527) Integrated Local Services,NHS SUPPLY CHAIN (MAIDSTONE),id:13075043   , 312.33
Department of Health,Guys and St Thomas NHS Foundation Trust,17/07/2020,(82700) Uniforms & Clothing,(id:590527) Integrated Local Services,NHS SUPPLY CHAIN (MAIDSTONE),id:13090454 , 133.60
Department of Health,Guys and St Thomas NHS Foundation Trust,30/07/2020,(81100) Dressings,(id:590527) Integrated Local Services,NHS SUPPLY CHAIN (MAIDSTONE),id:13132074 , 470.96
Department of Health,Guys and St Thomas NHS Foundation Trust,03/07/2020,(81200) Medical Surgical Supplies & Equipment,(id:590526) Integrated Local Services,NHS SUPPLY CHAIN (MAIDSTONE),id:13050854   , 145.59
Department of Health,Guys and St Thomas NHS Foundation Trust,03/07/2020,(83400) Office Equipment,(id:590526) Integrated Local Services,NHS SUPPLY CHAIN (MAIDSTONE),id:13060017    , 182.62
Department of Health,Guys and St Thomas NHS Foundation Trust,03/07/2020,(82000) Provisions & Kitchens,(id:590526) Integrated Local Services,NHS SUPPLY CHAIN (MAIDSTONE),id:13050854    ,  48.61
Department of Health,Guys and St Thomas NHS Foundation Trust,03/07/2020,(81100) Dressings,(id:590526) Integrated Local Services,NHS SUPPLY CHAIN (MAIDSTONE),id:13050854 , 247.24
Department of Health,Guys and St Thomas NHS Foundation Trust,10/07/2020,(89270) Establishment,(id:903421) Integrated Local Services,SELDOC LTD,id:13146894,    23962.00
Department of Health,Guys and St Thomas NHS Foundation Trust,07/07/2020,(51872) Physiotherapists,(id:903421) Integrated Local Services,PRICEWATERHOUSECOOPERS LLP,id:13147438 ,1943.30
Department of Health,Guys and St Thomas NHS Foundation Trust,24/07/2020,(50552) Qualified Nursing Staff,(id:4263423) Integrated Local Services,NURSING 2000 LTD,id:13191378   , 596.27
Department of Health,Guys and St Thomas NHS Foundation Trust,10/07/2020,(84657) Establishment,(id:590608) Integrated Care SBU Management,IRON MOUNTAIN (UK) LTD,id:13133094   , 655.80
Department of Health,Guys and St Thomas NHS Foundation Trust,30/07/2020,(81100) Dressings,(id:42518) Evelina Womens Services,NHS SUPPLY CHAIN (MAIDSTONE),id:13132074    ,  34.58
Department of Health,Guys and St Thomas NHS Foundation Trust,03/07/2020,(81200) Medical Surgical Supplies & Equipment,(id:42518) Evelina Womens Services,NHS SUPPLY CHAIN (MAIDSTONE),id:13036234 ,  29.87
Department of Health,Guys and St Thomas NHS Foundation Trust,17/07/2020,(82000) Provisions & Kitchens,(id:42517) Evelina Womens Services,NHS SUPPLY CHAIN (MAIDSTONE),id:13090454  ,  23.40
Department of Health,Guys and St Thomas NHS Foundation Trust,03/07/2020,(82800) Bedding & Linen,(id:42517) Evelina Womens Services,NHS SUPPLY CHAIN (MAIDSTONE),id:13050854   ,  20.09
Department of Health,Guys and St Thomas NHS Foundation Trust,24/07/2020,(80100) Drug Costs,(id:42517) Evelina Womens Services,BOC LTD :02107500,id:13180794    ,2270.97
Department of Health,Guys and St Thomas NHS Foundation Trust,10/07/2020,(81400) Medical Surgical Supplies & Equipment,(id:42517) Evelina Womens Services,THERMO ELECTRON MANUFACTURING LTD/THERMO FISHER SCIENTIFIC,id:13147130 ,3480.35
Department of Health,Guys and St Thomas NHS Foundation Trust,24/07/2020,(89270) Establishment,(id:42517) Evelina Womens Services,PERSONAL HOMECARE PHARMACY LTD,id:13188053   ,7079.70
Department of Health,Guys and St Thomas NHS Foundation Trust,24/07/2020,(89270) Establishment,(id:42517) Evelina Womens Services,PERSONAL HOMECARE PHARMACY LTD,id:13188057   ,   -12930.52
Department of Health,Guys and St Thomas NHS Foundation Trust,03/07/2020,(89270) Establishment,(id:42517) Evelina Womens Services,FERTILITY AND GYNAECOLOGY CARE LTD,id:13134147    ,    19900.00
Department of Health,Guys and St Thomas NHS Foundation Trust,24/07/2020,(83130) Energy Costs,(id:42517) Evelina Womens Services,BOC LTD :02107500,id:13181034  ,2846.93
Department of Health,Guys and St Thomas NHS Foundation Trust,10/07/2020,(81200) Medical Surgical Supplies & Equipment,(id:42517) Evelina Womens Services,COOK UK LTD,id:13132675   ,6480.00
Department of Health,Guys and St Thomas NHS Foundation Trust,03/07/2020,(81275) Medical Surgical Supplies & Equipment,(id:42517) Evelina Womens Services,ORIGIO LTD DELTA PARK,id:13131660   ,1673.36
Department of Health,Guys and St Thomas NHS Foundation Trust,27/07/2020,(83610) IT Costs,(id:42514) Evelina Womens Services,GSTT PROCUREMENT CARD,id:13203274  ,  51.99
Department of Health,Guys and St Thomas NHS Foundation Trust,10/07/2020,(83755) Rental under Operating Lease,(id:42514) Evelina Womens Services,COMMUNITY HEALTH PARTNERSHIPS,id:13141794    ,4790.22
Department of Health,Guys and St Thomas NHS Foundation Trust,30/07/2020,(83400) Office Equipment,(id:42513) Evelina Womens Services,NHS SUPPLY CHAIN (MAIDSTONE),id:13132074  ,  89.33
Department of Health,Guys and St Thomas NHS Foundation Trust,03/07/2020,(82000) Provisions & Kitchens,(id:42513) Evelina Womens Services,NHS SUPPLY CHAIN (MAIDSTONE),id:13036234  ,  29.25
Department of Health,Guys and St Thomas NHS Foundation Trust,03/07/2020,(82000) Provisions & Kitchens,(id:42513) Evelina Womens Services,NHS SUPPLY CHAIN (MAIDSTONE),id:13060017  , 126.88
Department of Health,Guys and St Thomas NHS Foundation Trust,30/07/2020,(83400) Office Equipment,(id:42510) Evelina Womens Services,NHS SUPPLY CHAIN (MAIDSTONE),id:13132074  ,  51.44
Department of Health,Guys and St Thomas NHS Foundation Trust,03/07/2020,(82800) Bedding & Linen,(id:42510) Evelina Womens Services,NHS SUPPLY CHAIN (MAIDSTONE),id:13050854   ,  24.48
Department of Health,Guys and St Thomas NHS Foundation Trust,03/07/2020,(82800) Bedding & Linen,(id:42510) Evelina Womens Services,NHS SUPPLY CHAIN (MAIDSTONE),id:13036234   ,  46.52
Department of Health,Guys and St Thomas NHS Foundation Trust,03/07/2020,(81200) Medical Surgical Supplies & Equipment,(id:42509) Evelina Womens Services,NHS SUPPLY CHAIN (MAIDSTONE),id:13060017 ,   3.37
Department of Health,Guys and St Thomas NHS Foundation Trust,17/07/2020,(81200) Medical Surgical Supplies & Equipment,(id:42509) Evelina Womens Services,SQUADRON MEDICAL LTD,id:13139484    , 696.38
Department of Health,Guys and St Thomas NHS Foundation Trust,17/07/2020,(83400) Office Equipment,(id:42508) Evelina Womens Services,NHS SUPPLY CHAIN (MAIDSTONE),id:13090454  ,  12.64
Department of Health,Guys and St Thomas NHS Foundation Trust,17/07/2020,(81200) Medical Surgical Supplies & Equipment,(id:42506) Evelina Womens Services,NHS SUPPLY CHAIN (MAIDSTONE),id:13075043 , 547.26
Department of Health,Guys and St Thomas NHS Foundation Trust,17/07/2020,(81700) Lab Equipment Purchase,(id:42506) Evelina Womens Services,NHS SUPPLY CHAIN (MAIDSTONE),id:13075043 ,  90.04
Department of Health,Guys and St Thomas NHS Foundation Trust,17/07/2020,(81700) Lab Equipment Purchase,(id:42506) Evelina Womens Services,NHS SUPPLY CHAIN (MAIDSTONE),id:13090454 ,   3.17
Department of Health,Guys and St Thomas NHS Foundation Trust,30/07/2020,(81700) Lab Equipment Purchase,(id:42506) Evelina Womens Services,NHS SUPPLY CHAIN (MAIDSTONE),id:13132074 ,  11.86
Department of Health,Guys and St Thomas NHS Foundation Trust,03/07/2020,(81225) Medical Surgical Supplies & Equipment,(id:42506) Evelina Womens Services,NHS SUPPLY CHAIN (MAIDSTONE),id:13050854 ,  32.04
Department of Health,Guys and St Thomas NHS Foundation Trust,03/07/2020,(82800) Bedding & Linen,(id:42506) Evelina Womens Services,NHS SUPPLY CHAIN (MAIDSTONE),id:13060017   , 278.40
Department of Health,Guys and St Thomas NHS Foundation Trust,17/07/2020,(81700) Lab Equipment Purchase,(id:42486) Evelina Womens Services,NHS SUPPLY CHAIN (MAIDSTONE),id:13075043 ,  24.66
Department of Health,Guys and St Thomas NHS Foundation Trust,03/07/2020,(83400) Office Equipment,(id:42486) Evelina Womens Services,NHS SUPPLY CHAIN (MAIDSTONE),id:13036234  ,  26.15
Department of Health,Guys and St Thomas NHS Foundation Trust,03/07/2020,(82800) Bedding & Linen,(id:42488) Evelina Womens Services,NHS SUPPLY CHAIN (MAIDSTONE),id:13036234   ,   5.33
Department of Health,Guys and St Thomas NHS Foundation Trust,03/07/2020,(82800) Bedding & Linen,(id:42488) Evelina Womens Services,NHS SUPPLY CHAIN (MAIDSTONE),id:13060017   ,  25.54
Department of Health,Guys and St Thomas NHS Foundation Trust,24/07/2020,(81400) Medical Surgical Supplies & Equipment,(id:42488) Evelina Womens Services,NHS SUPPLY CHAIN ( CAPITAL FUND ONLY),id:13192968  ,1433.00
Department of Health,Guys and St Thomas NHS Foundation Trust,10/07/2020,(82000) Provisions & Kitchens,(id:42496) Evelina Womens Services,UNA HEALTH LTD,id:13123897 ,2816.49
Department of Health,Guys and St Thomas NHS Foundation Trust,17/07/2020,(83400) Office Equipment,(id:42496) Evelina Womens Services,NHS SUPPLY CHAIN (MAIDSTONE),id:13090454  ,  99.94
Department of Health,Guys and St Thomas NHS Foundation Trust,17/07/2020,(81275) Medical Surgical Supplies & Equipment,(id:42496) Evelina Womens Services,NHS SUPPLY CHAIN (MAIDSTONE),id:13075043 ,   5.93
Department of Health,Guys and St Thomas NHS Foundation Trust,17/07/2020,(81275) Medical Surgical Supplies & Equipment,(id:42496) Evelina Womens Services,NHS SUPPLY CHAIN (MAIDSTONE),id:13090454 ,   5.93
Department of Health,Guys and St Thomas NHS Foundation Trust,03/07/2020,(81200) Medical Surgical Supplies & Equipment,(id:42496) Evelina Womens Services,NHS SUPPLY CHAIN (MAIDSTONE),id:13036234 , 114.36
Department of Health,Guys and St Thomas NHS Foundation Trust,24/07/2020,(81200) Medical Surgical Supplies & Equipment,(id:42496) Evelina Womens Services,NHS SUPPLY CHAIN (MAIDSTONE),id:13109396 ,  48.70
Department of Health,Guys and St Thomas NHS Foundation Trust,24/07/2020,(81100) Dressings,(id:42496) Evelina Womens Services,NHS SUPPLY CHAIN (MAIDSTONE),id:13109396    ,   2.53
Department of Health,Guys and St Thomas NHS Foundation Trust,17/07/2020,(82000) Provisions & Kitchens,(id:42493) Evelina Womens Services,NHS SUPPLY CHAIN (MAIDSTONE),id:13075043  ,  51.86
Department of Health,Guys and St Thomas NHS Foundation Trust,30/07/2020,(82800) Bedding & Linen,(id:42493) Evelina Womens Services,NHS SUPPLY CHAIN (MAIDSTONE),id:13132074   ,  42.56
Department of Health,Guys and St Thomas NHS Foundation Trust,03/07/2020,(81100) Dressings,(id:42493) Evelina Womens Services,NHS SUPPLY CHAIN (MAIDSTONE),id:13036234    ,  87.62
Department of Health,Guys and St Thomas NHS Foundation Trust,03/07/2020,(82700) Uniforms & Clothing,(id:42492) Evelina Womens Services,NHS SUPPLY CHAIN (MAIDSTONE),id:13036234    ,  80.45
Department of Health,Guys and St Thomas NHS Foundation Trust,17/07/2020,(82000) Provisions & Kitchens,(id:42492) Evelina Womens Services,NHS SUPPLY CHAIN (MAIDSTONE),id:13075043  ,  94.97
Department of Health,Guys and St Thomas NHS Foundation Trust,17/07/2020,(81100) Dressings,(id:42492) Evelina Womens Services,NHS SUPPLY CHAIN (MAIDSTONE),id:13090454    ,1068.98
Department of Health,Guys and St Thomas NHS Foundation Trust,03/07/2020,(81100) Dressings,(id:42492) Evelina Womens Services,NHS SUPPLY CHAIN (MAIDSTONE),id:13036234    ,1016.02
Department of Health,Guys and St Thomas NHS Foundation Trust,30/07/2020,(81200) Medical Surgical Supplies & Equipment,(id:42492) Evelina Womens Services,JOHNSON & JOHNSON MEDICAL LTD,id:13189006, 610.56
Department of Health,Guys and St Thomas NHS Foundation Trust,10/07/2020,(81200) Medical Surgical Supplies & Equipment,(id:42492) Evelina Womens Services,SQUADRON MEDICAL LTD,id:13100296    ,1653.12
Department of Health,Guys and St Thomas NHS Foundation Trust,17/07/2020,(81225) Medical Surgical Supplies & Equipment,(id:42492) Evelina Womens Services,NHS SUPPLY CHAIN (MAIDSTONE),id:13075043 , 239.28
Department of Health,Guys and St Thomas NHS Foundation Trust,03/07/2020,(81225) Medical Surgical Supplies & Equipment,(id:42492) Evelina Womens Services,NHS SUPPLY CHAIN (MAIDSTONE),id:13036234 , 191.64
Department of Health,Guys and St Thomas NHS Foundation Trust,24/07/2020,(81700) Lab Equipment Purchase,(id:42492) Evelina Womens Services,NHS SUPPLY CHAIN (MAIDSTONE),id:13109396 ,  41.38
Department of Health,Guys and St Thomas NHS Foundation Trust,03/07/2020,(81700) Lab Equipment Purchase,(id:42492) Evelina Womens Services,NHS SUPPLY CHAIN (MAIDSTONE),id:13060017 ,  14.36
Department of Health,Guys and St Thomas NHS Foundation Trust,17/07/2020,(82000) Provisions & Kitchens,(id:42491) Evelina Womens Services,NHS SUPPLY CHAIN (MAIDSTONE),id:13075043  , 257.98
Department of Health,Guys and St Thomas NHS Foundation Trust,03/07/2020,(83400) Office Equipment,(id:42491) Evelina Womens Services,NHS SUPPLY CHAIN (MAIDSTONE),id:13036234  ,  35.57
Department of Health,Guys and St Thomas NHS Foundation Trust,30/07/2020,(81200) Medical Surgical Supplies & Equipment,(id:42491) Evelina Womens Services,NHS SUPPLY CHAIN (MAIDSTONE),id:13132074 , 713.36
Department of Health,Guys and St Thomas NHS Foundation Trust,10/07/2020,(50202) Consultants,(id:42504) Evelina Womens Services,HEALTHMEDIX LTD,id:13157234,4541.92
Department of Health,Guys and St Thomas NHS Foundation Trust,17/07/2020,(89595) Non-Healthcare from Foundation Trusts,(id:42504) Evelina Womens Services,CHELSEA AND WESTMINSTER HOSPITAL NHS FOUNDATION TRUST,id:12386311 , 604.89
Department of Health,Guys and St Thomas NHS Foundation Trust,17/07/2020,(89595) Non-Healthcare from Foundation Trusts,(id:42504) Evelina Womens Services,CHELSEA AND WESTMINSTER HOSPITAL NHS FOUNDATION TRUST,id:11757431 , 671.15
Department of Health,Guys and St Thomas NHS Foundation Trust,17/07/2020,(89595) Non-Healthcare from Foundation Trusts,(id:42504) Evelina Womens Services,CHELSEA AND WESTMINSTER HOSPITAL NHS FOUNDATION TRUST,id:12515605 , 744.48
Department of Health,Guys and St Thomas NHS Foundation Trust,17/07/2020,(89595) Non-Healthcare from Foundation Trusts,(id:42504) Evelina Womens Services,CHELSEA AND WESTMINSTER HOSPITAL NHS FOUNDATION TRUST,id:12515609 , 850.72
Department of Health,Guys and St Thomas NHS Foundation Trust,17/07/2020,(89595) Non-Healthcare from Foundation Trusts,(id:42504) Evelina Womens Services,CHELSEA AND WESTMINSTER HOSPITAL NHS FOUNDATION TRUST,id:12386392 ,1023.66
Department of Health,Guys and St Thomas NHS Foundation Trust,17/07/2020,(89595) Non-Healthcare from Foundation Trusts,(id:42504) Evelina Womens Services,ROYAL FREE LONDON NHS FOUNDATION TRUST,id:12660141 ,6453.03
Department of Health,Guys and St Thomas NHS Foundation Trust,17/07/2020,(89595) Non-Healthcare from Foundation Trusts,(id:42504) Evelina Womens Services,ST GEORGE'S UNIVERSITY HOSPITALS NHS FOUNDATION TRUST,id:13049457 ,8775.98
Department of Health,Guys and St Thomas NHS Foundation Trust,03/07/2020,(89640) Non-Healthcare from NHS Trusts,(id:42504) Evelina Womens Services,HOUNSLOW AND RICHMOND COMMUNITY HEALTHCARE NHS TRUST,id:11496151    , 611.00
Department of Health,Guys and St Thomas NHS Foundation Trust,17/07/2020,(89600) Non-Healthcare from other NHS bodies,(id:42504) Evelina Womens Services,CHELSEA AND WESTMINSTER HOSPITAL NHS FOUNDATION TRUST,id:12575290  , 850.72
Department of Health,Guys and St Thomas NHS Foundation Trust,03/07/2020,(82800) Bedding & Linen,(id:42348) Evelina Central,NHS SUPPLY CHAIN (MAIDSTONE),id:13050854 ,  68.93
Department of Health,Guys and St Thomas NHS Foundation Trust,03/07/2020,(81100) Dressings,(id:42348) Evelina Central,NHS SUPPLY CHAIN (MAIDSTONE),id:13060017  , 163.05
Department of Health,Guys and St Thomas NHS Foundation Trust,30/07/2020,(81100) Dressings,(id:42348) Evelina Central,NHS SUPPLY CHAIN (MAIDSTONE),id:13132074  , 156.35
Department of Health,Guys and St Thomas NHS Foundation Trust,17/07/2020,(81200) Medical Surgical Supplies & Equipment,(id:42348) Evelina Central,NHS SUPPLY CHAIN (MAIDSTONE),id:13075043    , 635.63
Department of Health,Guys and St Thomas NHS Foundation Trust,30/07/2020,(81200) Medical Surgical Supplies & Equipment,(id:42348) Evelina Central,NHS SUPPLY CHAIN (MAIDSTONE),id:13132074    , 491.43
Department of Health,Guys and St Thomas NHS Foundation Trust,03/07/2020,(81700) Lab Equipment Purchase,(id:42348) Evelina Central,NHS SUPPLY CHAIN (MAIDSTONE),id:13036234    ,  52.86
Department of Health,Guys and St Thomas NHS Foundation Trust,03/07/2020,(82700) Uniforms & Clothing,(id:42331) Evelina Central,NHS SUPPLY CHAIN (MAIDSTONE),id:13050854  ,  18.20
Department of Health,Guys and St Thomas NHS Foundation Trust,03/07/2020,(81275) Medical Surgical Supplies & Equipment,(id:42331) Evelina Central,NHS SUPPLY CHAIN (MAIDSTONE),id:13060017    ,  10.92
Department of Health,Guys and St Thomas NHS Foundation Trust,17/07/2020,(81100) Dressings,(id:42331) Evelina Central,NHS SUPPLY CHAIN (MAIDSTONE),id:13090454  , 326.75
Department of Health,Guys and St Thomas NHS Foundation Trust,17/07/2020,(81700) Lab Equipment Purchase,(id:42331) Evelina Central,NHS SUPPLY CHAIN (MAIDSTONE),id:13075043    ,  12.60
Department of Health,Guys and St Thomas NHS Foundation Trust,03/07/2020,(82000) Provisions & Kitchens,(id:42331) Evelina Central,NHS SUPPLY CHAIN (MAIDSTONE),id:13060017,  86.51
Department of Health,Guys and St Thomas NHS Foundation Trust,24/07/2020,(82800) Bedding & Linen,(id:42325) Evelina Central,NHS SUPPLY CHAIN (MAIDSTONE),id:13109396 , 150.12
Department of Health,Guys and St Thomas NHS Foundation Trust,10/07/2020,(81200) Medical Surgical Supplies & Equipment,(id:42325) Evelina Central,TELEFLEX MEDICAL,id:13092630 , 918.00
Department of Health,Guys and St Thomas NHS Foundation Trust,10/07/2020,(82800) Bedding & Linen,(id:2964419) Evelina Central,DRIVE DEVILBISS HEALTHCARE LTD,id:13145754  ,4320.00
Department of Health,Guys and St Thomas NHS Foundation Trust,17/07/2020,(82000) Provisions & Kitchens,(id:42319) Evelina Central,NHS SUPPLY CHAIN (MAIDSTONE),id:13075043,  68.88
Department of Health,Guys and St Thomas NHS Foundation Trust,24/07/2020,(89595) Non-Healthcare from Foundation Trusts,(id:42316) Evelina Central,KING'S COLLEGE HOSPITAL NHS FOUNDATION TRUST,id:12561959   ,1566.48
Department of Health,Guys and St Thomas NHS Foundation Trust,03/07/2020,(81225) Medical Surgical Supplies & Equipment,(id:590444) Evelina Community Services,NHS SUPPLY CHAIN (MAIDSTONE),id:13060017  ,  11.96
Department of Health,Guys and St Thomas NHS Foundation Trust,30/07/2020,(81200) Medical Surgical Supplies & Equipment,(id:590450) Evelina Community Services,NHS SUPPLY CHAIN (MAIDSTONE),id:13132074  ,   7.80
Department of Health,Guys and St Thomas NHS Foundation Trust,14/07/2020,(51872) Physiotherapists,(id:590450) Evelina Community Services,PRICEWATERHOUSECOOPERS LLP,id:13164114,2927.59
Department of Health,Guys and St Thomas NHS Foundation Trust,28/07/2020,(51462) Occupational Therapists,(id:706419) Evelina Community Services,PRICEWATERHOUSECOOPERS LLP,id:13200554   ,2074.14
Department of Health,Guys and St Thomas NHS Foundation Trust,28/07/2020,(53062) Speech Therapists,(id:590451) Evelina Community Services,PRICEWATERHOUSECOOPERS LLP,id:13200554    ,3289.37
Department of Health,Guys and St Thomas NHS Foundation Trust,28/07/2020,(51262) Dieticians,(id:590412) Evelina Community Services,PRICEWATERHOUSECOOPERS LLP,id:13207034 ,1270.02
Department of Health,Guys and St Thomas NHS Foundation Trust,03/07/2020,(81200) Medical Surgical Supplies & Equipment,(id:590449) Evelina Community Services,NHS SUPPLY CHAIN (MAIDSTONE),id:13050854  , 911.04
Department of Health,Guys and St Thomas NHS Foundation Trust,17/07/2020,(83400) Office Equipment,(id:4621420) Evelina Community Services,NHS SUPPLY CHAIN (MAIDSTONE),id:13090454  ,   3.22
Department of Health,Guys and St Thomas NHS Foundation Trust,17/07/2020,(83400) Office Equipment,(id:590446) Evelina Community Services,NHS SUPPLY CHAIN (MAIDSTONE),id:13090454   ,  68.32
Department of Health,Guys and St Thomas NHS Foundation Trust,03/07/2020,(82000) Provisions & Kitchens,(id:590539) Evelina Community Services,NHS SUPPLY CHAIN (MAIDSTONE),id:13036234   , 110.40
Department of Health,Guys and St Thomas NHS Foundation Trust,03/07/2020,(81200) Medical Surgical Supplies & Equipment,(id:590539) Evelina Community Services,SCC PLC)SPECIALIST COMPUTER CENTRES,id:13121523,  12.00
Department of Health,Guys and St Thomas NHS Foundation Trust,03/07/2020,(81200) Medical Surgical Supplies & Equipment,(id:590539) Evelina Community Services,NHS SUPPLY CHAIN (MAIDSTONE),id:13036234  , 240.72
Department of Health,Guys and St Thomas NHS Foundation Trust,03/07/2020,(81200) Medical Surgical Supplies & Equipment,(id:590537) Evelina Community Services,NHS SUPPLY CHAIN (MAIDSTONE),id:13050854  ,  90.72
Department of Health,Guys and St Thomas NHS Foundation Trust,30/07/2020,(82000) Provisions & Kitchens,(id:590416) Evelina Community Services,NHS SUPPLY CHAIN (MAIDSTONE),id:13132074   , 154.20
Department of Health,Guys and St Thomas NHS Foundation Trust,10/07/2020,(83500) Furniture & Fittings,(id:4621421) Evelina Medicine & Neonatology,MARSDEN WEIGHING MACHINE GROUP LTD,id:13109514   ,1320.00
Department of Health,Guys and St Thomas NHS Foundation Trust,30/07/2020,(81200) Medical Surgical Supplies & Equipment,(id:4621421) Evelina Medicine & Neonatology,NHS SUPPLY CHAIN (MAIDSTONE),id:13132074  , 345.60
Department of Health,Guys and St Thomas NHS Foundation Trust,03/07/2020,(81200) Medical Surgical Supplies & Equipment,(id:2356419) Evelina Medicine & Neonatology,NHS SUPPLY CHAIN (MAIDSTONE),id:13060017  ,2295.73
Department of Health,Guys and St Thomas NHS Foundation Trust,17/07/2020,(81100) Dressings,(id:2356419) Evelina Medicine & Neonatology,NHS SUPPLY CHAIN (MAIDSTONE),id:13075043,  35.51
Department of Health,Guys and St Thomas NHS Foundation Trust,17/07/2020,(81700) Lab Equipment Purchase,(id:2356419) Evelina Medicine & Neonatology,NHS SUPPLY CHAIN (MAIDSTONE),id:13075043  ,   3.20
Department of Health,Guys and St Thomas NHS Foundation Trust,17/07/2020,(81700) Lab Equipment Purchase,(id:2356419) Evelina Medicine & Neonatology,NHS SUPPLY CHAIN (MAIDSTONE),id:13090454  ,  99.01
Department of Health,Guys and St Thomas NHS Foundation Trust,30/07/2020,(83400) Office Equipment,(id:42350) Evelina Medicine & Neonatology,LAZERBEAM FIRE AND SECURITY LTD,id:13177155  , 470.00
Department of Health,Guys and St Thomas NHS Foundation Trust,24/07/2020,(81200) Medical Surgical Supplies & Equipment,(id:42350) Evelina Medicine & Neonatology,JOHNSON & JOHNSON MEDICAL LTD,id:13156388   , 868.38
Department of Health,Guys and St Thomas NHS Foundation Trust,03/07/2020,(83400) Office Equipment,(id:42349) Evelina Medicine & Neonatology,NHS SUPPLY CHAIN (MAIDSTONE),id:13050854,   3.60
Department of Health,Guys and St Thomas NHS Foundation Trust,24/07/2020,(81225) Medical Surgical Supplies & Equipment,(id:42349) Evelina Medicine & Neonatology,NHS SUPPLY CHAIN (MAIDSTONE),id:13109396    , 186.10
Department of Health,Guys and St Thomas NHS Foundation Trust,10/07/2020,(89640) Non-Healthcare from NHS Trusts,(id:42336) Evelina Medicine & Neonatology,PORTSMOUTH HOSPITALS NHS TRUST,id:12973201    , 512.17
Department of Health,Guys and St Thomas NHS Foundation Trust,03/07/2020,(81200) Medical Surgical Supplies & Equipment,(id:42335) Evelina Medicine & Neonatology,SCC PLC)SPECIALIST COMPUTER CENTRES,id:13121554  ,  18.00
Department of Health,Guys and St Thomas NHS Foundation Trust,17/07/2020,(82700) Uniforms & Clothing,(id:42327) Evelina Medicine & Neonatology,NHS SUPPLY CHAIN (MAIDSTONE),id:13075043  ,  94.56
Department of Health,Guys and St Thomas NHS Foundation Trust,03/07/2020,(81200) Medical Surgical Supplies & Equipment,(id:42327) Evelina Medicine & Neonatology,NHS SUPPLY CHAIN (MAIDSTONE),id:13050854    ,5563.24
Department of Health,Guys and St Thomas NHS Foundation Trust,10/07/2020,(81200) Medical Surgical Supplies & Equipment,(id:42327) Evelina Medicine & Neonatology,SQUADRON MEDICAL LTD,id:13128943  , 222.27
Department of Health,Guys and St Thomas NHS Foundation Trust,10/07/2020,(81200) Medical Surgical Supplies & Equipment,(id:42327) Evelina Medicine & Neonatology,VYGON (UK) LTD,id:13120954   ,  59.88
Department of Health,Guys and St Thomas NHS Foundation Trust,10/07/2020,(81200) Medical Surgical Supplies & Equipment,(id:42327) Evelina Medicine & Neonatology,SQUADRON MEDICAL LTD,id:13131690  , 598.50
Department of Health,Guys and St Thomas NHS Foundation Trust,24/07/2020,(81200) Medical Surgical Supplies & Equipment,(id:42327) Evelina Medicine & Neonatology,ARDO MEDICAL LTD,id:13177474 , 595.46
Department of Health,Guys and St Thomas NHS Foundation Trust,30/07/2020,(81200) Medical Surgical Supplies & Equipment,(id:42327) Evelina Medicine & Neonatology,SQUADRON MEDICAL LTD,id:12970518  ,  70.83
Department of Health,Guys and St Thomas NHS Foundation Trust,10/07/2020,(50552) Qualified Nursing Staff,(id:42327) Evelina Medicine & Neonatology,CONTINENTAL NURSE LTD,id:13155568,2095.92
Department of Health,Guys and St Thomas NHS Foundation Trust,17/07/2020,(50552) Qualified Nursing Staff,(id:42327) Evelina Medicine & Neonatology,CONTINENTAL NURSE LTD,id:13176765,1389.41
Department of Health,Guys and St Thomas NHS Foundation Trust,17/07/2020,(80010) Drug Costs,(id:42327) Evelina Medicine & Neonatology,NHS SUPPLY CHAIN (MAIDSTONE),id:13075043 , 126.00
Department of Health,Guys and St Thomas NHS Foundation Trust,03/07/2020,(80010) Drug Costs,(id:42327) Evelina Medicine & Neonatology,NHS SUPPLY CHAIN (MAIDSTONE),id:13050854 ,  38.88
Department of Health,Guys and St Thomas NHS Foundation Trust,24/07/2020,(81230) Medical Surgical Supplies & Equipment,(id:42327) Evelina Medicine & Neonatology,VYGON (UK) LTD,id:13156376   , 516.00
Department of Health,Guys and St Thomas NHS Foundation Trust,30/07/2020,(81200) Medical Surgical Supplies & Equipment,(id:3736419) Evelina Medicine & Neonatology,NHS SUPPLY CHAIN (MAIDSTONE),id:13132074  ,  40.10
Department of Health,Guys and St Thomas NHS Foundation Trust,03/07/2020,(81100) Dressings,(id:2496419) Evelina Medicine & Neonatology,NHS SUPPLY CHAIN (MAIDSTONE),id:13050854,  64.08
Department of Health,Guys and St Thomas NHS Foundation Trust,17/07/2020,(81200) Medical Surgical Supplies & Equipment,(id:2981419) Evelina Medicine & Neonatology,NHS SUPPLY CHAIN (MAIDSTONE),id:13090454  ,1096.32
Department of Health,Guys and St Thomas NHS Foundation Trust,10/07/2020,(81200) Medical Surgical Supplies & Equipment,(id:2981419) Evelina Medicine & Neonatology,GBUK ENTERAL UK,id:13143634,2160.00
Department of Health,Guys and St Thomas NHS Foundation Trust,17/07/2020,(81200) Medical Surgical Supplies & Equipment,(id:41874) Evelina Medicine & Neonatology,NHS SUPPLY CHAIN (MAIDSTONE),id:13075043    ,1013.90
Department of Health,Guys and St Thomas NHS Foundation Trust,30/07/2020,(82000) Provisions & Kitchens,(id:41874) Evelina Medicine & Neonatology,NHS SUPPLY CHAIN (MAIDSTONE),id:13132074,  23.35
Department of Health,Guys and St Thomas NHS Foundation Trust,03/07/2020,(83400) Office Equipment,(id:42323) Evelina Medicine & Neonatology,NHS SUPPLY CHAIN (MAIDSTONE),id:13060017,   4.85
Department of Health,Guys and St Thomas NHS Foundation Trust,17/07/2020,(83400) Office Equipment,(id:42323) Evelina Medicine & Neonatology,NHS SUPPLY CHAIN (MAIDSTONE),id:13075043,  21.09
Department of Health,Guys and St Thomas NHS Foundation Trust,24/07/2020,(81100) Dressings,(id:42323) Evelina Medicine & Neonatology,NHS SUPPLY CHAIN (MAIDSTONE),id:13109396  ,  99.52
Department of Health,Guys and St Thomas NHS Foundation Trust,17/07/2020,(82800) Bedding & Linen,(id:42323) Evelina Medicine & Neonatology,NHS SUPPLY CHAIN (MAIDSTONE),id:13090454 ,  23.61
Department of Health,Guys and St Thomas NHS Foundation Trust,03/07/2020,(81100) Dressings,(id:42315) Evelina Medicine & Neonatology,NHS SUPPLY CHAIN (MAIDSTONE),id:13060017  ,  77.82
Department of Health,Guys and St Thomas NHS Foundation Trust,17/07/2020,(81200) Medical Surgical Supplies & Equipment,(id:42315) Evelina Medicine & Neonatology,NHS SUPPLY CHAIN (MAIDSTONE),id:13075043    , 120.85
Department of Health,Guys and St Thomas NHS Foundation Trust,17/07/2020,(81700) Lab Equipment Purchase,(id:42058) Evelina Medicine & Neonatology,BIO DIAGNOSTICS LTD,id:13163720   ,3015.30
Department of Health,Guys and St Thomas NHS Foundation Trust,03/07/2020,(83400) Office Equipment,(id:2499419) Evelina Surgery Theatres & PICU,NHS SUPPLY CHAIN (MAIDSTONE),id:13060017  , 941.51
Department of Health,Guys and St Thomas NHS Foundation Trust,03/07/2020,(81265) Medical Surgical Supplies & Equipment,(id:42312) Evelina Surgery Theatres & PICU,NHS SUPPLY CHAIN (MAIDSTONE),id:13036234   , 346.08
Department of Health,Guys and St Thomas NHS Foundation Trust,24/07/2020,(81200) Medical Surgical Supplies & Equipment,(id:42312) Evelina Surgery Theatres & PICU,KIMAL PLC,id:13178594  , 560.09
Department of Health,Guys and St Thomas NHS Foundation Trust,30/07/2020,(81400) Medical Surgical Supplies & Equipment,(id:42312) Evelina Surgery Theatres & PICU,SPACELABS HEALTHCARE LTD,id:13186194  ,2610.00
Department of Health,Guys and St Thomas NHS Foundation Trust,17/07/2020,(81280) Medical Surgical Supplies & Equipment,(id:42312) Evelina Surgery Theatres & PICU,NHS BLOOD AND TRANSPLANT,id:13163654  ,3635.83
Department of Health,Guys and St Thomas NHS Foundation Trust,30/07/2020,(84656) Establishment,(id:42312) Evelina Surgery Theatres & PICU,DICT8 LIMITED,id:13155176  ,2061.24
Department of Health,Guys and St Thomas NHS Foundation Trust,03/07/2020,(81230) Medical Surgical Supplies & Equipment,(id:42312) Evelina Surgery Theatres & PICU,NHS SUPPLY CHAIN (MAIDSTONE),id:13036234   ,1790.40
Department of Health,Guys and St Thomas NHS Foundation Trust,03/07/2020,(83410) Office Equipment,(id:42351) Evelina Surgery Theatres & PICU,RICOH UK LTD,id:13114845, 305.12
Department of Health,Guys and St Thomas NHS Foundation Trust,24/07/2020,(82000) Provisions & Kitchens,(id:41914) Evelina Surgery Theatres & PICU,NHS SUPPLY CHAIN (MAIDSTONE),id:13109396    ,   9.53
Department of Health,Guys and St Thomas NHS Foundation Trust,17/07/2020,(82800) Bedding & Linen,(id:41914) Evelina Surgery Theatres & PICU,NHS SUPPLY CHAIN (MAIDSTONE),id:13075043, 158.29
Department of Health,Guys and St Thomas NHS Foundation Trust,17/07/2020,(82700) Uniforms & Clothing,(id:41914) Evelina Surgery Theatres & PICU,NHS SUPPLY CHAIN (MAIDSTONE),id:13090454 ,   3.43
Department of Health,Guys and St Thomas NHS Foundation Trust,24/07/2020,(81200) Medical Surgical Supplies & Equipment,(id:41914) Evelina Surgery Theatres & PICU,SQUADRON MEDICAL LTD,id:13135552 , 396.47
Department of Health,Guys and St Thomas NHS Foundation Trust,24/07/2020,(81200) Medical Surgical Supplies & Equipment,(id:41914) Evelina Surgery Theatres & PICU,SQUADRON MEDICAL LTD,id:13190967 , 688.92
Department of Health,Guys and St Thomas NHS Foundation Trust,30/07/2020,(81200) Medical Surgical Supplies & Equipment,(id:41914) Evelina Surgery Theatres & PICU,SQUADRON MEDICAL LTD,id:13175927 , 666.37
Department of Health,Guys and St Thomas NHS Foundation Trust,24/07/2020,(50562) Qualified Nursing Staff,(id:41914) Evelina Surgery Theatres & PICU,PULSE HEALTHCARE LIMITED,id:13191340 , 850.95
Department of Health,Guys and St Thomas NHS Foundation Trust,30/07/2020,(81100) Dressings,(id:41914) Evelina Surgery Theatres & PICU,SQUADRON MEDICAL LTD,id:13166471    ,  10.02
Department of Health,Guys and St Thomas NHS Foundation Trust,30/07/2020,(81100) Dressings,(id:41914) Evelina Surgery Theatres & PICU,SQUADRON MEDICAL LTD,id:13152599    , 178.86
Department of Health,Guys and St Thomas NHS Foundation Trust,24/07/2020,(81100) Dressings,(id:41914) Evelina Surgery Theatres & PICU,SQUADRON MEDICAL LTD,id:13190967    ,  19.80
Department of Health,Guys and St Thomas NHS Foundation Trust,30/07/2020,(50552) Qualified Nursing Staff,(id:41914) Evelina Surgery Theatres & PICU,CONTINENTAL NURSE LTD,id:13212487    ,2245.32
Department of Health,Guys and St Thomas NHS Foundation Trust,17/07/2020,(81700) Lab Equipment Purchase,(id:41914) Evelina Surgery Theatres & PICU,NHS SUPPLY CHAIN (MAIDSTONE),id:13090454   ,   2.64
Department of Health,Guys and St Thomas NHS Foundation Trust,03/07/2020,(81200) Medical Surgical Supplies & Equipment,(id:41910) Evelina Surgery Theatres & PICU,NHS SUPPLY CHAIN (MAIDSTONE),id:13060017   , 390.90
Department of Health,Guys and St Thomas NHS Foundation Trust,24/07/2020,(81200) Medical Surgical Supplies & Equipment,(id:41910) Evelina Surgery Theatres & PICU,NHS SUPPLY CHAIN (MAIDSTONE),id:13109396   ,1162.88
Department of Health,Guys and St Thomas NHS Foundation Trust,24/07/2020,(81200) Medical Surgical Supplies & Equipment,(id:41910) Evelina Surgery Theatres & PICU,MEDTRONIC LTD,id:13167298   ,1440.00
Department of Health,Guys and St Thomas NHS Foundation Trust,30/07/2020,(81200) Medical Surgical Supplies & Equipment,(id:41910) Evelina Surgery Theatres & PICU,SQUADRON MEDICAL LTD,id:13152249 , 210.06
Department of Health,Guys and St Thomas NHS Foundation Trust,24/07/2020,(81200) Medical Surgical Supplies & Equipment,(id:41910) Evelina Surgery Theatres & PICU,SQUADRON MEDICAL LTD,id:13149594 , 133.73
Department of Health,Guys and St Thomas NHS Foundation Trust,03/07/2020,(81200) Medical Surgical Supplies & Equipment,(id:3722419) Evelina Surgery Theatres & PICU,NHS SUPPLY CHAIN (MAIDSTONE),id:13050854 ,  17.04
Department of Health,Guys and St Thomas NHS Foundation Trust,24/07/2020,(81200) Medical Surgical Supplies & Equipment,(id:1196421) Evelina Surgery Theatres & PICU,AMBU LIMITED,id:13101512  ,1500.80
Department of Health,Guys and St Thomas NHS Foundation Trust,10/07/2020,(81200) Medical Surgical Supplies & Equipment,(id:431409) Evelina Surgery Theatres & PICU,DICT8 LIMITED,id:13016796  ,1233.72
Department of Health,Guys and St Thomas NHS Foundation Trust,10/07/2020,(81200) Medical Surgical Supplies & Equipment,(id:431409) Evelina Surgery Theatres & PICU,T J SMITH & NEPHEW LTD,id:13063435   ,    -3375.12
Department of Health,Guys and St Thomas NHS Foundation Trust,30/07/2020,(81200) Medical Surgical Supplies & Equipment,(id:431409) Evelina Surgery Theatres & PICU,SQUADRON MEDICAL LTD,id:13160087,  15.89
Department of Health,Guys and St Thomas NHS Foundation Trust,17/07/2020,(81000) Surgical Appliances,(id:431409) Evelina Surgery Theatres & PICU,JOHN FLORENCE LTD,id:13163723 , 816.58
Department of Health,Guys and St Thomas NHS Foundation Trust,17/07/2020,(81000) Surgical Appliances,(id:431409) Evelina Surgery Theatres & PICU,JOHN FLORENCE LTD,id:13164054 , 816.58
Department of Health,Guys and St Thomas NHS Foundation Trust,17/07/2020,(81000) Surgical Appliances,(id:431409) Evelina Surgery Theatres & PICU,JOHN FLORENCE LTD,id:13164257 , 906.82
Department of Health,Guys and St Thomas NHS Foundation Trust,17/07/2020,(81000) Surgical Appliances,(id:431409) Evelina Surgery Theatres & PICU,JOHN FLORENCE LTD,id:13163894 , 975.18
Department of Health,Guys and St Thomas NHS Foundation Trust,17/07/2020,(81000) Surgical Appliances,(id:431409) Evelina Surgery Theatres & PICU,JOHN FLORENCE LTD,id:13164155 , 839.86
Department of Health,Guys and St Thomas NHS Foundation Trust,03/07/2020,(81100) Dressings,(id:468410) Evelina Surgery Theatres & PICU,NHS SUPPLY CHAIN (MAIDSTONE),id:13036234, 330.78
Department of Health,Guys and St Thomas NHS Foundation Trust,30/07/2020,(81200) Medical Surgical Supplies & Equipment,(id:468409) Evelina Surgery Theatres & PICU,SMITHS MEDICAL INTERNATIONAL LTD:69519000,id:13210357    , 650.16
Department of Health,Guys and St Thomas NHS Foundation Trust,17/07/2020,(81100) Dressings,(id:42347) Evelina Surgery Theatres & PICU,NHS SUPPLY CHAIN (MAIDSTONE),id:13090454 ,   4.68
Department of Health,Guys and St Thomas NHS Foundation Trust,24/07/2020,(81200) Medical Surgical Supplies & Equipment,(id:42347) Evelina Surgery Theatres & PICU,SQUADRON MEDICAL LTD,id:13149594 ,   4.82
Department of Health,Guys and St Thomas NHS Foundation Trust,03/07/2020,(82600) Uniforms & Clothing,(id:42339) Evelina Surgery Theatres & PICU,NHS SUPPLY CHAIN (MAIDSTONE),id:13036234 ,  15.12
Department of Health,Guys and St Thomas NHS Foundation Trust,03/07/2020,(82800) Bedding & Linen,(id:42339) Evelina Surgery Theatres & PICU,NHS SUPPLY CHAIN (MAIDSTONE),id:13036234, 176.93
Department of Health,Guys and St Thomas NHS Foundation Trust,17/07/2020,(84500) Establishment,(id:42339) Evelina Surgery Theatres & PICU,HENLEYS MEDICAL SUPPLIES LTD,id:13166199  ,1327.97
Department of Health,Guys and St Thomas NHS Foundation Trust,03/07/2020,(50470) Medical Training Grades,(id:42339) Evelina Surgery Theatres & PICU,KINGS COLLEGE LONDON:03529700,id:13002794 ,2503.54
Department of Health,Guys and St Thomas NHS Foundation Trust,17/07/2020,(81100) Dressings,(id:42339) Evelina Surgery Theatres & PICU,NHS SUPPLY CHAIN (MAIDSTONE),id:13075043 , 785.18
Department of Health,Guys and St Thomas NHS Foundation Trust,03/07/2020,(81200) Medical Surgical Supplies & Equipment,(id:42339) Evelina Surgery Theatres & PICU,NHS SUPPLY CHAIN (MAIDSTONE),id:13060017   ,3087.43
Department of Health,Guys and St Thomas NHS Foundation Trust,17/07/2020,(81275) Medical Surgical Supplies & Equipment,(id:42339) Evelina Surgery Theatres & PICU,RADIOMETER LTD,id:13164477  ,3083.34
Department of Health,Guys and St Thomas NHS Foundation Trust,03/07/2020,(81700) Lab Equipment Purchase,(id:42339) Evelina Surgery Theatres & PICU,NHS SUPPLY CHAIN (MAIDSTONE),id:13060017   ,  90.19
Department of Health,Guys and St Thomas NHS Foundation Trust,30/07/2020,(81700) Lab Equipment Purchase,(id:42339) Evelina Surgery Theatres & PICU,NHS SUPPLY CHAIN (MAIDSTONE),id:13132074   ,  42.70
Department of Health,Guys and St Thomas NHS Foundation Trust,30/07/2020,(80010) Drug Costs,(id:42339) Evelina Surgery Theatres & PICU,NHS SUPPLY CHAIN (MAIDSTONE),id:13132074,  67.13
Department of Health,Guys and St Thomas NHS Foundation Trust,03/07/2020,(50200) Consultants,(id:3008419) Evelina R&D and Charity,KINGS COLLEGE LONDON:03529700,id:13002157    ,2111.26
Department of Health,Guys and St Thomas NHS Foundation Trust,03/07/2020,(89640) Non-Healthcare from NHS Trusts,(id:2454419) Gastrointestinal Medicine & Surgery,MAIDSTONE AND TUNBRIDGE WELLS NHS TRUST,id:12917395   ,7934.07
Department of Health,Guys and St Thomas NHS Foundation Trust,03/07/2020,(82000) Provisions & Kitchens,(id:41958) Gastrointestinal Medicine & Surgery,NHS SUPPLY CHAIN (MAIDSTONE),id:13050854, 144.12
Department of Health,Guys and St Thomas NHS Foundation Trust,03/07/2020,(81200) Medical Surgical Supplies & Equipment,(id:41958) Gastrointestinal Medicine & Surgery,NHS SUPPLY CHAIN (MAIDSTONE),id:13036234    ,  21.22
Department of Health,Guys and St Thomas NHS Foundation Trust,17/07/2020,(82000) Provisions & Kitchens,(id:41954) Gastrointestinal Medicine & Surgery,NHS SUPPLY CHAIN (MAIDSTONE),id:13075043,   9.86
Department of Health,Guys and St Thomas NHS Foundation Trust,17/07/2020,(83400) Office Equipment,(id:41954) Gastrointestinal Medicine & Surgery,NHS SUPPLY CHAIN (MAIDSTONE),id:13090454,  12.62
Department of Health,Guys and St Thomas NHS Foundation Trust,03/07/2020,(81200) Medical Surgical Supplies & Equipment,(id:41954) Gastrointestinal Medicine & Surgery,NHS SUPPLY CHAIN (MAIDSTONE),id:13060017    , 207.11
Department of Health,Guys and St Thomas NHS Foundation Trust,17/07/2020,(81100) Dressings,(id:41954) Gastrointestinal Medicine & Surgery,NHS SUPPLY CHAIN (MAIDSTONE),id:13075043  , 107.63
Department of Health,Guys and St Thomas NHS Foundation Trust,03/07/2020,(81100) Dressings,(id:41954) Gastrointestinal Medicine & Surgery,NHS SUPPLY CHAIN (MAIDSTONE),id:13050854  ,  52.59
Department of Health,Guys and St Thomas NHS Foundation Trust,03/07/2020,(81100) Dressings,(id:41954) Gastrointestinal Medicine & Surgery,NHS SUPPLY CHAIN (MAIDSTONE),id:13036234  , 256.31
Department of Health,Guys and St Thomas NHS Foundation Trust,03/07/2020,(81255) Medical Surgical Supplies & Equipment,(id:41954) Gastrointestinal Medicine & Surgery,NHS SUPPLY CHAIN (MAIDSTONE),id:13060017    ,   4.68
Department of Health,Guys and St Thomas NHS Foundation Trust,17/07/2020,(81700) Lab Equipment Purchase,(id:41954) Gastrointestinal Medicine & Surgery,NHS SUPPLY CHAIN (MAIDSTONE),id:13075043    ,  27.76
Department of Health,Guys and St Thomas NHS Foundation Trust,03/07/2020,(81200) Medical Surgical Supplies & Equipment,(id:41949) Gastrointestinal Medicine & Surgery,SQUADRON MEDICAL LTD,id:13112124  ,1151.20
Department of Health,Guys and St Thomas NHS Foundation Trust,03/07/2020,(81200) Medical Surgical Supplies & Equipment,(id:41949) Gastrointestinal Medicine & Surgery,NHS SUPPLY CHAIN (MAIDSTONE),id:13060017    , 226.80
Department of Health,Guys and St Thomas NHS Foundation Trust,17/07/2020,(81200) Medical Surgical Supplies & Equipment,(id:41949) Gastrointestinal Medicine & Surgery,SQUADRON MEDICAL LTD,id:13149590  ,   7.54
Department of Health,Guys and St Thomas NHS Foundation Trust,17/07/2020,(81200) Medical Surgical Supplies & Equipment,(id:41949) Gastrointestinal Medicine & Surgery,SQUADRON MEDICAL LTD,id:13146731  ,1412.23
Department of Health,Guys and St Thomas NHS Foundation Trust,24/07/2020,(81200) Medical Surgical Supplies & Equipment,(id:41949) Gastrointestinal Medicine & Surgery,SQUADRON MEDICAL LTD,id:13166449  ,1412.23
Department of Health,Guys and St Thomas NHS Foundation Trust,24/07/2020,(81200) Medical Surgical Supplies & Equipment,(id:41949) Gastrointestinal Medicine & Surgery,HEALTHCARE 21 LTD,id:13178363,3696.00
Department of Health,Guys and St Thomas NHS Foundation Trust,30/07/2020,(81200) Medical Surgical Supplies & Equipment,(id:41949) Gastrointestinal Medicine & Surgery,SQUADRON MEDICAL LTD,id:13189140  , 893.63
Department of Health,Guys and St Thomas NHS Foundation Trust,10/07/2020,(81200) Medical Surgical Supplies & Equipment,(id:41949) Gastrointestinal Medicine & Surgery,SQUADRON MEDICAL LTD,id:13129026  ,1065.96
Department of Health,Guys and St Thomas NHS Foundation Trust,10/07/2020,(81200) Medical Surgical Supplies & Equipment,(id:41949) Gastrointestinal Medicine & Surgery,SQUADRON MEDICAL LTD,id:13135413  ,1390.42
Department of Health,Guys and St Thomas NHS Foundation Trust,10/07/2020,(81200) Medical Surgical Supplies & Equipment,(id:41949) Gastrointestinal Medicine & Surgery,SQUADRON MEDICAL LTD,id:13120891  ,4206.79
Department of Health,Guys and St Thomas NHS Foundation Trust,30/07/2020,(81000) Surgical Appliances,(id:41944) Gastrointestinal Medicine & Surgery,MEDI UK LTD,id:13204794    ,  57.50
Department of Health,Guys and St Thomas NHS Foundation Trust,30/07/2020,(81000) Surgical Appliances,(id:41944) Gastrointestinal Medicine & Surgery,MEDI UK LTD,id:13204803    , 316.02
Department of Health,Guys and St Thomas NHS Foundation Trust,17/07/2020,(81700) Lab Equipment Purchase,(id:2367419) Gastrointestinal Medicine & Surgery,NHS SUPPLY CHAIN (MAIDSTONE),id:13075043  ,  24.66
Department of Health,Guys and St Thomas NHS Foundation Trust,24/07/2020,(82800) Bedding & Linen,(id:2367419) Gastrointestinal Medicine & Surgery,NHS SUPPLY CHAIN (MAIDSTONE),id:13109396    ,  51.41
Department of Health,Guys and St Thomas NHS Foundation Trust,03/07/2020,(81200) Medical Surgical Supplies & Equipment,(id:2367419) Gastrointestinal Medicine & Surgery,NHS SUPPLY CHAIN (MAIDSTONE),id:13050854  ,    .59
Department of Health,Guys and St Thomas NHS Foundation Trust,17/07/2020,(81200) Medical Surgical Supplies & Equipment,(id:2367419) Gastrointestinal Medicine & Surgery,NHS SUPPLY CHAIN (MAIDSTONE),id:13075043  , 212.74
Department of Health,Guys and St Thomas NHS Foundation Trust,17/07/2020,(81100) Dressings,(id:2367419) Gastrointestinal Medicine & Surgery,NHS SUPPLY CHAIN (MAIDSTONE),id:13090454,  16.88
Department of Health,Guys and St Thomas NHS Foundation Trust,30/07/2020,(81100) Dressings,(id:2367419) Gastrointestinal Medicine & Surgery,NHS SUPPLY CHAIN (MAIDSTONE),id:13132074, 233.43
Department of Health,Guys and St Thomas NHS Foundation Trust,24/07/2020,(81100) Dressings,(id:2367419) Gastrointestinal Medicine & Surgery,NHS SUPPLY CHAIN (MAIDSTONE),id:13109396,  33.95
Department of Health,Guys and St Thomas NHS Foundation Trust,17/07/2020,(82600) Uniforms & Clothing,(id:41957) Gastrointestinal Medicine & Surgery,NHS SUPPLY CHAIN (MAIDSTONE),id:13090454  ,  97.37
Department of Health,Guys and St Thomas NHS Foundation Trust,17/07/2020,(81200) Medical Surgical Supplies & Equipment,(id:41942) Gastrointestinal Medicine & Surgery,FUNCTIONAL GUT DIAGNOSTICS LTD,id:13167794  ,  36.00
Department of Health,Guys and St Thomas NHS Foundation Trust,03/07/2020,(83410) Office Equipment,(id:41942) Gastrointestinal Medicine & Surgery,RICOH UK LTD,id:13114845 ,  66.58
Department of Health,Guys and St Thomas NHS Foundation Trust,17/07/2020,(83400) Office Equipment,(id:41917) Gastrointestinal Medicine & Surgery,NHS SUPPLY CHAIN (MAIDSTONE),id:13090454, 101.40
Department of Health,Guys and St Thomas NHS Foundation Trust,30/07/2020,(81200) Medical Surgical Supplies & Equipment,(id:41917) Gastrointestinal Medicine & Surgery,COOK UK LTD,id:13189205 ,1080.00
Department of Health,Guys and St Thomas NHS Foundation Trust,10/07/2020,(83610) IT Costs,(id:3821419) Cancer Strategy,SKYE DIRECT LTD,id:13155057    ,3141.58
Department of Health,Guys and St Thomas NHS Foundation Trust,10/07/2020,(84600) Establishment,(id:42282) Cancer Strategy,KINGS COLLEGE LONDON:03529700,id:12795489  ,7185.00
Department of Health,Guys and St Thomas NHS Foundation Trust,24/07/2020,(81900) Lab Equipment Purchase,(id:43038) Cardiovascular Services,VIAPATH ANALYTICS LLP,id:12228751   , 746.40
Department of Health,Guys and St Thomas NHS Foundation Trust,30/07/2020,(82800) Bedding & Linen,(id:1127419) Cardiovascular Services,NHS SUPPLY CHAIN (MAIDSTONE),id:13132074 ,  22.46
Department of Health,Guys and St Thomas NHS Foundation Trust,30/07/2020,(81100) Dressings,(id:1127419) Cardiovascular Services,NHS SUPPLY CHAIN (MAIDSTONE),id:13132074  , 275.92
Department of Health,Guys and St Thomas NHS Foundation Trust,17/07/2020,(82800) Bedding & Linen,(id:41953) Cardiovascular Services,NHS SUPPLY CHAIN (MAIDSTONE),id:13075043   ,  81.78
Department of Health,Guys and St Thomas NHS Foundation Trust,03/07/2020,(81200) Medical Surgical Supplies & Equipment,(id:41953) Cardiovascular Services,NHS SUPPLY CHAIN (MAIDSTONE),id:13050854 , 377.83
Department of Health,Guys and St Thomas NHS Foundation Trust,03/07/2020,(81225) Medical Surgical Supplies & Equipment,(id:41953) Cardiovascular Services,NHS SUPPLY CHAIN (MAIDSTONE),id:13036234 ,  45.36
Department of Health,Guys and St Thomas NHS Foundation Trust,24/07/2020,(81255) Medical Surgical Supplies & Equipment,(id:41953) Cardiovascular Services,NHS SUPPLY CHAIN (MAIDSTONE),id:13109396 ,   8.10
Department of Health,Guys and St Thomas NHS Foundation Trust,03/07/2020,(82600) Uniforms & Clothing,(id:41952) Cardiovascular Services,NHS SUPPLY CHAIN (MAIDSTONE),id:13060017    ,  64.94
Department of Health,Guys and St Thomas NHS Foundation Trust,17/07/2020,(81200) Medical Surgical Supplies & Equipment,(id:41952) Cardiovascular Services,NHS SUPPLY CHAIN (MAIDSTONE),id:13075043 , 319.20
Department of Health,Guys and St Thomas NHS Foundation Trust,24/07/2020,(81200) Medical Surgical Supplies & Equipment,(id:41952) Cardiovascular Services,NHS SUPPLY CHAIN (MAIDSTONE),id:13109396 ,  10.27
Department of Health,Guys and St Thomas NHS Foundation Trust,17/07/2020,(82800) Bedding & Linen,(id:41952) Cardiovascular Services,NHS SUPPLY CHAIN (MAIDSTONE),id:13075043   ,  40.18
Department of Health,Guys and St Thomas NHS Foundation Trust,17/07/2020,(81700) Lab Equipment Purchase,(id:41952) Cardiovascular Services,NHS SUPPLY CHAIN (MAIDSTONE),id:13075043 ,  49.32
Department of Health,Guys and St Thomas NHS Foundation Trust,30/07/2020,(81100) Dressings,(id:41952) Cardiovascular Services,NHS SUPPLY CHAIN (MAIDSTONE),id:13132074    , 156.01
Department of Health,Guys and St Thomas NHS Foundation Trust,17/07/2020,(83400) Office Equipment,(id:41952) Cardiovascular Services,NHS SUPPLY CHAIN (MAIDSTONE),id:13090454  ,  65.53
Department of Health,Guys and St Thomas NHS Foundation Trust,10/07/2020,(81200) Medical Surgical Supplies & Equipment,(id:41950) Cardiovascular Services,COOK UK LTD,id:13108727   , 792.00
Department of Health,Guys and St Thomas NHS Foundation Trust,10/07/2020,(81200) Medical Surgical Supplies & Equipment,(id:41950) Cardiovascular Services,KIMAL PLC,id:13137513,2020.41
Department of Health,Guys and St Thomas NHS Foundation Trust,17/07/2020,(81200) Medical Surgical Supplies & Equipment,(id:41950) Cardiovascular Services,NHS SUPPLY CHAIN (MAIDSTONE),id:13090454 , 299.85
Department of Health,Guys and St Thomas NHS Foundation Trust,24/07/2020,(81200) Medical Surgical Supplies & Equipment,(id:41950) Cardiovascular Services,ABBOTT MEDICAL UK LTD,id:13168826   , 852.00
Department of Health,Guys and St Thomas NHS Foundation Trust,17/07/2020,(81225) Medical Surgical Supplies & Equipment,(id:41950) Cardiovascular Services,NHS SUPPLY CHAIN (MAIDSTONE),id:13075043 ,  19.39
Department of Health,Guys and St Thomas NHS Foundation Trust,17/07/2020,(81200) Medical Surgical Supplies & Equipment,(id:41948) Cardiovascular Services,SQUADRON MEDICAL LTD,id:13146712    , 752.95
Department of Health,Guys and St Thomas NHS Foundation Trust,24/07/2020,(83400) Office Equipment,(id:3923419) Cardiovascular Services,NHS SUPPLY CHAIN (MAIDSTONE),id:13109396,  65.62
Department of Health,Guys and St Thomas NHS Foundation Trust,03/07/2020,(89670) Non-Healthcare from NHS Trusts,(id:1664419) Cardiovascular Services,DARTFORD AND GRAVESHAM NHS TRUST,id:12975717  ,6727.50
Department of Health,Guys and St Thomas NHS Foundation Trust,03/07/2020,(89670) Non-Healthcare from NHS Trusts,(id:1664419) Cardiovascular Services,DARTFORD AND GRAVESHAM NHS TRUST,id:13082320  ,6970.96
Department of Health,Guys and St Thomas NHS Foundation Trust,24/07/2020,(81200) Medical Surgical Supplies & Equipment,(id:1664419) Cardiovascular Services,BEXLEY MEDICAL GROUP,id:13140134  ,1656.00
Department of Health,Guys and St Thomas NHS Foundation Trust,07/07/2020,(54072) Technical Officers,(id:1243420) Cardiovascular Services,PRICEWATERHOUSECOOPERS LLP,id:13147438,2741.21
Department of Health,Guys and St Thomas NHS Foundation Trust,17/07/2020,(54072) Technical Officers,(id:1243420) Cardiovascular Services,GLOBE LOCUMS LTD,id:13169875,1890.00
Department of Health,Guys and St Thomas NHS Foundation Trust,10/07/2020,(54072) Technical Officers,(id:1243420) Cardiovascular Services,GLOBE LOCUMS LTD,id:13155533,1890.00
Department of Health,Guys and St Thomas NHS Foundation Trust,24/07/2020,(50200) Consultants,(id:42304) Cardiovascular Services,MEDWAY NHS FOUNDATION TRUST,id:8931117    , 895.00
Department of Health,Guys and St Thomas NHS Foundation Trust,24/07/2020,(50200) Consultants,(id:42304) Cardiovascular Services,MEDWAY NHS FOUNDATION TRUST,id:8836091    , 895.00
Department of Health,Guys and St Thomas NHS Foundation Trust,24/07/2020,(50200) Consultants,(id:42304) Cardiovascular Services,MEDWAY NHS FOUNDATION TRUST,id:11716692   , 908.00
Department of Health,Guys and St Thomas NHS Foundation Trust,24/07/2020,(50200) Consultants,(id:42304) Cardiovascular Services,MEDWAY NHS FOUNDATION TRUST,id:12503508   , 926.00
Department of Health,Guys and St Thomas NHS Foundation Trust,24/07/2020,(50200) Consultants,(id:42304) Cardiovascular Services,MEDWAY NHS FOUNDATION TRUST,id:12667325   ,1661.00
Department of Health,Guys and St Thomas NHS Foundation Trust,24/07/2020,(50200) Consultants,(id:42304) Cardiovascular Services,MAIDSTONE AND TUNBRIDGE WELLS NHS TRUST,id:13172154 ,5711.52
Department of Health,Guys and St Thomas NHS Foundation Trust,10/07/2020,(83610) IT Costs,(id:42303) Cardiovascular Services,ISTORAGE LTD,id:13151472 ,1137.60
Department of Health,Guys and St Thomas NHS Foundation Trust,28/07/2020,(54052) Technical Officers,(id:42303) Cardiovascular Services,PRICEWATERHOUSECOOPERS LLP,id:13207034  , 961.26
Department of Health,Guys and St Thomas NHS Foundation Trust,28/07/2020,(51842) Physiotherapists,(id:42303) Cardiovascular Services,PRICEWATERHOUSECOOPERS LLP,id:13200554    , 811.21
Department of Health,Guys and St Thomas NHS Foundation Trust,24/07/2020,(82000) Provisions & Kitchens,(id:42302) Cardiovascular Services,NHS SUPPLY CHAIN (MAIDSTONE),id:13109396  ,  18.44
Department of Health,Guys and St Thomas NHS Foundation Trust,10/07/2020,(83400) Office Equipment,(id:42302) Cardiovascular Services,EDWARDS LIFESCIENCES LTD,id:13148654 ,    25530.00
Department of Health,Guys and St Thomas NHS Foundation Trust,03/07/2020,(82800) Bedding & Linen,(id:42302) Cardiovascular Services,NHS SUPPLY CHAIN (MAIDSTONE),id:13060017   , 110.40
Department of Health,Guys and St Thomas NHS Foundation Trust,03/07/2020,(81200) Medical Surgical Supplies & Equipment,(id:42302) Cardiovascular Services,SQUADRON MEDICAL LTD,id:13112057    , 581.09
Department of Health,Guys and St Thomas NHS Foundation Trust,30/07/2020,(81200) Medical Surgical Supplies & Equipment,(id:42302) Cardiovascular Services,SQUADRON MEDICAL LTD,id:13189073    ,1131.55
Department of Health,Guys and St Thomas NHS Foundation Trust,17/07/2020,(81700) Lab Equipment Purchase,(id:42302) Cardiovascular Services,NHS SUPPLY CHAIN (MAIDSTONE),id:13075043 , 539.94
Department of Health,Guys and St Thomas NHS Foundation Trust,03/07/2020,(81255) Medical Surgical Supplies & Equipment,(id:42302) Cardiovascular Services,NHS SUPPLY CHAIN (MAIDSTONE),id:13060017 ,    .62
Department of Health,Guys and St Thomas NHS Foundation Trust,17/07/2020,(82800) Bedding & Linen,(id:42301) Cardiovascular Services,NHS SUPPLY CHAIN (MAIDSTONE),id:13090454   ,  80.35
Department of Health,Guys and St Thomas NHS Foundation Trust,03/07/2020,(81200) Medical Surgical Supplies & Equipment,(id:42301) Cardiovascular Services,NHS SUPPLY CHAIN (MAIDSTONE),id:13060017 ,   5.14
Department of Health,Guys and St Thomas NHS Foundation Trust,24/07/2020,(81200) Medical Surgical Supplies & Equipment,(id:42301) Cardiovascular Services,NHS SUPPLY CHAIN (MAIDSTONE),id:13109396 ,  66.31
Department of Health,Guys and St Thomas NHS Foundation Trust,30/07/2020,(82700) Uniforms & Clothing,(id:42300) Cardiovascular Services,NHS SUPPLY CHAIN (MAIDSTONE),id:13132074    ,  81.18
Department of Health,Guys and St Thomas NHS Foundation Trust,03/07/2020,(83400) Office Equipment,(id:42300) Cardiovascular Services,NHS SUPPLY CHAIN (MAIDSTONE),id:13050854  , 121.63
Department of Health,Guys and St Thomas NHS Foundation Trust,24/07/2020,(83400) Office Equipment,(id:42300) Cardiovascular Services,NHS SUPPLY CHAIN (MAIDSTONE),id:13109396  ,  92.90
Department of Health,Guys and St Thomas NHS Foundation Trust,17/07/2020,(82800) Bedding & Linen,(id:42300) Cardiovascular Services,NHS SUPPLY CHAIN (MAIDSTONE),id:13075043   ,  59.93
Department of Health,Guys and St Thomas NHS Foundation Trust,30/07/2020,(81225) Medical Surgical Supplies & Equipment,(id:42300) Cardiovascular Services,NHS SUPPLY CHAIN (MAIDSTONE),id:13132074 ,   9.70
Department of Health,Guys and St Thomas NHS Foundation Trust,17/07/2020,(81200) Medical Surgical Supplies & Equipment,(id:42300) Cardiovascular Services,NHS SUPPLY CHAIN (MAIDSTONE),id:13090454 , 394.88
Department of Health,Guys and St Thomas NHS Foundation Trust,10/07/2020,(50552) Qualified Nursing Staff,(id:42300) Cardiovascular Services,GLOBE LOCUMS LTD,id:13155414  , 977.94
Department of Health,Guys and St Thomas NHS Foundation Trust,03/07/2020,(50552) Qualified Nursing Staff,(id:42300) Cardiovascular Services,GLOBE LOCUMS LTD,id:13138379  , 291.42
Department of Health,Guys and St Thomas NHS Foundation Trust,10/07/2020,(50522) Unqualified Nursing Staff,(id:42300) Cardiovascular Services,MSI GROUP LTD,id:13155545   , 252.47
Department of Health,Guys and St Thomas NHS Foundation Trust,03/07/2020,(81200) Medical Surgical Supplies & Equipment,(id:42298) Cardiovascular Services,JOHNSON & JOHNSON MEDICAL LTD,id:13092360, 509.11
Department of Health,Guys and St Thomas NHS Foundation Trust,17/07/2020,(81200) Medical Surgical Supplies & Equipment,(id:42298) Cardiovascular Services,JOHNSON & JOHNSON MEDICAL LTD,id:13152042,3000.00
Department of Health,Guys and St Thomas NHS Foundation Trust,17/07/2020,(81200) Medical Surgical Supplies & Equipment,(id:42298) Cardiovascular Services,SPECTRANETICS UK,id:13166720   ,1424.40
Department of Health,Guys and St Thomas NHS Foundation Trust,03/07/2020,(81200) Medical Surgical Supplies & Equipment,(id:42298) Cardiovascular Services,TELEFLEX MEDICAL,id:13106306   ,1680.00
Department of Health,Guys and St Thomas NHS Foundation Trust,03/07/2020,(81200) Medical Surgical Supplies & Equipment,(id:42298) Cardiovascular Services,MEDTRONIC LTD,id:13104368 ,1920.00
Department of Health,Guys and St Thomas NHS Foundation Trust,10/07/2020,(81200) Medical Surgical Supplies & Equipment,(id:42298) Cardiovascular Services,SQUADRON MEDICAL LTD,id:13131693    , 673.20
Department of Health,Guys and St Thomas NHS Foundation Trust,10/07/2020,(81200) Medical Surgical Supplies & Equipment,(id:42298) Cardiovascular Services,TELEFLEX MEDICAL,id:13132660   ,3360.00
Department of Health,Guys and St Thomas NHS Foundation Trust,30/07/2020,(81200) Medical Surgical Supplies & Equipment,(id:42298) Cardiovascular Services,NHS SUPPLY CHAIN (MAIDSTONE),id:13132074 ,4454.41
Department of Health,Guys and St Thomas NHS Foundation Trust,30/07/2020,(81200) Medical Surgical Supplies & Equipment,(id:42298) Cardiovascular Services,JOHNSON & JOHNSON MEDICAL LTD,id:13166243,1909.62
Department of Health,Guys and St Thomas NHS Foundation Trust,30/07/2020,(81200) Medical Surgical Supplies & Equipment,(id:42298) Cardiovascular Services,TELEFLEX MEDICAL,id:13175707   , 720.00
Department of Health,Guys and St Thomas NHS Foundation Trust,30/07/2020,(81200) Medical Surgical Supplies & Equipment,(id:42298) Cardiovascular Services,MEDTRONIC LTD,id:13204881 ,3600.00
Department of Health,Guys and St Thomas NHS Foundation Trust,30/07/2020,(81200) Medical Surgical Supplies & Equipment,(id:42298) Cardiovascular Services,ABBOTT MEDICAL UK LTD,id:13201554   ,1560.00
Department of Health,Guys and St Thomas NHS Foundation Trust,24/07/2020,(81200) Medical Surgical Supplies & Equipment,(id:42298) Cardiovascular Services,JOHNSON & JOHNSON MEDICAL LTD,id:13190907,3000.00
Department of Health,Guys and St Thomas NHS Foundation Trust,17/07/2020,(81100) Dressings,(id:42298) Cardiovascular Services,NHS SUPPLY CHAIN (MAIDSTONE),id:13075043    ,   6.47
Department of Health,Guys and St Thomas NHS Foundation Trust,24/07/2020,(81230) Medical Surgical Supplies & Equipment,(id:42298) Cardiovascular Services,ABBOTT MEDICAL UK LTD,id:13178523   , 384.00
Department of Health,Guys and St Thomas NHS Foundation Trust,24/07/2020,(81230) Medical Surgical Supplies & Equipment,(id:42298) Cardiovascular Services,MAQUET LIMITED,id:13179605, 681.60
Department of Health,Guys and St Thomas NHS Foundation Trust,17/07/2020,(81230) Medical Surgical Supplies & Equipment,(id:42298) Cardiovascular Services,ABBOTT MEDICAL UK LTD,id:13155118   , 204.00
Department of Health,Guys and St Thomas NHS Foundation Trust,24/07/2020,(50200) Consultants,(id:42298) Cardiovascular Services,SURREY AND SUSSEX HEALTHCARE NHS TRUST,id:11713751  , 693.61
Department of Health,Guys and St Thomas NHS Foundation Trust,17/07/2020,(82800) Bedding & Linen,(id:42298) Cardiovascular Services,NHS SUPPLY CHAIN (MAIDSTONE),id:13090454   ,  13.54
Department of Health,Guys and St Thomas NHS Foundation Trust,17/07/2020,(81265) Medical Surgical Supplies & Equipment,(id:42298) Cardiovascular Services,ABBOTT MEDICAL UK LTD,id:13161881   ,    40820.40
Department of Health,Guys and St Thomas NHS Foundation Trust,30/07/2020,(81240) Medical Surgical Supplies & Equipment,(id:42298) Cardiovascular Services,MEDTRONIC LTD,id:13204882 ,1080.00
Department of Health,Guys and St Thomas NHS Foundation Trust,03/07/2020,(82800) Bedding & Linen,(id:42291) Cardiovascular Services,NHS SUPPLY CHAIN (MAIDSTONE),id:13036234   ,  40.18
Department of Health,Guys and St Thomas NHS Foundation Trust,03/07/2020,(81700) Lab Equipment Purchase,(id:42291) Cardiovascular Services,NHS SUPPLY CHAIN (MAIDSTONE),id:13050854 ,   3.20
Department of Health,Guys and St Thomas NHS Foundation Trust,30/07/2020,(81700) Lab Equipment Purchase,(id:42291) Cardiovascular Services,NHS SUPPLY CHAIN (MAIDSTONE),id:13132074 ,  15.43
Department of Health,Guys and St Thomas NHS Foundation Trust,03/07/2020,(81200) Medical Surgical Supplies & Equipment,(id:42290) Cardiovascular Services,NHS SUPPLY CHAIN (MAIDSTONE),id:13050854 , 556.12
Department of Health,Guys and St Thomas NHS Foundation Trust,17/07/2020,(50552) Qualified Nursing Staff,(id:42290) Cardiovascular Services,GLOBE LOCUMS LTD,id:13169938  , 333.52
Department of Health,Guys and St Thomas NHS Foundation Trust,30/07/2020,(81700) Lab Equipment Purchase,(id:42290) Cardiovascular Services,NHS SUPPLY CHAIN (MAIDSTONE),id:13132074 ,  33.68
Department of Health,Guys and St Thomas NHS Foundation Trust,24/07/2020,(83400) Office Equipment,(id:42293) Cardiovascular Services,SQUADRON MEDICAL LTD,id:13159931,  93.79
Department of Health,Guys and St Thomas NHS Foundation Trust,30/07/2020,(81200) Medical Surgical Supplies & Equipment,(id:42293) Cardiovascular Services,SQUADRON MEDICAL LTD,id:13191217    ,  28.34
Department of Health,Guys and St Thomas NHS Foundation Trust,30/07/2020,(81200) Medical Surgical Supplies & Equipment,(id:42293) Cardiovascular Services,SQUADRON MEDICAL LTD,id:13180561    ,  28.73
Department of Health,Guys and St Thomas NHS Foundation Trust,24/07/2020,(81200) Medical Surgical Supplies & Equipment,(id:42293) Cardiovascular Services,SQUADRON MEDICAL LTD,id:13159927    , 165.72
Department of Health,Guys and St Thomas NHS Foundation Trust,24/07/2020,(81200) Medical Surgical Supplies & Equipment,(id:42293) Cardiovascular Services,AQUILANT LTD,id:13178519  ,1755.60
Department of Health,Guys and St Thomas NHS Foundation Trust,17/07/2020,(81200) Medical Surgical Supplies & Equipment,(id:42293) Cardiovascular Services,MAQUET LIMITED,id:13147133, 636.00
Department of Health,Guys and St Thomas NHS Foundation Trust,03/07/2020,(81100) Dressings,(id:42293) Cardiovascular Services,NHS SUPPLY CHAIN (MAIDSTONE),id:13036234    , 999.48
Department of Health,Guys and St Thomas NHS Foundation Trust,10/07/2020,(81000) Surgical Appliances,(id:42293) Cardiovascular Services,REAM SURGICAL LTD,id:13148635, 745.20
Department of Health,Guys and St Thomas NHS Foundation Trust,24/07/2020,(81280) Medical Surgical Supplies & Equipment,(id:42293) Cardiovascular Services,CRYOLIFE EUROPA LTD,id:13179754,1440.00
Department of Health,Guys and St Thomas NHS Foundation Trust,03/07/2020,(81700) Lab Equipment Purchase,(id:42293) Cardiovascular Services,NHS SUPPLY CHAIN (MAIDSTONE),id:13060017 ,   6.10
Department of Health,Guys and St Thomas NHS Foundation Trust,30/07/2020,(81200) Medical Surgical Supplies & Equipment,(id:42292) Cardiovascular Services,MAQUET LIMITED,id:13178753,2016.00
Department of Health,Guys and St Thomas NHS Foundation Trust,17/07/2020,(81200) Medical Surgical Supplies & Equipment,(id:42292) Cardiovascular Services,LIVANOVA UK LTD,id:13142014    , 770.40
Department of Health,Guys and St Thomas NHS Foundation Trust,17/07/2020,(81200) Medical Surgical Supplies & Equipment,(id:42292) Cardiovascular Services,LIVANOVA UK LTD,id:13175201    , 800.38
Department of Health,Guys and St Thomas NHS Foundation Trust,17/07/2020,(81200) Medical Surgical Supplies & Equipment,(id:42292) Cardiovascular Services,MAQUET LIMITED,id:13154602, 475.20
Department of Health,Guys and St Thomas NHS Foundation Trust,10/07/2020,(81100) Dressings,(id:42292) Cardiovascular Services,MAQUET LIMITED,id:13137493   , 684.00
Department of Health,Guys and St Thomas NHS Foundation Trust,10/07/2020,(81100) Dressings,(id:42292) Cardiovascular Services,MAQUET LIMITED,id:13141197   ,1098.00
Department of Health,Guys and St Thomas NHS Foundation Trust,24/07/2020,(81100) Dressings,(id:42292) Cardiovascular Services,MAQUET LIMITED,id:13164815   , 318.00
Department of Health,Guys and St Thomas NHS Foundation Trust,10/07/2020,(81270) Medical Surgical Supplies & Equipment,(id:42292) Cardiovascular Services,MAQUET LIMITED,id:13145394, 180.00
Department of Health,Guys and St Thomas NHS Foundation Trust,03/07/2020,(82000) Provisions & Kitchens,(id:42287) Cardiovascular Services,NHS SUPPLY CHAIN (MAIDSTONE),id:13036234  , 376.67
Department of Health,Guys and St Thomas NHS Foundation Trust,03/07/2020,(83400) Office Equipment,(id:42287) Cardiovascular Services,NHS SUPPLY CHAIN (MAIDSTONE),id:13050854  , 205.83
Department of Health,Guys and St Thomas NHS Foundation Trust,10/07/2020,(83500) Furniture & Fittings,(id:42287) Cardiovascular Services,TECHNIBLINDS LTD,id:13141667, 583.80
Department of Health,Guys and St Thomas NHS Foundation Trust,17/07/2020,(82800) Bedding & Linen,(id:42287) Cardiovascular Services,NHS SUPPLY CHAIN (MAIDSTONE),id:13075043   , 143.06
Department of Health,Guys and St Thomas NHS Foundation Trust,17/07/2020,(81100) Dressings,(id:42287) Cardiovascular Services,NHS SUPPLY CHAIN (MAIDSTONE),id:13075043    , 205.28
Department of Health,Guys and St Thomas NHS Foundation Trust,03/07/2020,(81100) Dressings,(id:42287) Cardiovascular Services,NHS SUPPLY CHAIN (MAIDSTONE),id:13060017    ,  81.34
Department of Health,Guys and St Thomas NHS Foundation Trust,30/07/2020,(81100) Dressings,(id:42287) Cardiovascular Services,NHS SUPPLY CHAIN (MAIDSTONE),id:13132074    , 864.14
Department of Health,Guys and St Thomas NHS Foundation Trust,03/07/2020,(84550) Establishment,(id:42287) Cardiovascular Services,SCC PLC)SPECIALIST COMPUTER CENTRES,id:13101916   , 561.60
Department of Health,Guys and St Thomas NHS Foundation Trust,24/07/2020,(81255) Medical Surgical Supplies & Equipment,(id:42287) Cardiovascular Services,NHS SUPPLY CHAIN (MAIDSTONE),id:13109396 ,   8.11
Department of Health,Guys and St Thomas NHS Foundation Trust,24/07/2020,(50200) Consultants,(id:42368) Clinical Imaging & Med Physics,KING'S COLLEGE HOSPITAL NHS FOUNDATION TRUST,id:12974764    , 977.11
Department of Health,Guys and St Thomas NHS Foundation Trust,24/07/2020,(50200) Consultants,(id:42368) Clinical Imaging & Med Physics,KING'S COLLEGE HOSPITAL NHS FOUNDATION TRUST,id:13159818    ,4865.34
Department of Health,Guys and St Thomas NHS Foundation Trust,24/07/2020,(50200) Consultants,(id:42368) Clinical Imaging & Med Physics,KING'S COLLEGE HOSPITAL NHS FOUNDATION TRUST,id:12974772    ,    14690.25
Department of Health,Guys and St Thomas NHS Foundation Trust,03/07/2020,(50203) Consultants,(id:42368) Clinical Imaging & Med Physics,KINGS COLLEGE LONDON:03529700,id:13001819    ,    20534.61
Department of Health,Guys and St Thomas NHS Foundation Trust,07/07/2020,(52072) Radiographers,(id:42368) Clinical Imaging & Med Physics,PRICEWATERHOUSECOOPERS LLP,id:13147438,4741.47
Department of Health,Guys and St Thomas NHS Foundation Trust,14/07/2020,(52062) Radiographers,(id:42368) Clinical Imaging & Med Physics,PRICEWATERHOUSECOOPERS LLP,id:13164114,6067.61
Department of Health,Guys and St Thomas NHS Foundation Trust,03/07/2020,(83400) Office Equipment,(id:42367) Clinical Imaging & Med Physics,NHS SUPPLY CHAIN (MAIDSTONE),id:13050854,  77.53
Department of Health,Guys and St Thomas NHS Foundation Trust,03/07/2020,(83400) Office Equipment,(id:42367) Clinical Imaging & Med Physics,NHS SUPPLY CHAIN (MAIDSTONE),id:13036234,  39.71
Department of Health,Guys and St Thomas NHS Foundation Trust,03/07/2020,(81100) Dressings,(id:42367) Clinical Imaging & Med Physics,SQUADRON MEDICAL LTD,id:13112053,1215.14
Department of Health,Guys and St Thomas NHS Foundation Trust,24/07/2020,(81100) Dressings,(id:42367) Clinical Imaging & Med Physics,SQUADRON MEDICAL LTD,id:13170059,1219.26
Department of Health,Guys and St Thomas NHS Foundation Trust,30/07/2020,(81400) Medical Surgical Supplies & Equipment,(id:42367) Clinical Imaging & Med Physics,NHS SUPPLY CHAIN ( CAPITAL FUND ONLY),id:13194278,    36839.23
Department of Health,Guys and St Thomas NHS Foundation Trust,24/07/2020,(81400) Medical Surgical Supplies & Equipment,(id:42367) Clinical Imaging & Med Physics,NHS SUPPLY CHAIN ( CAPITAL FUND ONLY),id:13183219,    14557.60
Department of Health,Guys and St Thomas NHS Foundation Trust,24/07/2020,(81400) Medical Surgical Supplies & Equipment,(id:42367) Clinical Imaging & Med Physics,NHS SUPPLY CHAIN ( CAPITAL FUND ONLY),id:10897852,   108493.90
Department of Health,Guys and St Thomas NHS Foundation Trust,24/07/2020,(50200) Consultants,(id:42367) Clinical Imaging & Med Physics,KING'S COLLEGE HOSPITAL NHS FOUNDATION TRUST,id:12918422    ,9793.50
Department of Health,Guys and St Thomas NHS Foundation Trust,30/07/2020,(81200) Medical Surgical Supplies & Equipment,(id:42367) Clinical Imaging & Med Physics,SQUADRON MEDICAL LTD,id:13180635  , 796.82
Department of Health,Guys and St Thomas NHS Foundation Trust,03/07/2020,(81200) Medical Surgical Supplies & Equipment,(id:42367) Clinical Imaging & Med Physics,SQUADRON MEDICAL LTD,id:13106310  ,1037.14
Department of Health,Guys and St Thomas NHS Foundation Trust,24/07/2020,(81200) Medical Surgical Supplies & Equipment,(id:42367) Clinical Imaging & Med Physics,NHS SUPPLY CHAIN (MAIDSTONE),id:13109396    ,5144.87
Department of Health,Guys and St Thomas NHS Foundation Trust,24/07/2020,(81200) Medical Surgical Supplies & Equipment,(id:42367) Clinical Imaging & Med Physics,SQUADRON MEDICAL LTD,id:13156503  ,  51.51
Department of Health,Guys and St Thomas NHS Foundation Trust,24/07/2020,(81200) Medical Surgical Supplies & Equipment,(id:42367) Clinical Imaging & Med Physics,SQUADRON MEDICAL LTD,id:13191047  , 695.64
Department of Health,Guys and St Thomas NHS Foundation Trust,24/07/2020,(81200) Medical Surgical Supplies & Equipment,(id:42367) Clinical Imaging & Med Physics,AQUILANT LTD,id:13167195,1080.00
Department of Health,Guys and St Thomas NHS Foundation Trust,24/07/2020,(81200) Medical Surgical Supplies & Equipment,(id:42367) Clinical Imaging & Med Physics,WL GORE & ASSOCIATES (UK) LTD,id:13177518   ,1987.20
Department of Health,Guys and St Thomas NHS Foundation Trust,03/07/2020,(81235) Medical Surgical Supplies & Equipment,(id:42367) Clinical Imaging & Med Physics,NHS SUPPLY CHAIN (MAIDSTONE),id:13050854    , 360.00
Department of Health,Guys and St Thomas NHS Foundation Trust,10/07/2020,(81235) Medical Surgical Supplies & Equipment,(id:42367) Clinical Imaging & Med Physics,BARD LTD,id:13107174    , 545.88
Department of Health,Guys and St Thomas NHS Foundation Trust,24/07/2020,(81230) Medical Surgical Supplies & Equipment,(id:42367) Clinical Imaging & Med Physics,SQUADRON MEDICAL LTD,id:13170100  , 684.25
Department of Health,Guys and St Thomas NHS Foundation Trust,10/07/2020,(81500) X Ray Equipment Purchase,(id:42367) Clinical Imaging & Med Physics,BAYER PLC,id:13151096 ,3940.80
Department of Health,Guys and St Thomas NHS Foundation Trust,24/07/2020,(82800) Bedding & Linen,(id:42366) Clinical Imaging & Med Physics,NHS SUPPLY CHAIN (MAIDSTONE),id:13109396 ,  22.46
Department of Health,Guys and St Thomas NHS Foundation Trust,30/07/2020,(82800) Bedding & Linen,(id:42366) Clinical Imaging & Med Physics,NHS SUPPLY CHAIN (MAIDSTONE),id:13132074 , 127.73
Department of Health,Guys and St Thomas NHS Foundation Trust,03/07/2020,(82800) Bedding & Linen,(id:42366) Clinical Imaging & Med Physics,NHS SUPPLY CHAIN (MAIDSTONE),id:13050854 ,  22.46
Department of Health,Guys and St Thomas NHS Foundation Trust,03/07/2020,(81100) Dressings,(id:42366) Clinical Imaging & Med Physics,NHS SUPPLY CHAIN (MAIDSTONE),id:13060017  ,  83.00
Department of Health,Guys and St Thomas NHS Foundation Trust,30/07/2020,(81200) Medical Surgical Supplies & Equipment,(id:42366) Clinical Imaging & Med Physics,NHS SUPPLY CHAIN (MAIDSTONE),id:13132074    ,1283.86
Department of Health,Guys and St Thomas NHS Foundation Trust,03/07/2020,(81200) Medical Surgical Supplies & Equipment,(id:42366) Clinical Imaging & Med Physics,NHS SUPPLY CHAIN (MAIDSTONE),id:13036234    , 593.12
Department of Health,Guys and St Thomas NHS Foundation Trust,03/07/2020,(83410) Office Equipment,(id:42366) Clinical Imaging & Med Physics,RICOH UK LTD,id:13114845 , 133.67
Department of Health,Guys and St Thomas NHS Foundation Trust,24/07/2020,(81500) X Ray Equipment Purchase,(id:42366) Clinical Imaging & Med Physics,BAYER PLC,id:13171914 ,2520.00
Department of Health,Guys and St Thomas NHS Foundation Trust,24/07/2020,(81700) Lab Equipment Purchase,(id:42366) Clinical Imaging & Med Physics,NHS SUPPLY CHAIN (MAIDSTONE),id:13109396    ,  58.56
Department of Health,Guys and St Thomas NHS Foundation Trust,30/07/2020,(86300) Healthcare from non-NHS bodies,(id:42369) Clinical Imaging & Med Physics,KINGS COLLEGE LONDON:03529700,id:13126375,  1245000.00
Department of Health,Guys and St Thomas NHS Foundation Trust,17/07/2020,(82600) Uniforms & Clothing,(id:42372) Clinical Imaging & Med Physics,NHS SUPPLY CHAIN (MAIDSTONE),id:13090454  , 238.00
Department of Health,Guys and St Thomas NHS Foundation Trust,30/07/2020,(81100) Dressings,(id:42372) Clinical Imaging & Med Physics,NHS SUPPLY CHAIN (MAIDSTONE),id:13132074  ,   4.18
Department of Health,Guys and St Thomas NHS Foundation Trust,10/07/2020,(84500) Establishment,(id:42372) Clinical Imaging & Med Physics,OFFICE DEPOT UK LTD,id:13092627  , 203.29
Department of Health,Guys and St Thomas NHS Foundation Trust,03/07/2020,(81700) Lab Equipment Purchase,(id:42372) Clinical Imaging & Med Physics,NHS SUPPLY CHAIN (MAIDSTONE),id:13050854    , 130.31
Department of Health,Guys and St Thomas NHS Foundation Trust,30/07/2020,(81200) Medical Surgical Supplies & Equipment,(id:42372) Clinical Imaging & Med Physics,NHS SUPPLY CHAIN (MAIDSTONE),id:13132074    , 185.43
Department of Health,Guys and St Thomas NHS Foundation Trust,24/07/2020,(81275) Medical Surgical Supplies & Equipment,(id:42372) Clinical Imaging & Med Physics,GE HEALTHCARE UK LTD:00475800,id:13186427   ,1998.00
Department of Health,Guys and St Thomas NHS Foundation Trust,10/07/2020,(81275) Medical Surgical Supplies & Equipment,(id:42372) Clinical Imaging & Med Physics,GE HEALTHCARE UK LTD:00475800,id:13105816   , 528.00
Department of Health,Guys and St Thomas NHS Foundation Trust,30/07/2020,(81275) Medical Surgical Supplies & Equipment,(id:42372) Clinical Imaging & Med Physics,NHS SUPPLY CHAIN (MAIDSTONE),id:13132074    ,   9.05
Department of Health,Guys and St Thomas NHS Foundation Trust,24/07/2020,(81400) Medical Surgical Supplies & Equipment,(id:42379) Clinical Imaging & Med Physics,THERAPY EQUIPMENT LTD,id:13172114 , 549.15
Department of Health,Guys and St Thomas NHS Foundation Trust,30/07/2020,(82800) Bedding & Linen,(id:42379) Clinical Imaging & Med Physics,NHS SUPPLY CHAIN (MAIDSTONE),id:13132074 , 105.14
Department of Health,Guys and St Thomas NHS Foundation Trust,03/07/2020,(82800) Bedding & Linen,(id:42379) Clinical Imaging & Med Physics,NHS SUPPLY CHAIN (MAIDSTONE),id:13060017 ,  21.29
Department of Health,Guys and St Thomas NHS Foundation Trust,10/07/2020,(81200) Medical Surgical Supplies & Equipment,(id:42379) Clinical Imaging & Med Physics,INSPIRATION HEALTHCARE LTD,id:13147105 ,1818.48
Department of Health,Guys and St Thomas NHS Foundation Trust,30/07/2020,(81200) Medical Surgical Supplies & Equipment,(id:42379) Clinical Imaging & Med Physics,PLINTH MEDICAL LTD,id:13161821    ,1240.50
Department of Health,Guys and St Thomas NHS Foundation Trust,03/07/2020,(81200) Medical Surgical Supplies & Equipment,(id:42379) Clinical Imaging & Med Physics,NHS SUPPLY CHAIN (MAIDSTONE),id:13060017    , 257.89
Department of Health,Guys and St Thomas NHS Foundation Trust,03/07/2020,(81200) Medical Surgical Supplies & Equipment,(id:42379) Clinical Imaging & Med Physics,CABLEMED LTD,id:13106734, 828.00
Department of Health,Guys and St Thomas NHS Foundation Trust,24/07/2020,(81250) Medical Surgical Supplies & Equipment,(id:1348419) Clinical Imaging & Med Physics,AQUILANT DISTRIBUTION,id:13173717    ,2160.00
Department of Health,Guys and St Thomas NHS Foundation Trust,30/07/2020,(81250) Medical Surgical Supplies & Equipment,(id:1348419) Clinical Imaging & Med Physics,AQUILANT LTD,id:13178734   ,1044.00
Department of Health,Guys and St Thomas NHS Foundation Trust,30/07/2020,(81200) Medical Surgical Supplies & Equipment,(id:2625419) Transplant Renal and Urology,SQUADRON MEDICAL LTD,id:13180566  , 626.28
Department of Health,Guys and St Thomas NHS Foundation Trust,03/07/2020,(83400) Office Equipment,(id:42423) Transplant Renal and Urology,NHS SUPPLY CHAIN (MAIDSTONE),id:13036234  ,  88.70
Department of Health,Guys and St Thomas NHS Foundation Trust,17/07/2020,(81200) Medical Surgical Supplies & Equipment,(id:42419) Transplant Renal and Urology,NHS SUPPLY CHAIN (MAIDSTONE),id:13075043 , 758.22
Department of Health,Guys and St Thomas NHS Foundation Trust,30/07/2020,(50552) Qualified Nursing Staff,(id:42419) Transplant Renal and Urology,GENEVA HEALTH INTERNATIONAL LIMITED,id:13215028   , 599.04
Department of Health,Guys and St Thomas NHS Foundation Trust,17/07/2020,(83400) Office Equipment,(id:42419) Transplant Renal and Urology,NHS SUPPLY CHAIN (MAIDSTONE),id:13090454  ,  76.03
Department of Health,Guys and St Thomas NHS Foundation Trust,30/07/2020,(83400) Office Equipment,(id:42419) Transplant Renal and Urology,NHS SUPPLY CHAIN (MAIDSTONE),id:13132074  , 168.55
Department of Health,Guys and St Thomas NHS Foundation Trust,03/07/2020,(83400) Office Equipment,(id:42419) Transplant Renal and Urology,NHS SUPPLY CHAIN (MAIDSTONE),id:13050854  , 134.74
Department of Health,Guys and St Thomas NHS Foundation Trust,17/07/2020,(81700) Lab Equipment Purchase,(id:42419) Transplant Renal and Urology,NHS SUPPLY CHAIN (MAIDSTONE),id:13090454 ,  40.38
Department of Health,Guys and St Thomas NHS Foundation Trust,03/07/2020,(81700) Lab Equipment Purchase,(id:42419) Transplant Renal and Urology,NHS SUPPLY CHAIN (MAIDSTONE),id:13036234 ,  46.74
Department of Health,Guys and St Thomas NHS Foundation Trust,30/07/2020,(81700) Lab Equipment Purchase,(id:42419) Transplant Renal and Urology,NHS SUPPLY CHAIN (MAIDSTONE),id:13132074 ,  29.59
Department of Health,Guys and St Thomas NHS Foundation Trust,24/07/2020,(82000) Provisions & Kitchens,(id:969419) Transplant Renal and Urology,NHS SUPPLY CHAIN (MAIDSTONE),id:13109396 ,  92.63
Department of Health,Guys and St Thomas NHS Foundation Trust,30/07/2020,(81200) Medical Surgical Supplies & Equipment,(id:42450) Transplant Renal and Urology,SQUADRON MEDICAL LTD,id:13185248    , 774.91
Department of Health,Guys and St Thomas NHS Foundation Trust,03/07/2020,(81200) Medical Surgical Supplies & Equipment,(id:42449) Transplant Renal and Urology,NHS SUPPLY CHAIN (MAIDSTONE),id:13060017 , 840.60
Department of Health,Guys and St Thomas NHS Foundation Trust,17/07/2020,(81200) Medical Surgical Supplies & Equipment,(id:42449) Transplant Renal and Urology,BXTACCELYON LIMITED,id:13130015,6054.00
Department of Health,Guys and St Thomas NHS Foundation Trust,30/07/2020,(83400) Office Equipment,(id:42447) Transplant Renal and Urology,NHS SUPPLY CHAIN (MAIDSTONE),id:13132074  , 142.96
Department of Health,Guys and St Thomas NHS Foundation Trust,24/07/2020,(82800) Bedding & Linen,(id:42447) Transplant Renal and Urology,NHS SUPPLY CHAIN (MAIDSTONE),id:13109396   ,  63.64
Department of Health,Guys and St Thomas NHS Foundation Trust,10/07/2020,(81200) Medical Surgical Supplies & Equipment,(id:42447) Transplant Renal and Urology,COOK UK LTD,id:13132674   , 509.04
Department of Health,Guys and St Thomas NHS Foundation Trust,17/07/2020,(81100) Dressings,(id:42447) Transplant Renal and Urology,NHS SUPPLY CHAIN (MAIDSTONE),id:13090454    ,   7.01
Department of Health,Guys and St Thomas NHS Foundation Trust,24/07/2020,(81100) Dressings,(id:42447) Transplant Renal and Urology,NHS SUPPLY CHAIN (MAIDSTONE),id:13109396    ,  67.48
Department of Health,Guys and St Thomas NHS Foundation Trust,10/07/2020,(84656) Establishment,(id:42447) Transplant Renal and Urology,DICT8 LIMITED,id:13129338,1435.56
Department of Health,Guys and St Thomas NHS Foundation Trust,17/07/2020,(81225) Medical Surgical Supplies & Equipment,(id:42447) Transplant Renal and Urology,NHS SUPPLY CHAIN (MAIDSTONE),id:13090454 ,  34.56
Department of Health,Guys and St Thomas NHS Foundation Trust,24/07/2020,(82800) Bedding & Linen,(id:42446) Transplant Renal and Urology,NHS SUPPLY CHAIN (MAIDSTONE),id:13109396   ,  55.20
Department of Health,Guys and St Thomas NHS Foundation Trust,03/07/2020,(81200) Medical Surgical Supplies & Equipment,(id:42446) Transplant Renal and Urology,SQUADRON MEDICAL LTD,id:13058215    , 134.86
Department of Health,Guys and St Thomas NHS Foundation Trust,24/07/2020,(81200) Medical Surgical Supplies & Equipment,(id:42446) Transplant Renal and Urology,NHS SUPPLY CHAIN (MAIDSTONE),id:13109396 ,    .55
Department of Health,Guys and St Thomas NHS Foundation Trust,30/07/2020,(81200) Medical Surgical Supplies & Equipment,(id:42446) Transplant Renal and Urology,NHS SUPPLY CHAIN (MAIDSTONE),id:13132074 ,  14.15
Department of Health,Guys and St Thomas NHS Foundation Trust,28/07/2020,(52062) Radiographers,(id:42444) Transplant Renal and Urology,PRICEWATERHOUSECOOPERS LLP,id:13207034  ,1329.26
Department of Health,Guys and St Thomas NHS Foundation Trust,24/07/2020,(82800) Bedding & Linen,(id:42443) Transplant Renal and Urology,NHS SUPPLY CHAIN (MAIDSTONE),id:13109396   ,  56.61
Department of Health,Guys and St Thomas NHS Foundation Trust,17/07/2020,(82800) Bedding & Linen,(id:42443) Transplant Renal and Urology,NHS SUPPLY CHAIN (MAIDSTONE),id:13075043   ,  62.23
Department of Health,Guys and St Thomas NHS Foundation Trust,17/07/2020,(81200) Medical Surgical Supplies & Equipment,(id:42443) Transplant Renal and Urology,NHS SUPPLY CHAIN (MAIDSTONE),id:13090454 , 871.55
Department of Health,Guys and St Thomas NHS Foundation Trust,17/07/2020,(83400) Office Equipment,(id:42443) Transplant Renal and Urology,NHS SUPPLY CHAIN (MAIDSTONE),id:13090454  ,  97.53
Department of Health,Guys and St Thomas NHS Foundation Trust,17/07/2020,(81225) Medical Surgical Supplies & Equipment,(id:42443) Transplant Renal and Urology,NHS SUPPLY CHAIN (MAIDSTONE),id:13090454 ,  44.16
Department of Health,Guys and St Thomas NHS Foundation Trust,03/07/2020,(81225) Medical Surgical Supplies & Equipment,(id:42443) Transplant Renal and Urology,NHS SUPPLY CHAIN (MAIDSTONE),id:13050854 ,  12.74
Department of Health,Guys and St Thomas NHS Foundation Trust,24/07/2020,(82800) Bedding & Linen,(id:42442) Transplant Renal and Urology,NHS SUPPLY CHAIN (MAIDSTONE),id:13109396   ,  17.58
Department of Health,Guys and St Thomas NHS Foundation Trust,24/07/2020,(81100) Dressings,(id:42442) Transplant Renal and Urology,NHS SUPPLY CHAIN (MAIDSTONE),id:13109396    , 123.93
Department of Health,Guys and St Thomas NHS Foundation Trust,30/07/2020,(81100) Dressings,(id:42442) Transplant Renal and Urology,NHS SUPPLY CHAIN (MAIDSTONE),id:13132074    ,  20.18
Department of Health,Guys and St Thomas NHS Foundation Trust,03/07/2020,(83400) Office Equipment,(id:42442) Transplant Renal and Urology,NHS SUPPLY CHAIN (MAIDSTONE),id:13050854  ,  19.73
Department of Health,Guys and St Thomas NHS Foundation Trust,24/07/2020,(81200) Medical Surgical Supplies & Equipment,(id:42439) Transplant Renal and Urology,INTUITIVE SURGICAL LTD,id:13181354  ,    -3420.00
Department of Health,Guys and St Thomas NHS Foundation Trust,24/07/2020,(82800) Bedding & Linen,(id:42439) Transplant Renal and Urology,INTUITIVE SURGICAL LTD,id:13188005    ,6332.40
Department of Health,Guys and St Thomas NHS Foundation Trust,03/07/2020,(82700) Uniforms & Clothing,(id:42435) Transplant Renal and Urology,NHS SUPPLY CHAIN (MAIDSTONE),id:13060017    ,  55.37
Department of Health,Guys and St Thomas NHS Foundation Trust,24/07/2020,(82700) Uniforms & Clothing,(id:42435) Transplant Renal and Urology,NHS SUPPLY CHAIN (MAIDSTONE),id:13109396    ,  65.93
Department of Health,Guys and St Thomas NHS Foundation Trust,03/07/2020,(82000) Provisions & Kitchens,(id:42435) Transplant Renal and Urology,NHS SUPPLY CHAIN (MAIDSTONE),id:13060017  ,  30.00
Department of Health,Guys and St Thomas NHS Foundation Trust,17/07/2020,(82800) Bedding & Linen,(id:42435) Transplant Renal and Urology,NHS SUPPLY CHAIN (MAIDSTONE),id:13075043   ,  89.76
Department of Health,Guys and St Thomas NHS Foundation Trust,03/07/2020,(83400) Office Equipment,(id:42435) Transplant Renal and Urology,NHS SUPPLY CHAIN (MAIDSTONE),id:13060017  , 177.84
Department of Health,Guys and St Thomas NHS Foundation Trust,30/07/2020,(81700) Lab Equipment Purchase,(id:42435) Transplant Renal and Urology,NHS SUPPLY CHAIN (MAIDSTONE),id:13132074 ,  31.40
Department of Health,Guys and St Thomas NHS Foundation Trust,10/07/2020,(50552) Qualified Nursing Staff,(id:42435) Transplant Renal and Urology,GLOBE LOCUMS LTD,id:13155510  , 338.82
Department of Health,Guys and St Thomas NHS Foundation Trust,03/07/2020,(81200) Medical Surgical Supplies & Equipment,(id:42430) Transplant Renal and Urology,BAXTER HEALTHCARE LTD,id:13119814   ,2394.00
Department of Health,Guys and St Thomas NHS Foundation Trust,17/07/2020,(81200) Medical Surgical Supplies & Equipment,(id:42430) Transplant Renal and Urology,BAXTER HEALTHCARE LTD,id:13137234   ,2058.00
Department of Health,Guys and St Thomas NHS Foundation Trust,30/07/2020,(81700) Lab Equipment Purchase,(id:42428) Transplant Renal and Urology,NHS SUPPLY CHAIN (MAIDSTONE),id:13132074 ,  62.48
Department of Health,Guys and St Thomas NHS Foundation Trust,03/07/2020,(81200) Medical Surgical Supplies & Equipment,(id:42420) Transplant Renal and Urology,NHS SUPPLY CHAIN (MAIDSTONE),id:13036234 , 765.36
Department of Health,Guys and St Thomas NHS Foundation Trust,30/07/2020,(81200) Medical Surgical Supplies & Equipment,(id:42420) Transplant Renal and Urology,SQUADRON MEDICAL LTD,id:13185168    , 740.59
Department of Health,Guys and St Thomas NHS Foundation Trust,17/07/2020,(81200) Medical Surgical Supplies & Equipment,(id:42420) Transplant Renal and Urology,NHS SUPPLY CHAIN (MAIDSTONE),id:13075043 ,1241.88
Department of Health,Guys and St Thomas NHS Foundation Trust,24/07/2020,(81200) Medical Surgical Supplies & Equipment,(id:42420) Transplant Renal and Urology,NHS SUPPLY CHAIN (MAIDSTONE),id:13109396 ,1505.59
Department of Health,Guys and St Thomas NHS Foundation Trust,17/07/2020,(81100) Dressings,(id:42420) Transplant Renal and Urology,NHS SUPPLY CHAIN (MAIDSTONE),id:13090454    ,  25.67
Department of Health,Guys and St Thomas NHS Foundation Trust,03/07/2020,(81700) Lab Equipment Purchase,(id:42420) Transplant Renal and Urology,NHS SUPPLY CHAIN (MAIDSTONE),id:13050854 ,  74.10
Department of Health,Guys and St Thomas NHS Foundation Trust,17/07/2020,(81200) Medical Surgical Supplies & Equipment,(id:42438) Transplant Renal and Urology,NHS SUPPLY CHAIN (MAIDSTONE),id:13075043 ,  84.00
Department of Health,Guys and St Thomas NHS Foundation Trust,17/07/2020,(83400) Office Equipment,(id:42438) Transplant Renal and Urology,NHS SUPPLY CHAIN (MAIDSTONE),id:13075043  , 212.45
Department of Health,Guys and St Thomas NHS Foundation Trust,24/07/2020,(83880) Building & Engineering,(id:42437) Transplant Renal and Urology,DIAVERUM UK LTD,id:13184254    ,1670.76
Department of Health,Guys and St Thomas NHS Foundation Trust,10/07/2020,(81200) Medical Surgical Supplies & Equipment,(id:42425) Transplant Renal and Urology,SQUADRON MEDICAL LTD,id:13135514    , 549.50
Department of Health,Guys and St Thomas NHS Foundation Trust,03/07/2020,(81200) Medical Surgical Supplies & Equipment,(id:42424) Transplant Renal and Urology,DIAVERUM UK LTD,id:13121987    ,    54791.10
Department of Health,Guys and St Thomas NHS Foundation Trust,10/07/2020,(83880) Building & Engineering,(id:42424) Transplant Renal and Urology,DIAVERUM UK LTD,id:13155317    ,1719.90
Department of Health,Guys and St Thomas NHS Foundation Trust,10/07/2020,(81200) Medical Surgical Supplies & Equipment,(id:42422) Transplant Renal and Urology,BAXTER HEALTHCARE LTD,id:13103112   , 666.50
Department of Health,Guys and St Thomas NHS Foundation Trust,10/07/2020,(81200) Medical Surgical Supplies & Equipment,(id:42422) Transplant Renal and Urology,NXSTAGE MEDICAL UK LIMITED,id:13137761   , 729.72
Department of Health,Guys and St Thomas NHS Foundation Trust,03/07/2020,(81700) Lab Equipment Purchase,(id:42422) Transplant Renal and Urology,NHS SUPPLY CHAIN (MAIDSTONE),id:13060017 ,  12.24
Department of Health,Guys and St Thomas NHS Foundation Trust,17/07/2020,(82000) Provisions & Kitchens,(id:42421) Transplant Renal and Urology,NHS SUPPLY CHAIN (MAIDSTONE),id:13075043  ,  18.43
Department of Health,Guys and St Thomas NHS Foundation Trust,10/07/2020,(81200) Medical Surgical Supplies & Equipment,(id:42421) Transplant Renal and Urology,BAXTER HEALTHCARE LTD,id:13060975   ,1177.19
Department of Health,Guys and St Thomas NHS Foundation Trust,24/07/2020,(81200) Medical Surgical Supplies & Equipment,(id:42421) Transplant Renal and Urology,BAXTER HEALTHCARE LTD,id:13061074   , 636.91
Department of Health,Guys and St Thomas NHS Foundation Trust,24/07/2020,(81200) Medical Surgical Supplies & Equipment,(id:42421) Transplant Renal and Urology,BAXTER HEALTHCARE LTD,id:13181794   , 993.38
Department of Health,Guys and St Thomas NHS Foundation Trust,24/07/2020,(81200) Medical Surgical Supplies & Equipment,(id:42421) Transplant Renal and Urology,BAXTER HEALTHCARE LTD,id:13181654   ,1294.05
Department of Health,Guys and St Thomas NHS Foundation Trust,17/07/2020,(83880) Building & Engineering,(id:42421) Transplant Renal and Urology,DIAVERUM UK LTD,id:13107436    ,   116819.64
Department of Health,Guys and St Thomas NHS Foundation Trust,17/07/2020,(81200) Medical Surgical Supplies & Equipment,(id:4622425) Transplant Renal and Urology,NXSTAGE MEDICAL UK LIMITED,id:13166118 ,1906.08
Department of Health,Guys and St Thomas NHS Foundation Trust,24/07/2020,(83765) Rent,(id:4622425) Transplant Renal and Urology,FRESENIUS MEDICAL CARE RENAL SERVICES LT,id:13167174,    -1500.00
Department of Health,Guys and St Thomas NHS Foundation Trust,03/07/2020,(83400) Office Equipment,(id:4622425) Transplant Renal and Urology,ALPHA LABORATORIES LTD,id:13128272 , 709.44
Department of Health,Guys and St Thomas NHS Foundation Trust,03/07/2020,(89000) Other - Training courses and conferences,(id:42417) Transplant Renal and Urology,KINGS FUND,id:13134229 ,2900.00
Department of Health,Guys and St Thomas NHS Foundation Trust,03/07/2020,(81200) Medical Surgical Supplies & Equipment,(id:42025) Dental Services,HENRY SCHEIN,id:13136834, 719.16
Department of Health,Guys and St Thomas NHS Foundation Trust,30/07/2020,(82000) Provisions & Kitchens,(id:42007) Dental Services,NHS SUPPLY CHAIN (MAIDSTONE),id:13132074,   8.60
Department of Health,Guys and St Thomas NHS Foundation Trust,10/07/2020,(81200) Medical Surgical Supplies & Equipment,(id:42007) Dental Services,HENRY SCHEIN,id:13145183, 520.56
Department of Health,Guys and St Thomas NHS Foundation Trust,17/07/2020,(81200) Medical Surgical Supplies & Equipment,(id:42007) Dental Services,NHS SUPPLY CHAIN (MAIDSTONE),id:13075043    , 234.43
Department of Health,Guys and St Thomas NHS Foundation Trust,03/07/2020,(83400) Office Equipment,(id:42005) Dental Services,NHS SUPPLY CHAIN (MAIDSTONE),id:13060017,  44.39
Department of Health,Guys and St Thomas NHS Foundation Trust,03/07/2020,(50200) Consultants,(id:42015) Dental Services,KINGS COLLEGE LONDON:03529700,id:13003094    ,    11718.54
Department of Health,Guys and St Thomas NHS Foundation Trust,30/07/2020,(50470) Medical Training Grades,(id:42033) Dental Services,BRIGHTON AND SUSSEX UNIVERSITY HOSPITALS NHS TRUST,id:12841377 ,1919.04
Department of Health,Guys and St Thomas NHS Foundation Trust,10/07/2020,(81400) Medical Surgical Supplies & Equipment,(id:42027) Dental Services,CARL ZEISS LTD,id:13141600   , 724.20
Department of Health,Guys and St Thomas NHS Foundation Trust,03/07/2020,(50200) Consultants,(id:42018) Dental Services,KINGS COLLEGE LONDON:03529700,id:13003094    ,1363.95
Department of Health,Guys and St Thomas NHS Foundation Trust,17/07/2020,(81200) Medical Surgical Supplies & Equipment,(id:42016) Dental Services,DENTSPLY IH LTD,id:13157994  , 582.76
Department of Health,Guys and St Thomas NHS Foundation Trust,30/07/2020,(81200) Medical Surgical Supplies & Equipment,(id:42016) Dental Services,DENTSPLY IH LTD,id:13157457  ,1920.88
Department of Health,Guys and St Thomas NHS Foundation Trust,03/07/2020,(81200) Medical Surgical Supplies & Equipment,(id:42016) Dental Services,DENTSPLY IH LTD,id:13122095  , 579.31
Department of Health,Guys and St Thomas NHS Foundation Trust,03/07/2020,(50203) Consultants,(id:42014) Dental Services,KINGS COLLEGE LONDON:03529700,id:13003094    ,6332.55
Department of Health,Guys and St Thomas NHS Foundation Trust,30/07/2020,(83400) Office Equipment,(id:42014) Dental Services,NHS SUPPLY CHAIN (MAIDSTONE),id:13132074,  26.58
Department of Health,Guys and St Thomas NHS Foundation Trust,10/07/2020,(81400) Medical Surgical Supplies & Equipment,(id:42035) Dental Services,B.BRAUN MEDICAL LTD,id:13151114   ,2497.00
Department of Health,Guys and St Thomas NHS Foundation Trust,30/07/2020,(81200) Medical Surgical Supplies & Equipment,(id:1634433) Dental Services,NHS SUPPLY CHAIN (MAIDSTONE),id:13132074  ,  28.15
Department of Health,Guys and St Thomas NHS Foundation Trust,17/07/2020,(81200) Medical Surgical Supplies & Equipment,(id:1634433) Dental Services,NHS SUPPLY CHAIN (MAIDSTONE),id:13075043  , 255.96
Department of Health,Guys and St Thomas NHS Foundation Trust,17/07/2020,(81700) Lab Equipment Purchase,(id:1634433) Dental Services,NHS SUPPLY CHAIN (MAIDSTONE),id:13090454  , 291.43
Department of Health,Guys and St Thomas NHS Foundation Trust,24/07/2020,(81700) Lab Equipment Purchase,(id:1634433) Dental Services,NHS SUPPLY CHAIN (MAIDSTONE),id:13109396  , 780.22
Department of Health,Guys and St Thomas NHS Foundation Trust,17/07/2020,(83400) Office Equipment,(id:1634429) Dental Services,NHS SUPPLY CHAIN (MAIDSTONE),id:13090454   ,  77.47
Department of Health,Guys and St Thomas NHS Foundation Trust,30/07/2020,(83400) Office Equipment,(id:1634429) Dental Services,NHS SUPPLY CHAIN (MAIDSTONE),id:13132074   ,  38.23
Department of Health,Guys and St Thomas NHS Foundation Trust,03/07/2020,(83400) Office Equipment,(id:1634429) Dental Services,NHS SUPPLY CHAIN (MAIDSTONE),id:13050854   ,  47.94
Department of Health,Guys and St Thomas NHS Foundation Trust,17/07/2020,(81200) Medical Surgical Supplies & Equipment,(id:1634429) Dental Services,HENRY SCHEIN,id:13162266   , 574.51
Department of Health,Guys and St Thomas NHS Foundation Trust,03/07/2020,(81100) Dressings,(id:1634429) Dental Services,NHS SUPPLY CHAIN (MAIDSTONE),id:13036234,   1.27
Department of Health,Guys and St Thomas NHS Foundation Trust,10/07/2020,(81700) Lab Equipment Purchase,(id:42011) Dental Services,SKILLBOND  DIRECT LTD,id:13151105 ,3609.23
Department of Health,Guys and St Thomas NHS Foundation Trust,03/07/2020,(50200) Consultants,(id:4225419) Specialist Ambulatory Services,KINGS COLLEGE LONDON:03529700,id:13001828  ,4162.49
Department of Health,Guys and St Thomas NHS Foundation Trust,03/07/2020,(82800) Bedding & Linen,(id:641456) Specialist Ambulatory Services,NHS SUPPLY CHAIN (MAIDSTONE),id:13036234,  74.86
Department of Health,Guys and St Thomas NHS Foundation Trust,24/07/2020,(81000) Surgical Appliances,(id:42195) Specialist Ambulatory Services,TALAR MADE ORTHOTICS LTD,id:13188587 ,  29.40
Department of Health,Guys and St Thomas NHS Foundation Trust,03/07/2020,(81200) Medical Surgical Supplies & Equipment,(id:42193) Specialist Ambulatory Services,NHS SUPPLY CHAIN (MAIDSTONE),id:13036234    , 268.20
Department of Health,Guys and St Thomas NHS Foundation Trust,30/07/2020,(50552) Qualified Nursing Staff,(id:42193) Specialist Ambulatory Services,CONTINENTAL NURSE LTD,id:13212486,2138.44
Department of Health,Guys and St Thomas NHS Foundation Trust,24/07/2020,(81000) Surgical Appliances,(id:42193) Specialist Ambulatory Services,TALAR MADE ORTHOTICS LTD,id:13178476 ,   8.50
Department of Health,Guys and St Thomas NHS Foundation Trust,17/07/2020,(89595) Non-Healthcare from Foundation Trusts,(id:42358) Specialist Ambulatory Services,ST GEORGE'S UNIVERSITY HOSPITALS NHS FOUNDATION TRUST,id:13157515    ,    15610.00
Department of Health,Guys and St Thomas NHS Foundation Trust,17/07/2020,(89595) Non-Healthcare from Foundation Trusts,(id:42354) Specialist Ambulatory Services,SHEFFIELD CHILDREN'S NHS FOUNDATION TRUST,id:12932946 , 800.00
Department of Health,Guys and St Thomas NHS Foundation Trust,24/07/2020,(81200) Medical Surgical Supplies & Equipment,(id:3607419) Specialist Ambulatory Services,NHS SUPPLY CHAIN (MAIDSTONE),id:13109396  , 264.94
Department of Health,Guys and St Thomas NHS Foundation Trust,03/07/2020,(82000) Provisions & Kitchens,(id:42094) Specialist Ambulatory Services,NHS SUPPLY CHAIN (MAIDSTONE),id:13050854,  12.39
Department of Health,Guys and St Thomas NHS Foundation Trust,30/07/2020,(89640) Non-Healthcare from NHS Trusts,(id:42092) Specialist Ambulatory Services,LEEDS TEACHING HOSPITALS NHS TRUST,id:12097612, 300.00
Department of Health,Guys and St Thomas NHS Foundation Trust,03/07/2020,(81200) Medical Surgical Supplies & Equipment,(id:42091) Specialist Ambulatory Services,NHS SUPPLY CHAIN (MAIDSTONE),id:13050854    , 381.76
Department of Health,Guys and St Thomas NHS Foundation Trust,24/07/2020,(82000) Provisions & Kitchens,(id:42091) Specialist Ambulatory Services,NHS SUPPLY CHAIN (MAIDSTONE),id:13109396,   9.22
Department of Health,Guys and St Thomas NHS Foundation Trust,03/07/2020,(82000) Provisions & Kitchens,(id:42088) Specialist Ambulatory Services,NHS SUPPLY CHAIN (MAIDSTONE),id:13050854,   7.80
Department of Health,Guys and St Thomas NHS Foundation Trust,03/07/2020,(81100) Dressings,(id:42097) Specialist Ambulatory Services,NHS SUPPLY CHAIN (MAIDSTONE),id:13036234  , 225.91
Department of Health,Guys and St Thomas NHS Foundation Trust,17/07/2020,(81100) Dressings,(id:42097) Specialist Ambulatory Services,NHS SUPPLY CHAIN (MAIDSTONE),id:13090454  , 272.02
Department of Health,Guys and St Thomas NHS Foundation Trust,30/07/2020,(81100) Dressings,(id:42097) Specialist Ambulatory Services,NHS SUPPLY CHAIN (MAIDSTONE),id:13132074  , 293.55
Department of Health,Guys and St Thomas NHS Foundation Trust,03/07/2020,(81100) Dressings,(id:42079) Specialist Ambulatory Services,NHS SUPPLY CHAIN (MAIDSTONE),id:13050854  , 101.79
Department of Health,Guys and St Thomas NHS Foundation Trust,17/07/2020,(81100) Dressings,(id:42079) Specialist Ambulatory Services,NHS SUPPLY CHAIN (MAIDSTONE),id:13090454  , 769.42
Department of Health,Guys and St Thomas NHS Foundation Trust,17/07/2020,(81100) Dressings,(id:42079) Specialist Ambulatory Services,NHS SUPPLY CHAIN (MAIDSTONE),id:13075043  ,  26.68
Department of Health,Guys and St Thomas NHS Foundation Trust,24/07/2020,(80010) Drug Costs,(id:42079) Specialist Ambulatory Services,THERAKOS (UK) LIMITED,id:13194035   ,-748.80
Department of Health,Guys and St Thomas NHS Foundation Trust,24/07/2020,(80010) Drug Costs,(id:42079) Specialist Ambulatory Services,THERAKOS (UK) LIMITED,id:13194014   ,-748.80
Department of Health,Guys and St Thomas NHS Foundation Trust,24/07/2020,(80010) Drug Costs,(id:42079) Specialist Ambulatory Services,THERAKOS (UK) LIMITED,id:13055002   ,    22464.00
Department of Health,Guys and St Thomas NHS Foundation Trust,24/07/2020,(80010) Drug Costs,(id:42079) Specialist Ambulatory Services,THERAKOS (UK) LIMITED,id:13057404   ,    22464.00
Department of Health,Guys and St Thomas NHS Foundation Trust,03/07/2020,(81700) Lab Equipment Purchase,(id:42079) Specialist Ambulatory Services,NHS SUPPLY CHAIN (MAIDSTONE),id:13060017    ,  11.86
Department of Health,Guys and St Thomas NHS Foundation Trust,03/07/2020,(81200) Medical Surgical Supplies & Equipment,(id:42079) Specialist Ambulatory Services,NHS SUPPLY CHAIN (MAIDSTONE),id:13036234    , 526.83
Department of Health,Guys and St Thomas NHS Foundation Trust,17/07/2020,(83400) Office Equipment,(id:42079) Specialist Ambulatory Services,NHS SUPPLY CHAIN (MAIDSTONE),id:13090454, 137.42
Department of Health,Guys and St Thomas NHS Foundation Trust,03/07/2020,(83400) Office Equipment,(id:42079) Specialist Ambulatory Services,NHS SUPPLY CHAIN (MAIDSTONE),id:13036234,   1.51
Department of Health,Guys and St Thomas NHS Foundation Trust,03/07/2020,(82800) Bedding & Linen,(id:42066) Specialist Ambulatory Services,NHS SUPPLY CHAIN (MAIDSTONE),id:13060017 ,  79.25
Department of Health,Guys and St Thomas NHS Foundation Trust,17/07/2020,(82800) Bedding & Linen,(id:42089) Specialist Ambulatory Services,NHS SUPPLY CHAIN (MAIDSTONE),id:13075043 ,  28.49
Department of Health,Guys and St Thomas NHS Foundation Trust,17/07/2020,(82800) Bedding & Linen,(id:42064) Specialist Ambulatory Services,NHS SUPPLY CHAIN (MAIDSTONE),id:13075043 , 200.76
Department of Health,Guys and St Thomas NHS Foundation Trust,03/07/2020,(83410) Office Equipment,(id:42064) Specialist Ambulatory Services,RICOH UK LTD,id:13114845 , 158.47
Department of Health,Guys and St Thomas NHS Foundation Trust,24/07/2020,(83400) Office Equipment,(id:590565) Specialist Ambulatory Services,NHS SUPPLY CHAIN (MAIDSTONE),id:13109396    ,  10.44
Department of Health,Guys and St Thomas NHS Foundation Trust,17/07/2020,(82800) Bedding & Linen,(id:590565) Specialist Ambulatory Services,NHS SUPPLY CHAIN (MAIDSTONE),id:13090454,  81.65
Department of Health,Guys and St Thomas NHS Foundation Trust,17/07/2020,(84656) Establishment,(id:42057) Specialist Ambulatory Services,DICT8 LIMITED,id:13162916   ,1844.88
Department of Health,Guys and St Thomas NHS Foundation Trust,17/07/2020,(82800) Bedding & Linen,(id:42057) Specialist Ambulatory Services,NHS SUPPLY CHAIN (MAIDSTONE),id:13090454 , 160.70
Department of Health,Guys and St Thomas NHS Foundation Trust,10/07/2020,(83400) Office Equipment,(id:42055) Specialist Ambulatory Services,HENLEYS MEDICAL SUPPLIES LTD,id:13145998, 562.08
Department of Health,Guys and St Thomas NHS Foundation Trust,24/07/2020,(82800) Bedding & Linen,(id:42050) Specialist Ambulatory Services,NHS SUPPLY CHAIN (MAIDSTONE),id:13109396 ,  43.24
Department of Health,Guys and St Thomas NHS Foundation Trust,24/07/2020,(81200) Medical Surgical Supplies & Equipment,(id:42050) Specialist Ambulatory Services,NHS SUPPLY CHAIN (MAIDSTONE),id:13109396    , 423.80
Department of Health,Guys and St Thomas NHS Foundation Trust,17/07/2020,(81100) Dressings,(id:42050) Specialist Ambulatory Services,NHS SUPPLY CHAIN (MAIDSTONE),id:13075043  , 313.56
Department of Health,Guys and St Thomas NHS Foundation Trust,30/07/2020,(81700) Lab Equipment Purchase,(id:42050) Specialist Ambulatory Services,NHS SUPPLY CHAIN (MAIDSTONE),id:13132074    , 148.51
Department of Health,Guys and St Thomas NHS Foundation Trust,30/07/2020,(81900) Lab Equipment Purchase,(id:111406) Pathology SDU,VIAPATH ANALYTICS LLP,id:13204758  ,    16359.84
Department of Health,Guys and St Thomas NHS Foundation Trust,02/07/2020,(81900) Lab Equipment Purchase,(id:111406) Pathology SDU,VIAPATH SERVICES LLP,id:13136134   ,  1885724.00
Department of Health,Guys and St Thomas NHS Foundation Trust,30/07/2020,(81275) Medical Surgical Supplies & Equipment,(id:42134) Pathology SDU,GRIFOLS UK,id:13002879    ,8550.00
Department of Health,Guys and St Thomas NHS Foundation Trust,24/07/2020,(89600) Non-Healthcare from other NHS bodies,(id:42134) Pathology SDU,NHS BLOOD AND TRANSPLANT,id:13169494 ,   230247.61
Department of Health,Guys and St Thomas NHS Foundation Trust,28/07/2020,(53682) Pharmacists,(id:42165) Pharmacy,PRICEWATERHOUSECOOPERS LLP,id:13200554    ,1771.47
Department of Health,Guys and St Thomas NHS Foundation Trust,03/07/2020,(83410) Office Equipment,(id:42165) Pharmacy,RICOH UK LTD,id:13114845   , 163.54
Department of Health,Guys and St Thomas NHS Foundation Trust,14/07/2020,(83400) Office Equipment,(id:42152) Pharmacy,UPTODATE,id:13153914  , 603.78
Department of Health,Guys and St Thomas NHS Foundation Trust,03/07/2020,(81200) Medical Surgical Supplies & Equipment,(id:581409) Pharmacy,NHS SUPPLY CHAIN (MAIDSTONE),id:13036234, 517.81
Department of Health,Guys and St Thomas NHS Foundation Trust,10/07/2020,(83400) Office Equipment,(id:581409) Pharmacy,AQUILANT DISTRIBUTION,id:13137767   ,1412.52
Department of Health,Guys and St Thomas NHS Foundation Trust,10/07/2020,(81400) Medical Surgical Supplies & Equipment,(id:42159) Pharmacy,RIVA EUROPE LTD,id:13147226    ,2740.00
Department of Health,Guys and St Thomas NHS Foundation Trust,07/07/2020,(54052) Technical Officers,(id:42159) Pharmacy,PRICEWATERHOUSECOOPERS LLP,id:13147438  ,1075.54
Department of Health,Guys and St Thomas NHS Foundation Trust,10/07/2020,(89000) Other - Training courses and conferences,(id:42159) Pharmacy,THE STATIONERY OFFICE LTD (NATHNAC PAYMENT CENTRE),id:13147944 , 533.33
Department of Health,Guys and St Thomas NHS Foundation Trust,17/07/2020,(83400) Office Equipment,(id:42159) Pharmacy,FREESTEAD PROCESS TECHNOLOGY LTD,id:13164236   , 190.08
Department of Health,Guys and St Thomas NHS Foundation Trust,30/07/2020,(83400) Office Equipment,(id:42159) Pharmacy,CI SYSTEMS LTD,id:13198613 ,    10560.00
Department of Health,Guys and St Thomas NHS Foundation Trust,03/07/2020,(83400) Office Equipment,(id:42159) Pharmacy,NHS SUPPLY CHAIN (MAIDSTONE),id:13050854  , 103.63
Department of Health,Guys and St Thomas NHS Foundation Trust,24/07/2020,(81275) Medical Surgical Supplies & Equipment,(id:42159) Pharmacy,PHENOMENEX UK LTD,id:13179280  ,1343.00
Department of Health,Guys and St Thomas NHS Foundation Trust,10/07/2020,(81275) Medical Surgical Supplies & Equipment,(id:42159) Pharmacy,VWR INTERNATIONAL LTD,id:13145759   ,1789.20
Department of Health,Guys and St Thomas NHS Foundation Trust,30/07/2020,(81700) Lab Equipment Purchase,(id:42159) Pharmacy,NHS SUPPLY CHAIN (MAIDSTONE),id:13132074 , 669.31
Department of Health,Guys and St Thomas NHS Foundation Trust,17/07/2020,(84500) Establishment,(id:42160) Pharmacy,OFFICE DEPOT UK LTD,id:13152296    , 519.66
Department of Health,Guys and St Thomas NHS Foundation Trust,17/07/2020,(83400) Office Equipment,(id:42160) Pharmacy,NHS SUPPLY CHAIN (MAIDSTONE),id:13090454  ,  29.45
Department of Health,Guys and St Thomas NHS Foundation Trust,03/07/2020,(83410) Office Equipment,(id:41974) Medical Specialties,RICOH UK LTD,id:13114845  ,  54.18
Department of Health,Guys and St Thomas NHS Foundation Trust,30/07/2020,(81000) Surgical Appliances,(id:42171) Medical Specialties,MEDI UK LTD,id:13204756,  26.02
Department of Health,Guys and St Thomas NHS Foundation Trust,24/07/2020,(81400) Medical Surgical Supplies & Equipment,(id:42224) Medical Specialties,NHS SUPPLY CHAIN ( CAPITAL FUND ONLY),id:13194358 , 271.84
Department of Health,Guys and St Thomas NHS Foundation Trust,03/07/2020,(81200) Medical Surgical Supplies & Equipment,(id:42223) Medical Specialties,NHS SUPPLY CHAIN (MAIDSTONE),id:13036234, 128.64
Department of Health,Guys and St Thomas NHS Foundation Trust,03/07/2020,(81200) Medical Surgical Supplies & Equipment,(id:42223) Medical Specialties,BLINK MEDICAL LTD,id:13130154 ,4929.60
Department of Health,Guys and St Thomas NHS Foundation Trust,30/07/2020,(81200) Medical Surgical Supplies & Equipment,(id:42223) Medical Specialties,SQUADRON MEDICAL LTD,id:13191109   , 559.96
Department of Health,Guys and St Thomas NHS Foundation Trust,10/07/2020,(81400) Medical Surgical Supplies & Equipment,(id:42223) Medical Specialties,CARL ZEISS LTD,id:13141600    ,8836.60
Department of Health,Guys and St Thomas NHS Foundation Trust,03/07/2020,(83410) Office Equipment,(id:42223) Medical Specialties,RICOH UK LTD,id:13114845  , 614.55
Department of Health,Guys and St Thomas NHS Foundation Trust,03/07/2020,(82000) Provisions & Kitchens,(id:42223) Medical Specialties,NHS SUPPLY CHAIN (MAIDSTONE),id:13060017 ,  15.60
Department of Health,Guys and St Thomas NHS Foundation Trust,30/07/2020,(82000) Provisions & Kitchens,(id:42221) Medical Specialties,NHS SUPPLY CHAIN (MAIDSTONE),id:13132074 ,   5.76
Department of Health,Guys and St Thomas NHS Foundation Trust,24/07/2020,(81200) Medical Surgical Supplies & Equipment,(id:42221) Medical Specialties,ALCON EYE CARE UK LIMITED,id:13190158   ,1008.00
Department of Health,Guys and St Thomas NHS Foundation Trust,24/07/2020,(81200) Medical Surgical Supplies & Equipment,(id:42221) Medical Specialties,ALCON EYE CARE UK LIMITED,id:13190157   ,4608.00
Department of Health,Guys and St Thomas NHS Foundation Trust,30/07/2020,(81200) Medical Surgical Supplies & Equipment,(id:42221) Medical Specialties,SQUADRON MEDICAL LTD,id:13180597   , 854.78
Department of Health,Guys and St Thomas NHS Foundation Trust,30/07/2020,(81200) Medical Surgical Supplies & Equipment,(id:42221) Medical Specialties,NHS SUPPLY CHAIN (MAIDSTONE),id:13132074, 304.72
Department of Health,Guys and St Thomas NHS Foundation Trust,17/07/2020,(81200) Medical Surgical Supplies & Equipment,(id:42221) Medical Specialties,NHS SUPPLY CHAIN (MAIDSTONE),id:13090454,2213.82
Department of Health,Guys and St Thomas NHS Foundation Trust,17/07/2020,(81100) Dressings,(id:42221) Medical Specialties,NHS SUPPLY CHAIN (MAIDSTONE),id:13090454   ,   3.96
Department of Health,Guys and St Thomas NHS Foundation Trust,17/07/2020,(81100) Dressings,(id:42221) Medical Specialties,NHS SUPPLY CHAIN (MAIDSTONE),id:13075043   ,  17.04
Department of Health,Guys and St Thomas NHS Foundation Trust,17/07/2020,(82000) Provisions & Kitchens,(id:42213) Medical Specialties,NHS SUPPLY CHAIN (MAIDSTONE),id:13075043 ,  29.00
Department of Health,Guys and St Thomas NHS Foundation Trust,03/07/2020,(82000) Provisions & Kitchens,(id:42213) Medical Specialties,NHS SUPPLY CHAIN (MAIDSTONE),id:13050854 ,  38.54
Department of Health,Guys and St Thomas NHS Foundation Trust,03/07/2020,(82800) Bedding & Linen,(id:42213) Medical Specialties,NHS SUPPLY CHAIN (MAIDSTONE),id:13050854  ,  40.18
Department of Health,Guys and St Thomas NHS Foundation Trust,03/07/2020,(81200) Medical Surgical Supplies & Equipment,(id:42213) Medical Specialties,NHS SUPPLY CHAIN (MAIDSTONE),id:13050854,  66.04
Department of Health,Guys and St Thomas NHS Foundation Trust,30/07/2020,(81200) Medical Surgical Supplies & Equipment,(id:42213) Medical Specialties,MEDTRONIC LTD,id:13098858,1261.26
Department of Health,Guys and St Thomas NHS Foundation Trust,17/07/2020,(81200) Medical Surgical Supplies & Equipment,(id:42213) Medical Specialties,CORPTELUK,id:13162816    ,   7.20
Department of Health,Guys and St Thomas NHS Foundation Trust,24/07/2020,(81000) Surgical Appliances,(id:42213) Medical Specialties,TALAR MADE ORTHOTICS LTD,id:13189634  , 422.59
Department of Health,Guys and St Thomas NHS Foundation Trust,30/07/2020,(81000) Surgical Appliances,(id:42213) Medical Specialties,TALAR MADE ORTHOTICS LTD,id:13206454  , 570.00
Department of Health,Guys and St Thomas NHS Foundation Trust,24/07/2020,(81000) Surgical Appliances,(id:42209) Medical Specialties,TALAR MADE ORTHOTICS LTD,id:13188454  , 114.00
Department of Health,Guys and St Thomas NHS Foundation Trust,30/07/2020,(81000) Surgical Appliances,(id:42209) Medical Specialties,LBG MEDICAL LTD,id:13208634 ,  68.64
Department of Health,Guys and St Thomas NHS Foundation Trust,17/07/2020,(82000) Provisions & Kitchens,(id:42208) Medical Specialties,NHS SUPPLY CHAIN (MAIDSTONE),id:13075043 ,    .57
Department of Health,Guys and St Thomas NHS Foundation Trust,03/07/2020,(81200) Medical Surgical Supplies & Equipment,(id:42208) Medical Specialties,MEDTRONIC LTD,id:13131987, 996.01
Department of Health,Guys and St Thomas NHS Foundation Trust,03/07/2020,(81200) Medical Surgical Supplies & Equipment,(id:42208) Medical Specialties,DEXCOM INTERNATIONAL,id:13116614   , 793.50
Department of Health,Guys and St Thomas NHS Foundation Trust,03/07/2020,(81200) Medical Surgical Supplies & Equipment,(id:42208) Medical Specialties,DEXCOM INTERNATIONAL,id:13071357   , 793.50
Department of Health,Guys and St Thomas NHS Foundation Trust,03/07/2020,(81200) Medical Surgical Supplies & Equipment,(id:42208) Medical Specialties,DEXCOM INTERNATIONAL,id:13086716   , 793.50
Department of Health,Guys and St Thomas NHS Foundation Trust,03/07/2020,(81200) Medical Surgical Supplies & Equipment,(id:42208) Medical Specialties,MEDTRONIC LTD,id:13131554, 567.00
Department of Health,Guys and St Thomas NHS Foundation Trust,30/07/2020,(81200) Medical Surgical Supplies & Equipment,(id:42208) Medical Specialties,DEXCOM INTERNATIONAL,id:13127596   , 793.50
Department of Health,Guys and St Thomas NHS Foundation Trust,30/07/2020,(81200) Medical Surgical Supplies & Equipment,(id:42208) Medical Specialties,DEXCOM INTERNATIONAL,id:13147034   , 793.50
Department of Health,Guys and St Thomas NHS Foundation Trust,30/07/2020,(81200) Medical Surgical Supplies & Equipment,(id:42208) Medical Specialties,MEDTRONIC LTD,id:13123614, 989.42
Department of Health,Guys and St Thomas NHS Foundation Trust,30/07/2020,(81200) Medical Surgical Supplies & Equipment,(id:42208) Medical Specialties,DEXCOM INTERNATIONAL,id:13145468   , 600.00
Department of Health,Guys and St Thomas NHS Foundation Trust,30/07/2020,(81200) Medical Surgical Supplies & Equipment,(id:42208) Medical Specialties,DEXCOM INTERNATIONAL,id:13195218   , 793.50
Department of Health,Guys and St Thomas NHS Foundation Trust,30/07/2020,(81200) Medical Surgical Supplies & Equipment,(id:42208) Medical Specialties,MEDTRONIC LTD,id:13131541, 567.00
Department of Health,Guys and St Thomas NHS Foundation Trust,30/07/2020,(81200) Medical Surgical Supplies & Equipment,(id:42208) Medical Specialties,MEDTRONIC LTD,id:13123634, 567.00
Department of Health,Guys and St Thomas NHS Foundation Trust,30/07/2020,(81200) Medical Surgical Supplies & Equipment,(id:42208) Medical Specialties,INSULET INTERNATIONAL LTD,id:13188215   , 712.08
Department of Health,Guys and St Thomas NHS Foundation Trust,30/07/2020,(81200) Medical Surgical Supplies & Equipment,(id:42208) Medical Specialties,INSULET INTERNATIONAL LTD,id:13179934   , 712.08
Department of Health,Guys and St Thomas NHS Foundation Trust,30/07/2020,(81200) Medical Surgical Supplies & Equipment,(id:42208) Medical Specialties,INSULET INTERNATIONAL LTD,id:13109894   , 712.08
Department of Health,Guys and St Thomas NHS Foundation Trust,03/07/2020,(81200) Medical Surgical Supplies & Equipment,(id:42208) Medical Specialties,MEDTRONIC LTD,id:13105546,-957.48
Department of Health,Guys and St Thomas NHS Foundation Trust,10/07/2020,(81200) Medical Surgical Supplies & Equipment,(id:42208) Medical Specialties,DEXCOM INTERNATIONAL,id:13127614   , 793.50
Department of Health,Guys and St Thomas NHS Foundation Trust,10/07/2020,(81200) Medical Surgical Supplies & Equipment,(id:42208) Medical Specialties,MEDTRONIC LTD,id:13151471, 775.30
Department of Health,Guys and St Thomas NHS Foundation Trust,10/07/2020,(81200) Medical Surgical Supplies & Equipment,(id:42208) Medical Specialties,MEDTRONIC LTD,id:13144636,1134.00
Department of Health,Guys and St Thomas NHS Foundation Trust,17/07/2020,(81200) Medical Surgical Supplies & Equipment,(id:42208) Medical Specialties,DEXCOM INTERNATIONAL,id:13166214   , 793.50
Department of Health,Guys and St Thomas NHS Foundation Trust,30/07/2020,(81200) Medical Surgical Supplies & Equipment,(id:42208) Medical Specialties,INSULET INTERNATIONAL LTD,id:13109374   , 712.08
Department of Health,Guys and St Thomas NHS Foundation Trust,30/07/2020,(81200) Medical Surgical Supplies & Equipment,(id:42208) Medical Specialties,INSULET INTERNATIONAL LTD,id:13155794   , 712.08
Department of Health,Guys and St Thomas NHS Foundation Trust,30/07/2020,(81200) Medical Surgical Supplies & Equipment,(id:42208) Medical Specialties,INSULET INTERNATIONAL LTD,id:13155796   , 712.08
Department of Health,Guys and St Thomas NHS Foundation Trust,30/07/2020,(81200) Medical Surgical Supplies & Equipment,(id:42208) Medical Specialties,INSULET INTERNATIONAL LTD,id:13109455   , 712.08
Department of Health,Guys and St Thomas NHS Foundation Trust,24/07/2020,(89595) Non-Healthcare from Foundation Trusts,(id:42202) Medical Specialties,MANCHESTER UNIVERSITY NHS FOUNDATION TRUST,id:13098934 , 825.00
Department of Health,Guys and St Thomas NHS Foundation Trust,24/07/2020,(50204) Consultants,(id:302405) Medical Specialties,KING'S COLLEGE HOSPITAL NHS FOUNDATION TRUST,id:13159725    ,2369.29
Department of Health,Guys and St Thomas NHS Foundation Trust,30/07/2020,(82800) Bedding & Linen,(id:42205) Medical Specialties,NHS SUPPLY CHAIN (MAIDSTONE),id:13132074  ,  40.18
Department of Health,Guys and St Thomas NHS Foundation Trust,10/07/2020,(81400) Medical Surgical Supplies & Equipment,(id:508410) Medical Specialties,SENSE MEDICAL LIMITED,id:13145139 ,1250.00
Department of Health,Guys and St Thomas NHS Foundation Trust,28/07/2020,(89010) Other - Publishing,(id:508410) Medical Specialties,CASTOR EDC,id:13205475 , 816.32
Department of Health,Guys and St Thomas NHS Foundation Trust,10/07/2020,(50200) Consultants,(id:41938) Medical Specialties,KINGS COLLEGE LONDON:03529700,id:13153734, 580.38
Department of Health,Guys and St Thomas NHS Foundation Trust,10/07/2020,(83400) Office Equipment,(id:41937) Medical Specialties,DICT8 LIMITED,id:13149034 ,1889.16
Department of Health,Guys and St Thomas NHS Foundation Trust,30/07/2020,(81200) Medical Surgical Supplies & Equipment,(id:41937) Medical Specialties,MED FIT UK LTD,id:13187996    ,2988.60
Department of Health,Guys and St Thomas NHS Foundation Trust,14/07/2020,(52062) Radiographers,(id:41937) Medical Specialties,PRICEWATERHOUSECOOPERS LLP,id:13164114 , 746.83
Department of Health,Guys and St Thomas NHS Foundation Trust,28/07/2020,(52062) Radiographers,(id:41937) Medical Specialties,PRICEWATERHOUSECOOPERS LLP,id:13207034 ,1260.74
Department of Health,Guys and St Thomas NHS Foundation Trust,24/07/2020,(81225) Medical Surgical Supplies & Equipment,(id:41937) Medical Specialties,ENEURA (UK) LTD,id:13179878   ,1612.00
Department of Health,Guys and St Thomas NHS Foundation Trust,03/07/2020,(81200) Medical Surgical Supplies & Equipment,(id:4621419) TAP,KAPITEX HEALTHCARE LTD,id:12983183, 738.16
Department of Health,Guys and St Thomas NHS Foundation Trust,03/07/2020,(81200) Medical Surgical Supplies & Equipment,(id:4621419) TAP,NHS SUPPLY CHAIN (MAIDSTONE),id:13050854    , 570.00
Department of Health,Guys and St Thomas NHS Foundation Trust,17/07/2020,(81200) Medical Surgical Supplies & Equipment,(id:4621419) TAP,NHS SUPPLY CHAIN (MAIDSTONE),id:13075043    , 252.00
Department of Health,Guys and St Thomas NHS Foundation Trust,17/07/2020,(81200) Medical Surgical Supplies & Equipment,(id:850419) TAP,NHS SUPPLY CHAIN (MAIDSTONE),id:13090454,1856.27
Department of Health,Guys and St Thomas NHS Foundation Trust,24/07/2020,(81400) Medical Surgical Supplies & Equipment,(id:41900) TAP,BELMONT MEDICAL TECHNOLOGIES LTD (FORMERLY HC LIFE LIMITED),id:13179315,4950.00
Department of Health,Guys and St Thomas NHS Foundation Trust,03/07/2020,(83410) Office Equipment,(id:41898) TAP,RICOH UK LTD,id:13114845   ,  15.37
Department of Health,Guys and St Thomas NHS Foundation Trust,10/07/2020,(82600) Uniforms & Clothing,(id:41897) TAP,SQUADRON MEDICAL LTD,id:13104531  , 563.76
Department of Health,Guys and St Thomas NHS Foundation Trust,03/07/2020,(83400) Office Equipment,(id:41897) TAP,NHS SUPPLY CHAIN (MAIDSTONE),id:13050854  , 330.94
Department of Health,Guys and St Thomas NHS Foundation Trust,17/07/2020,(83400) Office Equipment,(id:41897) TAP,SQUADRON MEDICAL LTD,id:13146793, 204.16
Department of Health,Guys and St Thomas NHS Foundation Trust,24/07/2020,(82800) Bedding & Linen,(id:41897) TAP,NHS SUPPLY CHAIN (MAIDSTONE),id:13109396   ,  50.54
Department of Health,Guys and St Thomas NHS Foundation Trust,03/07/2020,(81200) Medical Surgical Supplies & Equipment,(id:41897) TAP,NHS SUPPLY CHAIN (MAIDSTONE),id:13050854 ,1128.89
Department of Health,Guys and St Thomas NHS Foundation Trust,17/07/2020,(81200) Medical Surgical Supplies & Equipment,(id:41897) TAP,SQUADRON MEDICAL LTD,id:13152528    , 334.24
Department of Health,Guys and St Thomas NHS Foundation Trust,17/07/2020,(81200) Medical Surgical Supplies & Equipment,(id:41897) TAP,JOHNSON & JOHNSON MEDICAL LTD,id:13139260,1308.96
Department of Health,Guys and St Thomas NHS Foundation Trust,24/07/2020,(81200) Medical Surgical Supplies & Equipment,(id:41897) TAP,SQUADRON MEDICAL LTD,id:13156399    , 763.76
Department of Health,Guys and St Thomas NHS Foundation Trust,30/07/2020,(81100) Dressings,(id:41897) TAP,NHS SUPPLY CHAIN (MAIDSTONE),id:13132074    ,1031.60
Department of Health,Guys and St Thomas NHS Foundation Trust,10/07/2020,(81400) Medical Surgical Supplies & Equipment,(id:41897) TAP,CARL ZEISS LTD,id:13141600,6399.65
Department of Health,Guys and St Thomas NHS Foundation Trust,03/07/2020,(81230) Medical Surgical Supplies & Equipment,(id:41894) TAP,NHS SUPPLY CHAIN (MAIDSTONE),id:13036234 , 533.64
Department of Health,Guys and St Thomas NHS Foundation Trust,03/07/2020,(81100) Dressings,(id:41894) TAP,NHS SUPPLY CHAIN (MAIDSTONE),id:13060017    ,  10.75
Department of Health,Guys and St Thomas NHS Foundation Trust,17/07/2020,(81100) Dressings,(id:41894) TAP,NHS SUPPLY CHAIN (MAIDSTONE),id:13090454    ,   4.51
Department of Health,Guys and St Thomas NHS Foundation Trust,30/07/2020,(81100) Dressings,(id:41894) TAP,SQUADRON MEDICAL LTD,id:13191215  ,  11.04
Department of Health,Guys and St Thomas NHS Foundation Trust,03/07/2020,(82800) Bedding & Linen,(id:41894) TAP,NHS SUPPLY CHAIN (MAIDSTONE),id:13050854   ,   3.38
Department of Health,Guys and St Thomas NHS Foundation Trust,30/07/2020,(81200) Medical Surgical Supplies & Equipment,(id:41894) TAP,SQUADRON MEDICAL LTD,id:13185475    ,  21.50
Department of Health,Guys and St Thomas NHS Foundation Trust,24/07/2020,(81200) Medical Surgical Supplies & Equipment,(id:41894) TAP,SQUADRON MEDICAL LTD,id:13159931    ,  15.38
Department of Health,Guys and St Thomas NHS Foundation Trust,03/07/2020,(81100) Dressings,(id:41892) TAP,NHS SUPPLY CHAIN (MAIDSTONE),id:13060017    ,  15.96
Department of Health,Guys and St Thomas NHS Foundation Trust,17/07/2020,(81225) Medical Surgical Supplies & Equipment,(id:41883) TAP,NHS SUPPLY CHAIN (MAIDSTONE),id:13075043 ,   4.85
Department of Health,Guys and St Thomas NHS Foundation Trust,17/07/2020,(81200) Medical Surgical Supplies & Equipment,(id:41883) TAP,NHS SUPPLY CHAIN (MAIDSTONE),id:13090454 , 382.97
Department of Health,Guys and St Thomas NHS Foundation Trust,30/07/2020,(81100) Dressings,(id:41907) TAP,NHS SUPPLY CHAIN (MAIDSTONE),id:13132074    ,  31.88
Department of Health,Guys and St Thomas NHS Foundation Trust,17/07/2020,(82600) Uniforms & Clothing,(id:41907) TAP,NHS SUPPLY CHAIN (MAIDSTONE),id:13075043    ,   3.78
Department of Health,Guys and St Thomas NHS Foundation Trust,24/07/2020,(81230) Medical Surgical Supplies & Equipment,(id:41907) TAP,NHS SUPPLY CHAIN (MAIDSTONE),id:13109396 ,1223.52
Department of Health,Guys and St Thomas NHS Foundation Trust,03/07/2020,(81200) Medical Surgical Supplies & Equipment,(id:41906) TAP,SQUADRON MEDICAL LTD,id:13112020    , 646.57
Department of Health,Guys and St Thomas NHS Foundation Trust,10/07/2020,(81200) Medical Surgical Supplies & Equipment,(id:41906) TAP,SQUADRON MEDICAL LTD,id:13100403    , 444.60
Department of Health,Guys and St Thomas NHS Foundation Trust,24/07/2020,(81200) Medical Surgical Supplies & Equipment,(id:41906) TAP,NHS SUPPLY CHAIN (MAIDSTONE),id:13109396 ,1017.75
Department of Health,Guys and St Thomas NHS Foundation Trust,30/07/2020,(81550) X Ray Equipment Purchase,(id:41906) TAP,NHS SUPPLY CHAIN (MAIDSTONE),id:13132074    , 232.80
Department of Health,Guys and St Thomas NHS Foundation Trust,03/07/2020,(81255) Medical Surgical Supplies & Equipment,(id:41906) TAP,NHS SUPPLY CHAIN (MAIDSTONE),id:13060017 ,   2.18
Department of Health,Guys and St Thomas NHS Foundation Trust,17/07/2020,(82800) Bedding & Linen,(id:41905) TAP,NHS SUPPLY CHAIN (MAIDSTONE),id:13090454   ,   3.72
Department of Health,Guys and St Thomas NHS Foundation Trust,10/07/2020,(81200) Medical Surgical Supplies & Equipment,(id:41905) TAP,DRAEGER MEDICAL UK LTD,id:13145439  , 702.00
Department of Health,Guys and St Thomas NHS Foundation Trust,03/07/2020,(82600) Uniforms & Clothing,(id:41905) TAP,NHS SUPPLY CHAIN (MAIDSTONE),id:13050854    ,   2.27
Department of Health,Guys and St Thomas NHS Foundation Trust,17/07/2020,(83400) Office Equipment,(id:41905) TAP,NHS SUPPLY CHAIN (MAIDSTONE),id:13075043  ,   1.08
Department of Health,Guys and St Thomas NHS Foundation Trust,03/07/2020,(81200) Medical Surgical Supplies & Equipment,(id:2549419) TAP,NHS SUPPLY CHAIN (MAIDSTONE),id:13050854    , 218.40
Department of Health,Guys and St Thomas NHS Foundation Trust,17/07/2020,(81100) Dressings,(id:41913) TAP,NHS SUPPLY CHAIN (MAIDSTONE),id:13090454    ,    .55
Department of Health,Guys and St Thomas NHS Foundation Trust,17/07/2020,(81200) Medical Surgical Supplies & Equipment,(id:41913) TAP,NHS SUPPLY CHAIN (MAIDSTONE),id:13075043 , 118.23
Department of Health,Guys and St Thomas NHS Foundation Trust,30/07/2020,(81200) Medical Surgical Supplies & Equipment,(id:41913) TAP,NHS SUPPLY CHAIN (MAIDSTONE),id:13132074 ,  27.92
Department of Health,Guys and St Thomas NHS Foundation Trust,03/07/2020,(81700) Lab Equipment Purchase,(id:41913) TAP,NHS SUPPLY CHAIN (MAIDSTONE),id:13036234 ,   3.18
Department of Health,Guys and St Thomas NHS Foundation Trust,03/07/2020,(81700) Lab Equipment Purchase,(id:41913) TAP,NHS SUPPLY CHAIN (MAIDSTONE),id:13060017 ,   3.18
Department of Health,Guys and St Thomas NHS Foundation Trust,17/07/2020,(82700) Uniforms & Clothing,(id:41918) TAP,NHS SUPPLY CHAIN (MAIDSTONE),id:13090454    , 126.72
Department of Health,Guys and St Thomas NHS Foundation Trust,10/07/2020,(83400) Office Equipment,(id:41918) TAP,OFFICE DEPOT UK LTD,id:13126044 ,  10.04
Department of Health,Guys and St Thomas NHS Foundation Trust,17/07/2020,(83400) Office Equipment,(id:41918) TAP,NHS SUPPLY CHAIN (MAIDSTONE),id:13090454  , 122.99
Department of Health,Guys and St Thomas NHS Foundation Trust,17/07/2020,(83400) Office Equipment,(id:41918) TAP,NHS SUPPLY CHAIN (MAIDSTONE),id:13075043  ,  20.33
Department of Health,Guys and St Thomas NHS Foundation Trust,17/07/2020,(82800) Bedding & Linen,(id:41918) TAP,NHS SUPPLY CHAIN (MAIDSTONE),id:13075043   , 200.76
Department of Health,Guys and St Thomas NHS Foundation Trust,30/07/2020,(81200) Medical Surgical Supplies & Equipment,(id:41918) TAP,SQUADRON MEDICAL LTD,id:13175850    , 285.89
Department of Health,Guys and St Thomas NHS Foundation Trust,24/07/2020,(81200) Medical Surgical Supplies & Equipment,(id:41918) TAP,SQUADRON MEDICAL LTD,id:13056298    , 128.16
Department of Health,Guys and St Thomas NHS Foundation Trust,24/07/2020,(81200) Medical Surgical Supplies & Equipment,(id:41918) TAP,SQUADRON MEDICAL LTD,id:13166401    , 336.60
Department of Health,Guys and St Thomas NHS Foundation Trust,03/07/2020,(82000) Provisions & Kitchens,(id:41916) TAP,NHS SUPPLY CHAIN (MAIDSTONE),id:13060017  ,  20.28
Department of Health,Guys and St Thomas NHS Foundation Trust,17/07/2020,(82600) Uniforms & Clothing,(id:41916) TAP,NHS SUPPLY CHAIN (MAIDSTONE),id:13090454    ,   3.02
Department of Health,Guys and St Thomas NHS Foundation Trust,17/07/2020,(81200) Medical Surgical Supplies & Equipment,(id:41916) TAP,SQUADRON MEDICAL LTD,id:13152508    ,   2.28
Department of Health,Guys and St Thomas NHS Foundation Trust,03/07/2020,(83400) Office Equipment,(id:41916) TAP,NHS SUPPLY CHAIN (MAIDSTONE),id:13036234  ,   2.82
Department of Health,Guys and St Thomas NHS Foundation Trust,24/07/2020,(83400) Office Equipment,(id:41916) TAP,NHS SUPPLY CHAIN (MAIDSTONE),id:13109396  , 140.61
Department of Health,Guys and St Thomas NHS Foundation Trust,03/07/2020,(81700) Lab Equipment Purchase,(id:41916) TAP,NHS SUPPLY CHAIN (MAIDSTONE),id:13050854 ,  12.46
Department of Health,Guys and St Thomas NHS Foundation Trust,03/07/2020,(81255) Medical Surgical Supplies & Equipment,(id:42485) Surgery,NHS SUPPLY CHAIN (MAIDSTONE),id:13050854  ,   4.06
Department of Health,Guys and St Thomas NHS Foundation Trust,17/07/2020,(81255) Medical Surgical Supplies & Equipment,(id:42485) Surgery,NHS SUPPLY CHAIN (MAIDSTONE),id:13090454  ,   3.74
Department of Health,Guys and St Thomas NHS Foundation Trust,17/07/2020,(81700) Lab Equipment Purchase,(id:42485) Surgery,NHS SUPPLY CHAIN (MAIDSTONE),id:13075043  ,  39.66
Department of Health,Guys and St Thomas NHS Foundation Trust,17/07/2020,(81225) Medical Surgical Supplies & Equipment,(id:42485) Surgery,NHS SUPPLY CHAIN (MAIDSTONE),id:13075043  ,  92.32
Department of Health,Guys and St Thomas NHS Foundation Trust,17/07/2020,(82000) Provisions & Kitchens,(id:42485) Surgery,NHS SUPPLY CHAIN (MAIDSTONE),id:13075043   , 170.65
Department of Health,Guys and St Thomas NHS Foundation Trust,17/07/2020,(81100) Dressings,(id:42485) Surgery,AAH PHARMACEUTICALS LTD,id:13158423, 612.00
Department of Health,Guys and St Thomas NHS Foundation Trust,17/07/2020,(81200) Medical Surgical Supplies & Equipment,(id:42485) Surgery,SQUADRON MEDICAL LTD,id:13146550, 719.23
Department of Health,Guys and St Thomas NHS Foundation Trust,10/07/2020,(81200) Medical Surgical Supplies & Equipment,(id:42484) Surgery,OSTEOTEC LTD,id:13147216   , 912.00
Department of Health,Guys and St Thomas NHS Foundation Trust,03/07/2020,(81200) Medical Surgical Supplies & Equipment,(id:42484) Surgery,SQUADRON MEDICAL LTD,id:13108646, 319.21
Department of Health,Guys and St Thomas NHS Foundation Trust,24/07/2020,(81200) Medical Surgical Supplies & Equipment,(id:42484) Surgery,NHS SUPPLY CHAIN (MAIDSTONE),id:13109396  , 552.00
Department of Health,Guys and St Thomas NHS Foundation Trust,17/07/2020,(81200) Medical Surgical Supplies & Equipment,(id:42484) Surgery,JOHNSON & JOHNSON MEDICAL LTD,id:13146469 , 907.20
Department of Health,Guys and St Thomas NHS Foundation Trust,17/07/2020,(81400) Medical Surgical Supplies & Equipment,(id:42484) Surgery,IGEA MEDICAL,id:13157935   ,5000.00
Department of Health,Guys and St Thomas NHS Foundation Trust,03/07/2020,(81200) Medical Surgical Supplies & Equipment,(id:42483) Surgery,NHS SUPPLY CHAIN (MAIDSTONE),id:13036234  , 166.63
Department of Health,Guys and St Thomas NHS Foundation Trust,30/07/2020,(81225) Medical Surgical Supplies & Equipment,(id:42483) Surgery,NHS SUPPLY CHAIN (MAIDSTONE),id:13132074  ,  35.57
Department of Health,Guys and St Thomas NHS Foundation Trust,03/07/2020,(81100) Dressings,(id:42483) Surgery,NHS SUPPLY CHAIN (MAIDSTONE),id:13050854,  19.20
Department of Health,Guys and St Thomas NHS Foundation Trust,17/07/2020,(82800) Bedding & Linen,(id:42483) Surgery,NHS SUPPLY CHAIN (MAIDSTONE),id:13090454    , 191.35
Department of Health,Guys and St Thomas NHS Foundation Trust,03/07/2020,(83400) Office Equipment,(id:42483) Surgery,NHS SUPPLY CHAIN (MAIDSTONE),id:13060017   , 183.28
Department of Health,Guys and St Thomas NHS Foundation Trust,03/07/2020,(83400) Office Equipment,(id:42483) Surgery,NHS SUPPLY CHAIN (MAIDSTONE),id:13036234   ,  91.33
Department of Health,Guys and St Thomas NHS Foundation Trust,17/07/2020,(83400) Office Equipment,(id:42483) Surgery,NHS SUPPLY CHAIN (MAIDSTONE),id:13090454   , 260.50
Department of Health,Guys and St Thomas NHS Foundation Trust,30/07/2020,(50552) Qualified Nursing Staff,(id:42482) Surgery,MSI GROUP LTD,id:13212625 , 297.27
Department of Health,Guys and St Thomas NHS Foundation Trust,03/07/2020,(50552) Qualified Nursing Staff,(id:42482) Surgery,MSI GROUP LTD,id:13138397 , 323.04
Department of Health,Guys and St Thomas NHS Foundation Trust,24/07/2020,(81100) Dressings,(id:42481) Surgery,NHS SUPPLY CHAIN (MAIDSTONE),id:13109396,   6.05
Department of Health,Guys and St Thomas NHS Foundation Trust,24/07/2020,(82800) Bedding & Linen,(id:42467) Surgery,NHS SUPPLY CHAIN (MAIDSTONE),id:13109396    , 254.52
Department of Health,Guys and St Thomas NHS Foundation Trust,03/07/2020,(81200) Medical Surgical Supplies & Equipment,(id:42467) Surgery,JOHNSON & JOHNSON MEDICAL LTD,id:13122384 ,1092.94
Department of Health,Guys and St Thomas NHS Foundation Trust,03/07/2020,(81200) Medical Surgical Supplies & Equipment,(id:42467) Surgery,JOHNSON & JOHNSON MEDICAL LTD,id:13121774 ,1601.28
Department of Health,Guys and St Thomas NHS Foundation Trust,03/07/2020,(81200) Medical Surgical Supplies & Equipment,(id:42467) Surgery,JOHNSON & JOHNSON MEDICAL LTD,id:13121854 ,1647.29
Department of Health,Guys and St Thomas NHS Foundation Trust,24/07/2020,(81200) Medical Surgical Supplies & Equipment,(id:42467) Surgery,JOHNSON & JOHNSON MEDICAL LTD,id:13169962 ,1832.37
Department of Health,Guys and St Thomas NHS Foundation Trust,17/07/2020,(81200) Medical Surgical Supplies & Equipment,(id:42467) Surgery,NHS SUPPLY CHAIN (MAIDSTONE),id:13090454  ,1273.62
Department of Health,Guys and St Thomas NHS Foundation Trust,17/07/2020,(81200) Medical Surgical Supplies & Equipment,(id:42467) Surgery,JOHNSON & JOHNSON MEDICAL LTD,id:13149437 ,1521.96
Department of Health,Guys and St Thomas NHS Foundation Trust,10/07/2020,(81200) Medical Surgical Supplies & Equipment,(id:42467) Surgery,STRYKER UK LTD,id:13105574 ,2000.88
Department of Health,Guys and St Thomas NHS Foundation Trust,30/07/2020,(81200) Medical Surgical Supplies & Equipment,(id:42467) Surgery,JOHNSON & JOHNSON MEDICAL LTD,id:13185157 ,1190.93
Department of Health,Guys and St Thomas NHS Foundation Trust,30/07/2020,(81200) Medical Surgical Supplies & Equipment,(id:42467) Surgery,JOHNSON & JOHNSON MEDICAL LTD,id:13175701 ,1431.21
Department of Health,Guys and St Thomas NHS Foundation Trust,30/07/2020,(81200) Medical Surgical Supplies & Equipment,(id:42467) Surgery,JOHNSON & JOHNSON MEDICAL LTD,id:13185162 , 636.47
Department of Health,Guys and St Thomas NHS Foundation Trust,10/07/2020,(81400) Medical Surgical Supplies & Equipment,(id:42467) Surgery,JOHNSON & JOHNSON MEDICAL LTD,id:13029474 ,    13000.00
Department of Health,Guys and St Thomas NHS Foundation Trust,30/07/2020,(83400) Office Equipment,(id:42467) Surgery,SQUADRON MEDICAL LTD,id:13156621 , 612.50
Department of Health,Guys and St Thomas NHS Foundation Trust,10/07/2020,(81225) Medical Surgical Supplies & Equipment,(id:42466) Surgery,OSSUR UK LTD:42113800,id:13145548    , 900.00
Department of Health,Guys and St Thomas NHS Foundation Trust,03/07/2020,(81225) Medical Surgical Supplies & Equipment,(id:42466) Surgery,NHS SUPPLY CHAIN (MAIDSTONE),id:13060017  ,  94.32
Department of Health,Guys and St Thomas NHS Foundation Trust,17/07/2020,(82700) Uniforms & Clothing,(id:42465) Surgery,NHS SUPPLY CHAIN (MAIDSTONE),id:13090454,  31.68
Department of Health,Guys and St Thomas NHS Foundation Trust,17/07/2020,(82000) Provisions & Kitchens,(id:42465) Surgery,NHS SUPPLY CHAIN (MAIDSTONE),id:13075043   , 168.25
Department of Health,Guys and St Thomas NHS Foundation Trust,17/07/2020,(82000) Provisions & Kitchens,(id:42465) Surgery,NHS SUPPLY CHAIN (MAIDSTONE),id:13090454   ,  74.25
Department of Health,Guys and St Thomas NHS Foundation Trust,03/07/2020,(82800) Bedding & Linen,(id:42465) Surgery,NHS SUPPLY CHAIN (MAIDSTONE),id:13060017    , 106.28
Department of Health,Guys and St Thomas NHS Foundation Trust,24/07/2020,(81225) Medical Surgical Supplies & Equipment,(id:42465) Surgery,NHS SUPPLY CHAIN (MAIDSTONE),id:13109396  ,  18.36
Department of Health,Guys and St Thomas NHS Foundation Trust,03/07/2020,(81225) Medical Surgical Supplies & Equipment,(id:42465) Surgery,NHS SUPPLY CHAIN (MAIDSTONE),id:13060017  ,  45.90
Department of Health,Guys and St Thomas NHS Foundation Trust,24/07/2020,(81200) Medical Surgical Supplies & Equipment,(id:42465) Surgery,NHS SUPPLY CHAIN (MAIDSTONE),id:13109396  , 573.94
Department of Health,Guys and St Thomas NHS Foundation Trust,03/07/2020,(81100) Dressings,(id:42465) Surgery,NHS SUPPLY CHAIN (MAIDSTONE),id:13060017, 348.55
Department of Health,Guys and St Thomas NHS Foundation Trust,24/07/2020,(81000) Surgical Appliances,(id:42465) Surgery,TALAR MADE ORTHOTICS LTD,id:13188116    ,   8.50
Department of Health,Guys and St Thomas NHS Foundation Trust,24/07/2020,(81000) Surgical Appliances,(id:42465) Surgery,TALAR MADE ORTHOTICS LTD,id:13188555    , 252.00
Department of Health,Guys and St Thomas NHS Foundation Trust,03/07/2020,(81255) Medical Surgical Supplies & Equipment,(id:42465) Surgery,NHS SUPPLY CHAIN (MAIDSTONE),id:13036234  ,   2.49
Department of Health,Guys and St Thomas NHS Foundation Trust,03/07/2020,(81255) Medical Surgical Supplies & Equipment,(id:42465) Surgery,NHS SUPPLY CHAIN (MAIDSTONE),id:13050854  ,   1.56
Department of Health,Guys and St Thomas NHS Foundation Trust,17/07/2020,(82800) Bedding & Linen,(id:42464) Surgery,NHS SUPPLY CHAIN (MAIDSTONE),id:13090454    ,  40.18
Department of Health,Guys and St Thomas NHS Foundation Trust,17/07/2020,(82600) Uniforms & Clothing,(id:42463) Surgery,NHS SUPPLY CHAIN (MAIDSTONE),id:13075043,    .76
Department of Health,Guys and St Thomas NHS Foundation Trust,17/07/2020,(81200) Medical Surgical Supplies & Equipment,(id:42463) Surgery,NHS SUPPLY CHAIN (MAIDSTONE),id:13075043  ,  19.20
Department of Health,Guys and St Thomas NHS Foundation Trust,03/07/2020,(83400) Office Equipment,(id:42463) Surgery,NHS SUPPLY CHAIN (MAIDSTONE),id:13060017   ,  26.81
Department of Health,Guys and St Thomas NHS Foundation Trust,24/07/2020,(81000) Surgical Appliances,(id:42461) Surgery,TALAR MADE ORTHOTICS LTD,id:13188555    , 800.50
Department of Health,Guys and St Thomas NHS Foundation Trust,24/07/2020,(81000) Surgical Appliances,(id:42461) Surgery,TALAR MADE ORTHOTICS LTD,id:13188587    ,  58.80
Department of Health,Guys and St Thomas NHS Foundation Trust,24/07/2020,(81000) Surgical Appliances,(id:42461) Surgery,TALAR MADE ORTHOTICS LTD,id:13178554    , 153.90
Department of Health,Guys and St Thomas NHS Foundation Trust,30/07/2020,(81000) Surgical Appliances,(id:42461) Surgery,TALAR MADE ORTHOTICS LTD,id:13206514    ,  14.40
Department of Health,Guys and St Thomas NHS Foundation Trust,17/07/2020,(81100) Dressings,(id:42459) Surgery,NHS SUPPLY CHAIN (MAIDSTONE),id:13075043, 283.10
Department of Health,Guys and St Thomas NHS Foundation Trust,17/07/2020,(81200) Medical Surgical Supplies & Equipment,(id:42459) Surgery,NHS SUPPLY CHAIN (MAIDSTONE),id:13075043  ,  14.26
Department of Health,Guys and St Thomas NHS Foundation Trust,03/07/2020,(81225) Medical Surgical Supplies & Equipment,(id:42459) Surgery,NHS SUPPLY CHAIN (MAIDSTONE),id:13050854  ,  15.12
Department of Health,Guys and St Thomas NHS Foundation Trust,24/07/2020,(82000) Provisions & Kitchens,(id:42458) Surgery,NHS SUPPLY CHAIN (MAIDSTONE),id:13109396   ,  10.20
Department of Health,Guys and St Thomas NHS Foundation Trust,17/07/2020,(82800) Bedding & Linen,(id:42458) Surgery,NHS SUPPLY CHAIN (MAIDSTONE),id:13090454    ,  67.29
Department of Health,Guys and St Thomas NHS Foundation Trust,17/07/2020,(81100) Dressings,(id:42458) Surgery,NHS SUPPLY CHAIN (MAIDSTONE),id:13075043,   6.71
Department of Health,Guys and St Thomas NHS Foundation Trust,24/07/2020,(81100) Dressings,(id:42458) Surgery,NHS SUPPLY CHAIN (MAIDSTONE),id:13109396,   4.19
Department of Health,Guys and St Thomas NHS Foundation Trust,03/07/2020,(81200) Medical Surgical Supplies & Equipment,(id:42458) Surgery,NHS SUPPLY CHAIN (MAIDSTONE),id:13050854  , 353.86
Department of Health,Guys and St Thomas NHS Foundation Trust,24/07/2020,(81700) Lab Equipment Purchase,(id:42458) Surgery,NHS SUPPLY CHAIN (MAIDSTONE),id:13109396  ,  25.81
Department of Health,Guys and St Thomas NHS Foundation Trust,03/07/2020,(81700) Lab Equipment Purchase,(id:42458) Surgery,NHS SUPPLY CHAIN (MAIDSTONE),id:13036234  ,  11.22
Department of Health,Guys and St Thomas NHS Foundation Trust,30/07/2020,(81255) Medical Surgical Supplies & Equipment,(id:42458) Surgery,NHS SUPPLY CHAIN (MAIDSTONE),id:13132074  ,   4.32
Department of Health,Guys and St Thomas NHS Foundation Trust,30/07/2020,(89200) Other - Patient travel,(id:42453) Surgery,WELBECK HEALTHCARE LTD,id:13214393   ,6864.00
Department of Health,Guys and St Thomas NHS Foundation Trust,24/07/2020,(81200) Medical Surgical Supplies & Equipment,(id:41863) PACCS,RESMED (UK) LTD,id:13188814  ,3659.40
Department of Health,Guys and St Thomas NHS Foundation Trust,10/07/2020,(81200) Medical Surgical Supplies & Equipment,(id:41863) PACCS,RESMED (UK) LTD,id:13156234  ,3693.60
Department of Health,Guys and St Thomas NHS Foundation Trust,10/07/2020,(81200) Medical Surgical Supplies & Equipment,(id:41863) PACCS,RESMED (UK) LTD,id:13156114  ,4304.40
Department of Health,Guys and St Thomas NHS Foundation Trust,10/07/2020,(81200) Medical Surgical Supplies & Equipment,(id:41863) PACCS,RESMED (UK) LTD,id:13156074  ,4800.00
Department of Health,Guys and St Thomas NHS Foundation Trust,30/07/2020,(81200) Medical Surgical Supplies & Equipment,(id:41863) PACCS,RESMED (UK) LTD,id:13210663  ,4770.00
Department of Health,Guys and St Thomas NHS Foundation Trust,30/07/2020,(81200) Medical Surgical Supplies & Equipment,(id:41863) PACCS,RESMED (UK) LTD,id:13210643  ,4764.00
Department of Health,Guys and St Thomas NHS Foundation Trust,10/07/2020,(86300) Healthcare from non-NHS bodies,(id:1856419) PACCS,REMEO HEALTHCARE LIMITED,id:13157535   ,   536810.80
Department of Health,Guys and St Thomas NHS Foundation Trust,03/07/2020,(82600) Uniforms & Clothing,(id:41935) PACCS,NHS SUPPLY CHAIN (MAIDSTONE),id:13060017  ,   2.27
Department of Health,Guys and St Thomas NHS Foundation Trust,17/07/2020,(82600) Uniforms & Clothing,(id:41935) PACCS,NHS SUPPLY CHAIN (MAIDSTONE),id:13075043  ,   3.03
Department of Health,Guys and St Thomas NHS Foundation Trust,30/07/2020,(82600) Uniforms & Clothing,(id:41935) PACCS,NHS SUPPLY CHAIN (MAIDSTONE),id:13132074  ,   1.80
Department of Health,Guys and St Thomas NHS Foundation Trust,03/07/2020,(82000) Provisions & Kitchens,(id:41935) PACCS,NHS SUPPLY CHAIN (MAIDSTONE),id:13060017,  26.68
Department of Health,Guys and St Thomas NHS Foundation Trust,17/07/2020,(81100) Dressings,(id:41935) PACCS,NHS SUPPLY CHAIN (MAIDSTONE),id:13090454  , 118.43
Department of Health,Guys and St Thomas NHS Foundation Trust,03/07/2020,(81200) Medical Surgical Supplies & Equipment,(id:41935) PACCS,NHS SUPPLY CHAIN (MAIDSTONE),id:13050854    , 878.40
Department of Health,Guys and St Thomas NHS Foundation Trust,03/07/2020,(81200) Medical Surgical Supplies & Equipment,(id:41935) PACCS,NHS SUPPLY CHAIN (MAIDSTONE),id:13060017    , 596.60
Department of Health,Guys and St Thomas NHS Foundation Trust,24/07/2020,(81200) Medical Surgical Supplies & Equipment,(id:41935) PACCS,RESMED (UK) LTD,id:13188837  ,1400.40
Department of Health,Guys and St Thomas NHS Foundation Trust,24/07/2020,(81200) Medical Surgical Supplies & Equipment,(id:41935) PACCS,RESMED (UK) LTD,id:13186694  ,1509.60
Department of Health,Guys and St Thomas NHS Foundation Trust,24/07/2020,(81200) Medical Surgical Supplies & Equipment,(id:41935) PACCS,BOC LTD :02107500,id:13140597,    25334.82
Department of Health,Guys and St Thomas NHS Foundation Trust,24/07/2020,(81200) Medical Surgical Supplies & Equipment,(id:41935) PACCS,RESMED (UK) LTD,id:13188838  ,1170.00
Department of Health,Guys and St Thomas NHS Foundation Trust,03/07/2020,(83410) Office Equipment,(id:41935) PACCS,RICOH UK LTD,id:13114845 , 129.18
Department of Health,Guys and St Thomas NHS Foundation Trust,17/07/2020,(81255) Medical Surgical Supplies & Equipment,(id:41935) PACCS,NHS SUPPLY CHAIN (MAIDSTONE),id:13075043    ,   1.04
Department of Health,Guys and St Thomas NHS Foundation Trust,24/07/2020,(81700) Lab Equipment Purchase,(id:41935) PACCS,NHS SUPPLY CHAIN (MAIDSTONE),id:13109396    ,  13.07
Department of Health,Guys and St Thomas NHS Foundation Trust,03/07/2020,(50200) Consultants,(id:2588419) PACCS,KINGS COLLEGE LONDON:03529700,id:13001774  ,1532.85
Department of Health,Guys and St Thomas NHS Foundation Trust,03/07/2020,(81200) Medical Surgical Supplies & Equipment,(id:4620419) PACCS,NHS SUPPLY CHAIN (MAIDSTONE),id:13060017  ,3322.33
Department of Health,Guys and St Thomas NHS Foundation Trust,10/07/2020,(81200) Medical Surgical Supplies & Equipment,(id:4620419) PACCS,FISHER & PAYKEL HEALTHCARE LTD,id:13148254,2207.52
Department of Health,Guys and St Thomas NHS Foundation Trust,24/07/2020,(83400) Office Equipment,(id:3135419) PACCS,NHS SUPPLY CHAIN (MAIDSTONE),id:13109396   ,  13.51
Department of Health,Guys and St Thomas NHS Foundation Trust,24/07/2020,(82000) Provisions & Kitchens,(id:3135419) PACCS,NHS SUPPLY CHAIN (MAIDSTONE),id:13109396   ,   5.76
Department of Health,Guys and St Thomas NHS Foundation Trust,17/07/2020,(81225) Medical Surgical Supplies & Equipment,(id:2121419) PACCS,NHS SUPPLY CHAIN (MAIDSTONE),id:13090454  ,   9.70
Department of Health,Guys and St Thomas NHS Foundation Trust,03/07/2020,(81100) Dressings,(id:2121419) PACCS,NHS SUPPLY CHAIN (MAIDSTONE),id:13036234,  55.15
Department of Health,Guys and St Thomas NHS Foundation Trust,24/07/2020,(81100) Dressings,(id:2121419) PACCS,NHS SUPPLY CHAIN (MAIDSTONE),id:13109396,   9.88
Department of Health,Guys and St Thomas NHS Foundation Trust,03/07/2020,(81255) Medical Surgical Supplies & Equipment,(id:2121419) PACCS,NHS SUPPLY CHAIN (MAIDSTONE),id:13036234  ,   4.36
Department of Health,Guys and St Thomas NHS Foundation Trust,17/07/2020,(81255) Medical Surgical Supplies & Equipment,(id:2121419) PACCS,NHS SUPPLY CHAIN (MAIDSTONE),id:13075043  ,   3.11
Department of Health,Guys and St Thomas NHS Foundation Trust,03/07/2020,(83400) Office Equipment,(id:2121419) PACCS,NHS SUPPLY CHAIN (MAIDSTONE),id:13060017   ,  24.98
Department of Health,Guys and St Thomas NHS Foundation Trust,17/07/2020,(83400) Office Equipment,(id:2121419) PACCS,NHS SUPPLY CHAIN (MAIDSTONE),id:13075043   , 124.75
Department of Health,Guys and St Thomas NHS Foundation Trust,24/07/2020,(81700) Lab Equipment Purchase,(id:1842421) PACCS,NHS SUPPLY CHAIN (MAIDSTONE),id:13109396  ,   6.24
Department of Health,Guys and St Thomas NHS Foundation Trust,17/07/2020,(81200) Medical Surgical Supplies & Equipment,(id:1842421) PACCS,NHS SUPPLY CHAIN (MAIDSTONE),id:13075043  ,1658.61
Department of Health,Guys and St Thomas NHS Foundation Trust,03/07/2020,(81200) Medical Surgical Supplies & Equipment,(id:1842421) PACCS,NHS SUPPLY CHAIN (MAIDSTONE),id:13036234  , 847.27
Department of Health,Guys and St Thomas NHS Foundation Trust,03/07/2020,(81200) Medical Surgical Supplies & Equipment,(id:1842421) PACCS,NHS SUPPLY CHAIN (MAIDSTONE),id:13060017  , 634.45
Department of Health,Guys and St Thomas NHS Foundation Trust,17/07/2020,(82800) Bedding & Linen,(id:1842421) PACCS,NHS SUPPLY CHAIN (MAIDSTONE),id:13075043    ,   2.74
Department of Health,Guys and St Thomas NHS Foundation Trust,03/07/2020,(81225) Medical Surgical Supplies & Equipment,(id:1842421) PACCS,NHS SUPPLY CHAIN (MAIDSTONE),id:13036234  ,  10.08
Department of Health,Guys and St Thomas NHS Foundation Trust,03/07/2020,(81255) Medical Surgical Supplies & Equipment,(id:1842421) PACCS,NHS SUPPLY CHAIN (MAIDSTONE),id:13050854  ,   3.74
Department of Health,Guys and St Thomas NHS Foundation Trust,17/07/2020,(81255) Medical Surgical Supplies & Equipment,(id:1842421) PACCS,NHS SUPPLY CHAIN (MAIDSTONE),id:13090454  ,   1.86
Department of Health,Guys and St Thomas NHS Foundation Trust,30/07/2020,(81100) Dressings,(id:41931) PACCS,NHS SUPPLY CHAIN (MAIDSTONE),id:13132074  , 293.60
